{"text_format":"1","workbook":"xlsx","n_sheets":15,"sheets":["Project Info & Instructions","Split Sample Comparison","Core Data","Air Voids Pay Factor","Density Pay Factor","Test Strip Summary","QC-1 Density Worksheet","QC-2 Density Worksheet","QV-1 Density Worksheet","QV-2 Density Worksheet","QC-1 Correlation","QC-2 Correlation","QV-1 Correlation","QV-2 Correlation","Gauge Variability"],"not_rendered":{"charts":4,"images":2,"macros":1,"external_links":2,"defined_names":323,"comments":0,"pivot_tables":0},"unopened":[],"bounds":{"document_bytes":16777216,"sheet_cells":100000,"rows_first":2000,"rows_last":500,"rows_between":2000,"halvings":0,"cell_chars":16384,"cell_head_chars":4096},"cells_cut":0,"cells_raw":0,"read":"whole","date_system":"1900"}

{"sheet":"Project Info & Instructions","index":0,"n_rows":71,"n_cols":22,"rows_kept":71,"cut":false,"hidden":false,"merged":[[5,14,7,14],[8,2,8,8],[22,6,22,8],[25,6,25,8],[6,9,7,10],[8,9,8,10],[16,6,16,8],[0,2,5,8],[6,2,6,8],[7,2,7,8],[9,6,9,8],[10,6,10,8],[11,6,11,8],[23,6,23,8],[24,6,24,8],[20,6,20,8],[34,2,34,8],[11,9,11,10],[13,9,13,10],[12,6,12,8],[15,6,15,8],[14,6,14,8],[12,9,12,10],[14,9,14,10],[28,6,28,8],[27,6,27,8],[26,6,26,8],[21,6,21,8],[19,6,19,8],[18,6,18,8],[17,6,17,8],[30,2,31,8]]}
[null,null,"Wisconsin Department \nof Transportation "]
[]
[]
[null,null,null,null,null,null,null,null,null,null,null,null,null,null,null,"Double click on icon to display content"]
[]
["Revised 04-26-18",null,null,null,null,null,null,null,null,null,null,null,null,null,"Test strip type ref"]
[null,null,"HMA PWL Test Strip Spreadsheet",null,null,null,null,null,null,"Gmm for Density Only Test Strip"]
[null,null,"PWL Test Strip Project Information",null,null,null,null,null,null,null,null,null,null,null,null,null,null,null,null,{"$f":"CONCATENATE(G16,C18,G17)","v":""},"LowerLTPCC",93]
[null,"Test Strip Type:","Combined Density and Air Voids Test Strip",null,null,null,null,null,null,"Enter Gmm",null,"Lower ","Upper","Inc/Dec Test",{"$f":"+IF(C9=\"Combined Density and Air Voids Test Strip\",1,IF(C9=\"Density Only Test Strip\",2,IF(C9=\"Air Voids Only Test Strip\",3,\"\")))","v":1}]
[null,"Date:",null,null,null,"Paving Width(ft):",null,null,null,null,null,{"$f":"IF(O14=FALSE,G14+100,G14-100)","v":100},{"$f":"IF(O14=FALSE,(G14+ABS(((I14-G14)/2)-150)),(G14-(ABS(((I14-G14)/2)+150))))","v":{"$error":"#VALUE!"}},{"$f":"I14-G14","v":{"$error":"#VALUE!"}},{"$f":"IF(O9=1,\"Combined\",IF(O9=2, \"Density Only\",IF(O9=3,\"Air Voids Only\",\"\")))","v":"Combined"},null,null,null,null,null,"LowerMTPCC",93]
[null,"Test Strip #:",null,null,null,"Lane Width(ft):",null,null,null,null,null,{"$f":"IF(O14=FALSE,(G14+ABS(((I14-G14)/2)+150)),(G14-ABS(((I14-G14)/2)-150)))","v":{"$error":"#VALUE!"}},{"$f":"IF(O14=FALSE,I14-100,I14+100)","v":{"$error":"#VALUE!"}},null,null,null,null,null,null,null,"LowerHTPCC",93]
[null,"Contract:",null,null,null,"Nominal Thickness(in):",null,null,null,"Calculated Tonnage",null,50,{"$f":"L13/3","v":0},{"$f":"L13/3*2","v":0},{"$f":"L13","v":0},null,null,null,null,null,"LowerSMAPCC",93]
[null,"Job No./Project ID:",null,null,null,"Estimated Tonnage:",null,null,null,{"$f":"IF(G15=\"\",\"\",(G15*G10)/9*112*G12/2000)","v":""},null,{"$f":"IF(O13=TRUE,J13,G13)","v":0},{"$f":"IF(O13=\"TRUE\",((G15*G10)/9*112*G12/2000),G13*2000/G12*9/112/G10)","v":{"$error":"#DIV/0!"}},null,false,null,null,null,null,null,"LowerLTHMA",93]
[null,"Route/Road:",null,null,null," Stations- Start:",null,"End:",{"$f":"IF(G14=\"\",\"\",IF(AND(O13=TRUE,O14=TRUE),G14-G15,IF(AND(O13=TRUE,O14=FALSE),G14+G15,IF(AND(O13=FALSE,O14=TRUE),G14-J15,IF(AND(O13=FALSE,O14=FALSE),G14+J15,\"\")))))","v":""},"Calculated Length",null,null,null,null,false,null,null,null,null,null,"LowerMTHMA",93]
[null,"County:",null,null,null,"Estimated Length(ft):",null,null,null,{"$f":"IF(G13=\"\",\"\",G13*2000/G12*9/112/G10)","v":""},null,{"$f":"IF(O13=FALSE,J15,G15)","v":""},null,null,null,null,null,null,null,null,"LowerHTHMA",93]
[null,"WisDOT Mix No.:",null,null,null,"Test Strip Pavement Layer:",null,null,null,null,null,null,null,null,null,null,null,null,null,null,"LowerSMAHMA",93]
[null,"Mix Gradation:",null,null,null,"Underlying Layer:",null,null,null,null,null,null,null,null,null,null,null,null,null,null,"LowerLTCrushed Aggregate",91]
[null,"Mix Traffic Vol:",null,null,null,"Density Lower Spec Limit(%):",{"$f":"IF(OR(G16=\"\",G17=\"\",C18=\"\"),\"Enter Mix and Layer Info\",IF(OR(G16=\"Upper\",G16=\"Middle\"),93,VLOOKUP(T8,U8:V28,2,FALSE)))","v":"Enter Mix and Layer Info"},null,null,null,null,null,null,null,null,null,null,null,null,null,"LowerMTCrushed Aggregate",91]
[null,"Asphalt Binder:",null,null,null,"Project Leader:",null,null,null,null,null,null,null,null,null,null,null,null,null,null,"LowerHTCrushed Aggregate",92]
[null,"Binder Designation:",null,null,null,"Contractor:",null,null,null,null,null,null,null,null,null,null,null,null,null,null,"LowerSMACrushed Aggregate",93]
[null,"Mix Type:",{"$f":"CONCATENATE(C17,\"-\",C18,\"-\",C19,C20)","v":"--"},null,null,"Final Tonnage:",null,null,null,null,null,null,null,null,null,null,null,null,null,null,"LowerLTRecycled HMA",91]
[null,"Contract Unit Price:",null,null,null,"Final Length:",null,null,null,null,null,null,null,null,null,null,null,null,null,null,"LowerMTRecycled HMA",91]
[null,null,null,null,null,"Density Test/Core Offset:",50,null,null,null,null,null,null,"#1 S/E ","#2 S/E",null,null,null,null,null,"LowerHTRecycled HMA",92]
[null,null,null,null,null,"Density Zone #1 Center Station:",null,null,null,null,null,{"$f":"IF(G24<G25,G24+(2*'QC-1 Density Worksheet'!C12),G24-(2*'QC-1 Density Worksheet'!C12))","v":-100},{"$f":"IF(L24<L25,L25-L24,L24-L25)","v":200},{"$f":"'QC-1 Density Worksheet'!B14","v":-100},{"$f":"'QC-1 Density Worksheet'!B20","v":-100},null,null,null,null,null,"LowerSMARecycled HMA",93]
[null,null,null,null,null,"Density Zone #2 Center Station:",null,null,null,null,null,{"$f":"IF(G24<G25,G25-(2*'QC-1 Density Worksheet'!C12),G25+(2*'QC-1 Density Worksheet'!C12))","v":100},null,{"$f":"'QC-1 Density Worksheet'!B18","v":100},{"$f":"'QC-1 Density Worksheet'!B24","v":100},null,null,null,null,null,"LowerLTRecycled PCC",91]
[null,null,null,null,null,null,null,null,null,null,null,null,null,null,null,null,null,null,null,null,"LowerMTRecycled PCC",91]
[null,null,null,null,null,"Random Split Sample #1 Tonnage:",null,null,null,null,null,null,null,null,null,null,null,null,null,null,"LowerHTRecycled PCC",92]
[null,null,null,null,null,"Random Split Sample #2 Tonnage:",null,null,null,null,null,null,null,null,null,null,null,null,null,null,"LowerSMARecycled PCC",93]
[null,null,null,null,null,"Random Split Sample #3 Tonnage:"]
[]
[null,"Other/Notes:"]
[]
[null,"Suggested File Name:",{"$f":"CONCATENATE(C13,\"_\",C14,\"_\",C21,\"_\",G16,\"_\",\"PWL-TS-\",C11,\"-\",O10)","v":"__--__PWL-TS--Combined"}]
[]
[null,null,"WHO is Responsible for WHAT?"]
[null,"Green","Worksheet requires data from QC/QV lab & field personnel to be input by a Department Representative (dept.rep)"]
[null,"Yellow","Worksheet requires project data only"]
[null,"Red","Worksheets do not require any input; they are results only"]
[]
[null,"Dept. Rep:","- Confirm mix volumetrics conform to the limits defined in C.2.1 of the HMA PWL Test Strip SPV prior to construction of test strip."]
[null,null,"- Complete the Project Information above.  "]
[null,"Canary","Cells in Project Info & Instructions tab require input from the dept. rep prior to construction, on all other tabs these are for test data."]
[null,"Peach","Cells are for random stations/tonnage calculation on Project Info & Instructions tab only."]
[null,"Blue","Cells require test strip final length and final tonnage after construction is finished. Input on Project Info & Instructions tab only."]
[null,null,"- The Test Strip Type is used to determine which analyses need to be run. If \"Density Only Test Strip\" is selected the Gmm will need to be entered at the top of the Project Info & "]
[null,null,"   Instructions worksheet. Otherwise, the Gmm will be calculated from the Split Sample Comparison worksheet."]
[null,null,"- The Test Strip # for each mix type or layer has a default value of \"1\". If the test strip for a given layer or material is reconstructed, the spreadhseet "]
[null,null,"   for the reconstructed test strip will be identified as \"2\". "]
[null,null,"- The Suggested File Name consists of the Job No./Project ID, Route/Road, Mix Type, Layer, the identifier \"PWL-TS-\", Test Strip #, and Test Strip Type. "]
[null,null,"- Once the Suggested File Name is complete click the \"Save with Suggested File Name, Date & Time\" button to create a new file for the test strip. "]
[null,null,"- The Paving Width, and Layer Thickness are used with a known test strip length to estimate the test strip tonnage OR with a known test strip tonnage to estimate the test strip length. "]
[null,null,"- If the Estimated Length is known click the box next to \"Calculate Tonnage Based On Known Length\", otherwise the known tonnage is used to calculate the length."]
[null,null,"- The End Station is calculated from the Start Station and the Estimated Length (or Calculated Length is an Estimated Tonnage is entered), assuming a straight line."]
[null,null,"- After the Estimated Tonnage and Estimated Length are either entered or calculated, use the \"Generate Random Station/Tonnage\" button to determine density testing/coring "]
[null,null,"   locations and sampling tonnages or, if necessary, enter alternate center stations/tonnages in the peach-colored cells. "]
[null,null,"- The Density Lower Spec Limit is caluclated based on the Mix Type, Test Strip Pavement Layer, and Underlying Layer entered."]
[null,null,"- Confirm that Split Sample Comparison worksheet indicates that the datasets correlate and have testing differences within the testing tolerance (green cells rather than red)."]
[null,null,"- If indicated on the Split Sample Comparison worksheet, enter BTS Referee Gmm & Gmb data into Split Sample Comparison worksheet."]
[null,null,"- Confirm correct Dry Weight, Submerged Weight, and SSD are recorded in the Core Data worksheet."]
[null,null,"- AFTER Test strip construction is finished, enter total Final Tonnage and Final Length to be used for pay adjustment. These values will likely be different "]
[null,null,"  than the estimated length and tonnage entered or calculated initially."]
[]
[null,"QC Lab:","- Provide dept. rep Gmm & Gmb data for 3 split samples into Split Sample Comparison tab (cores retrieved and tested under dept. rep witness)"]
[]
[null,"QV Lab:","- Provide Gmm & Gmb data for 3 split samples into Split Sample Comparison tab"]
[]
[null,"QC-NUCDENSITYTEC:","- Provide Density Standard, Moisture Standard, and your name on the appropriate Density Worksheet (QC or QV, 1 or 2)"]
[null,null,"- Record M-counts, D-counts, and Wet Density for 2-3 readings per test site (3rd only needed if first 2 wet densities differ by more than 1.0 pcf)"]
[]
[null,"QV-NUCDENSITYTEC:","- Provide Density Standard, Moisture Standard, and your name on the appropriate Density Worksheet (QC or QV, 1 or 2)"]
[null,null,"- Record M-counts, D-counts, and Wet Density for 2-3 readings per test site (3rd only needed if first 2 wet densities differ by more than 1.0 pcf)"]

{"sheet":"Split Sample Comparison","index":1,"n_rows":31,"n_cols":25,"rows_kept":31,"cut":false,"hidden":false,"merged":[[2,2,2,3],[3,2,3,3],[4,2,4,3],[9,16,9,20],[2,6,2,7],[3,6,3,7],[4,6,4,7],[5,7,5,9],[29,24,29,26],[18,6,18,9],[8,16,8,20],[10,6,10,9],[17,6,17,7],[17,8,17,9],[9,6,9,7],[9,8,9,9]]}
[null,"Split Sample Testing Comparison"]
[]
[null,"Date:",{"$f":"IF('Project Info & Instructions'!C10=\"\",\"\",'Project Info & Instructions'!C10)","v":""},null,null,"Test Strip #:",{"$f":"IF('Project Info & Instructions'!C11=\"\",\"\",'Project Info & Instructions'!C11)","v":""},null,null,null,null,null,"Testing"]
[null,"Project ID:",{"$f":"IF('Project Info & Instructions'!C13=\"\",\"\",'Project Info & Instructions'!C13)","v":""},null,null,"Route/Road:",{"$f":"IF('Project Info & Instructions'!C14=\"\",\"\",'Project Info & Instructions'!C14)","v":""},null,null,null,null,null,"Tolerance"]
[null,"Mix Type:",{"$f":"IF('Project Info & Instructions'!C21=\"\",\"\",'Project Info & Instructions'!C21)","v":"--"},null,null," Layer:",{"$f":"IF('Project Info & Instructions'!G16=\"\",\"\",'Project Info & Instructions'!G16)","v":""}]
[]
[null,"Gmm"]
[null,"Split Sample Number","Tonnage","Contractor Gmm","Department Gmm","Difference (Xd)","Xd Mean",{"$f":"IF(N9<6,\"\",ABS(AVERAGE(F9:F11)))","v":""},"Degree of Freedom",{"$f":"COUNT(E9:E11)-1","v":-1},"BTS Referee Gmm",null,1.2E-2]
[null,1,{"$f":"'Project Info & Instructions'!G27","v":0},null,null,{"$f":"IF(OR(D9=\"\",E9=\"\"),\"\",ABS(D9-E9))","v":""},"p-value",{"$f":"IF(SUM($D$9:$D$11)=0,\"\",TTEST($D$9:$D$11,$E$9:$E$11, 2, 1))","v":""},"Prob. α",0.01,{"$f":"IF($N$21<12,\"\",IF(AND($G$11=$Q$9,$I$10=\"Datasets Compare\",$G$19=$Q$9,$I$18=\"Datasets Compare\"),\"\",\"BTS Result\"))","v":""},null,null,{"$f":"SUM(O9:P11)","v":0},{"$f":"IF(D9=\"\",0,1)","v":0},{"$f":"IF(E9=\"\",0,1)","v":0},"Test differences within testing tolerance",null,null,null,null,null,"If datasets compare and testing differences are within "]
[null,2,{"$f":"'Project Info & Instructions'!G28","v":0},null,null,{"$f":"IF(OR(D10=\"\",E10=\"\"),\"\",ABS(D10-E10))","v":""},"Split Sample Results: ",null,{"$f":"IF(N9<6,\"\",IF(OR(H9<J9,H8>M8),\"Do not Compare\",\"Datasets Compare\"))","v":""},null,{"$f":"IF($N$21<12,\"\",IF(AND($G$11=$Q$9,$I$10=\"Datasets Compare\",$G$19=$Q$9,$I$18=\"Datasets Compare\"),\"\",\"BTS Result\"))","v":""},null,null,null,0,0,"Test differences exceed testing tolerance",null,null,null,null,null,"testing tolerance, QC data is carried into the Air Voids Pay "]
[null,3,{"$f":"'Project Info & Instructions'!G29","v":0},null,null,{"$f":"IF(OR(D11=\"\",E11=\"\"),\"\",ABS(D11-E11))","v":""},{"$f":"IF(N9<6,\"\",IF(H8<M8,$Q$9,$Q$10))","v":""},null,null,null,{"$f":"IF($N$21<12,\"\",IF(AND($G$11=$Q$9,$I$10=\"Datasets Compare\",$G$19=$Q$9,$I$18=\"Datasets Compare\"),\"\",\"BTS Result\"))","v":""},null,null,null,0,0,null,null,null,null,null,null,"Factor worksheet. If not, BTS will conduct referee Gmm & "]
[null,null,null,null,null,null,null,null,null,null,null,null,null,null,null,null,null,null,null,null,null,null,"Gmb tests and BTS data will be used for subsequent calculations."]
[null,null,null,null,null,null,null,null,null,null,null,null,null,null,null,null,null,null,null,null,null,null,"In that case, BTS referee Gmm and Gmb test data needs "]
[null,null,null,null,null,null,null,null,null,null,null,null,null,null,null,null,null,null,null,null,null,null,"to be entered in the \"BTS Referee Gmm/Gmb\" Column"]
[null,"Gmb"]
[null,"Split Sample Number","Tonnage","Contractor Gmb","Department Gmb","Difference (Xd)","Xd Mean",{"$f":"IF(N17<6,\"\",ABS(AVERAGE(F17:F19)))","v":""},"Degree of Freedom",{"$f":"COUNT(E17:E19)-1","v":-1},"BTS Referee Gmb",null,1.2E-2]
[null,1,{"$f":"'Project Info & Instructions'!G27","v":0},null,null,{"$f":"IF(OR(D17=\"\",E17=\"\"),\"\",ABS(D17-E17))","v":""},"p-value",{"$f":"IF(SUM($D$17:$D$19)=0,\"\",TTEST($D$17:$D$19,$E$17:$E$19,2,1))","v":""},"Prob. α",0.01,{"$f":"IF($N$21<12,\"\",IF(AND($G$11=$Q$9,$I$10=\"Datasets Compare\",$G$19=$Q$9,$I$18=\"Datasets Compare\"),\"\",\"BTS Result\"))","v":""},null,null,{"$f":"SUM(O17:P19)","v":0},{"$f":"IF(D17=\"\",0,1)","v":0},0]
[null,2,{"$f":"'Project Info & Instructions'!G28","v":0},null,null,{"$f":"IF(OR(D18=\"\",E18=\"\"),\"\",ABS(D18-E18))","v":""},"Split Sample Results: ",null,{"$f":"IF(N17<6,\"\",IF(OR(H17<J17,H16>M16),\"Do not Compare\",\"Datasets Compare\"))","v":""},null,{"$f":"IF($N$21<12,\"\",IF(AND($G$11=$Q$9,$I$10=\"Datasets Compare\",$G$19=$Q$9,$I$18=\"Datasets Compare\"),\"\",\"BTS Result\"))","v":""},null,null,null,0,0]
[null,3,{"$f":"'Project Info & Instructions'!G29","v":0},null,null,{"$f":"IF(OR(D19=\"\",E19=\"\"),\"\",ABS(D19-E19))","v":""},{"$f":"IF(N17<6,\"\",IF(H16<M16,$Q$9,$Q$10))","v":""},null,null,null,{"$f":"IF($N$21<12,\"\",IF(AND($G$11=$Q$9,$I$10=\"Datasets Compare\",$G$19=$Q$9,$I$18=\"Datasets Compare\"),\"\",\"BTS Result\"))","v":""},null,null,null,0,0]
[]
[null,null,null,null,null,null,null,null,null,null,null,null,null,{"$f":"SUM(N17,N9)","v":0}]
[]
[]
[null,"Note:    "]
[null,"This review is a check for reasonable test result differences between labs.  Due to the small sample size, <20, it is "]
[null,"possible to have two sets of data that fail the t-test (p-value), but the \"test results are within testing tolerance\".  For such  "]
[null,"differences, if allowed by the engineer, asphalt mix production may resume as the test result differences are based on known testing uncertainty."]
[]
[null,"It is also possible to have two-sets of test results that are so variable that the results pass the t-test (p-value), but the \"test  "]
[null,"differences exceed testing tolerance\".  The cause of this type testing variation needs to be resolved before production ",null,null,null,null,null,null,null,null,null,null,null,null,null,null,null,null,null,null,null,null,null,null,{"$f":"'Project Info & Instructions'!A6","v":"Revised 04-26-18"}]
[null,"of mix resumes."]

{"sheet":"Core Data","index":2,"n_rows":25,"n_cols":9,"rows_kept":25,"cut":false,"hidden":false,"merged":[[24,8,24,14],[0,0,0,13],[3,4,3,6],[4,4,4,6],[5,6,5,8],[2,4,2,6],[2,1,2,2],[3,1,3,2],[4,1,4,2],[7,4,7,5]]}
["Core Data"]
[]
["Date:",{"$f":"IF('Project Info & Instructions'!C10=\"\",\"\",'Project Info & Instructions'!C10)","v":""},null,"Test Strip #:",{"$f":"IF('Project Info & Instructions'!C11=\"\",\"\",'Project Info & Instructions'!C11)","v":""}]
["Project ID:",{"$f":"IF('Project Info & Instructions'!C13=\"\",\"\",'Project Info & Instructions'!C13)","v":""},null,"Route/Road:",{"$f":"IF('Project Info & Instructions'!C14=\"\",\"\",'Project Info & Instructions'!C14)","v":""}]
["Mix Type:",{"$f":"IF('Project Info & Instructions'!C21=\"\",\"\",'Project Info & Instructions'!C21)","v":"--"},null," Layer:",{"$f":"IF('Project Info & Instructions'!G16=\"\",\"\",'Project Info & Instructions'!G16)","v":""}]
[]
[]
[null,null,null,null,"Core Density Calculations"]
["Label","Random Station","Offset from CL","Dry","SSD","Submerged","Core Density"]
[{"$f":"IF($E$5=\"Upper\",\"UL-1\",IF($E$5=\"Middle\",\"ML-1\",IF($E$5=\"Lower\",\"LL-1\",\"\")))","v":""},{"$f":"'QC-1 Density Worksheet'!B14","v":-100},{"$f":"'QC-1 Density Worksheet'!C14","v":""},null,null,null,{"$f":"IFERROR(ROUND(+D10/(E10-F10),3),\"\")","v":""}]
[{"$f":"IF($E$5=\"Upper\",\"UL-2\",IF($E$5=\"Middle\",\"ML-2\",IF($E$5=\"Lower\",\"LL-2\",\"\")))","v":""},{"$f":"'QC-1 Density Worksheet'!B15","v":-50},{"$f":"'QC-1 Density Worksheet'!C15","v":""},null,null,null,{"$f":"IFERROR(ROUND(+D11/(E11-F11),3),\"\")","v":""}]
[{"$f":"IF($E$5=\"Upper\",\"UL-3\",IF($E$5=\"Middle\",\"ML-3\",IF($E$5=\"Lower\",\"LL-3\",\"\")))","v":""},{"$f":"'QC-1 Density Worksheet'!B16","v":0},{"$f":"'QC-1 Density Worksheet'!C16","v":""},null,null,null,{"$f":"IFERROR(ROUND(+D12/(E12-F12),3),\"\")","v":""}]
[{"$f":"IF($E$5=\"Upper\",\"UL-4\",IF($E$5=\"Middle\",\"ML-4\",IF($E$5=\"Lower\",\"LL-4\",\"\")))","v":""},{"$f":"'QC-1 Density Worksheet'!B17","v":50},{"$f":"'QC-1 Density Worksheet'!C17","v":""},null,null,null,{"$f":"IFERROR(ROUND(+D13/(E13-F13),3),\"\")","v":""}]
[{"$f":"IF($E$5=\"Upper\",\"UL-5\",IF($E$5=\"Middle\",\"ML-5\",IF($E$5=\"Lower\",\"LL-5\",\"\")))","v":""},{"$f":"'QC-1 Density Worksheet'!B18","v":100},{"$f":"'QC-1 Density Worksheet'!C18","v":""},null,null,null,{"$f":"IFERROR(ROUND(+D14/(E14-F14),3),\"\")","v":""}]
[]
[]
[null,"Random Station","Offset from CL","Dry","SSD","Submerged","Core Density"]
[{"$f":"IF($E$5=\"Upper\",\"UL-6\",IF($E$5=\"Middle\",\"ML-6\",IF($E$5=\"Lower\",\"LL-6\",\"\")))","v":""},{"$f":"'QC-1 Density Worksheet'!B20","v":-100},{"$f":"'QC-1 Density Worksheet'!C20","v":""},null,null,null,{"$f":"IFERROR(ROUND(+D18/(E18-F18),3),\"\")","v":""}]
[{"$f":"IF($E$5=\"Upper\",\"UL-7\",IF($E$5=\"Middle\",\"ML-7\",IF($E$5=\"Lower\",\"LL-7\",\"\")))","v":""},{"$f":"'QC-1 Density Worksheet'!B21","v":-50},{"$f":"'QC-1 Density Worksheet'!C21","v":""},null,null,null,{"$f":"IFERROR(ROUND(+D19/(E19-F19),3),\"\")","v":""}]
[{"$f":"IF($E$5=\"Upper\",\"UL-8\",IF($E$5=\"Middle\",\"ML-8\",IF($E$5=\"Lower\",\"LL-8\",\"\")))","v":""},{"$f":"'QC-1 Density Worksheet'!B22","v":0},{"$f":"'QC-1 Density Worksheet'!C22","v":""},null,null,null,{"$f":"IFERROR(ROUND(+D20/(E20-F20),3),\"\")","v":""}]
[{"$f":"IF($E$5=\"Upper\",\"UL-9\",IF($E$5=\"Middle\",\"ML-9\",IF($E$5=\"Lower\",\"LL-9\",\"\")))","v":""},{"$f":"'QC-1 Density Worksheet'!B23","v":50},{"$f":"'QC-1 Density Worksheet'!C23","v":""},null,null,null,{"$f":"IFERROR(ROUND(+D21/(E21-F21),3),\"\")","v":""}]
[{"$f":"IF($E$5=\"Upper\",\"UL-10\",IF($E$5=\"Middle\",\"ML-10\",IF($E$5=\"Lower\",\"LL-10\",\"\")))","v":""},{"$f":"'QC-1 Density Worksheet'!B24","v":100},{"$f":"'QC-1 Density Worksheet'!C24","v":""},null,null,null,{"$f":"IFERROR(ROUND(+D22/(E22-F22),3),\"\")","v":""}]
[]
[]
[null,null,null,null,null,null,null,null,{"$f":"'Project Info & Instructions'!A6","v":"Revised 04-26-18"}]

{"sheet":"Air Voids Pay Factor","index":3,"n_rows":12,"n_cols":28,"rows_kept":12,"cut":false,"hidden":false,"merged":[[11,22,11,23],[5,2,7,2],[5,0,7,0],[1,27,3,27],[2,2,2,3],[1,25,3,25],[1,26,3,26],[3,0,3,20],[0,22,3,22],[0,23,3,23],[0,2,0,3],[0,5,0,6],[1,5,1,6],[2,5,2,6],[1,2,1,3]]}
[null,"Date:",{"$f":"IF('Project Info & Instructions'!C10=\"\",\"\",'Project Info & Instructions'!C10)","v":""},null,"Test Strip #:",{"$f":"IF('Project Info & Instructions'!C11=\"\",\"\",'Project Info & Instructions'!C11)","v":""},null,null,null,null,null,null,null,null,null,null,null,"TargetAV:",3,null,null,null,"PWL Default Unit Price","Contract Unit Price"]
[null,"Project ID:",{"$f":"IF('Project Info & Instructions'!C13=\"\",\"\",'Project Info & Instructions'!C13)","v":""},null,"Route/Road:",{"$f":"IF('Project Info & Instructions'!C14=\"\",\"\",'Project Info & Instructions'!C14)","v":""},null,null,null,null,null,null,null,null,null,null,null,"LSLAV:",2,null,null,null,null,null,null,"LSL","Target","USL"]
[null,"Mix Type:",{"$f":"IF('Project Info & Instructions'!C21=\"\",\"\",'Project Info & Instructions'!C21)","v":"--"},null," Layer:",{"$f":"IF('Project Info & Instructions'!G16=\"\",\"\",'Project Info & Instructions'!G16)","v":""},null,null,null,null,null,null,null,null,null,null,null,"USLAV:",4.3]
["Air Voids"]
["Lot","Split Sample No.","Date","Gmm","Gmb","Air Voids","Standard Deviation","Mean","Number of Tests in Lot","Quality IndexUL","d2","x","PWLUL","Quality IndexLL","d2","x","PWLLL","PWLAV","PFAV","Lot Size (Ton)","Air Voids Pay Adjustment",null,65,{"$f":"IF('Project Info & Instructions'!C22=\"\",\"\",'Project Info & Instructions'!C22)","v":""},null,2,3,4.3]
["TS-",1,{"$f":"IF('Split Sample Comparison'!C3:D3=\"\",\"\",'Split Sample Comparison'!C3:D3)","v":""},{"$f":"IF('Split Sample Comparison'!D9=\"\",\"\",IF(AND('Split Sample Comparison'!G11='Split Sample Comparison'!Q9,'Split Sample Comparison'!I10=\"Datasets Compare\",'Split Sample Comparison'!G19='Split Sample Comparison'!Q9,'Split Sample Comparison'!I18=\"Datasets Compare\"),'Split Sample Comparison'!D9,IF('Split Sample Comparison'!K9=\"\",\"BTS Result\",'Split Sample Comparison'!K9)))","v":""},{"$f":"IF('Split Sample Comparison'!D17=\"\",\"\",IF(AND('Split Sample Comparison'!G11='Split Sample Comparison'!Q9,'Split Sample Comparison'!I10=\"Datasets Compare\",'Split Sample Comparison'!G19='Split Sample Comparison'!Q9,'Split Sample Comparison'!I18=\"Datasets Compare\"),'Split Sample Comparison'!D17,IF('Split Sample Comparison'!K17=\"\",\"BTS Result\",'Split Sample Comparison'!K17)))","v":""},{"$f":"IF(OR(D6=\"BTS Result\",E6=\"BTS Result\"),\"\",IF('Split Sample Comparison'!N21<12,\"\",100*(D6-E6)/D6))","v":""}]
[null,2,null,{"$f":"IF('Split Sample Comparison'!D10=\"\",\"\",IF(AND('Split Sample Comparison'!G11='Split Sample Comparison'!Q9,'Split Sample Comparison'!I10=\"Datasets Compare\",'Split Sample Comparison'!G19='Split Sample Comparison'!Q9,'Split Sample Comparison'!I18=\"Datasets Compare\"),'Split Sample Comparison'!D10,IF('Split Sample Comparison'!K10=\"\",\"BTS Result\",'Split Sample Comparison'!K10)))","v":""},{"$f":"IF('Split Sample Comparison'!D18=\"\",\"\",IF(AND('Split Sample Comparison'!G11='Split Sample Comparison'!Q9,'Split Sample Comparison'!I10=\"Datasets Compare\",'Split Sample Comparison'!G19='Split Sample Comparison'!Q9,'Split Sample Comparison'!I18=\"Datasets Compare\"),'Split Sample Comparison'!D18,IF('Split Sample Comparison'!K18=\"\",\"BTS Result\",'Split Sample Comparison'!K18)))","v":""},{"$f":"IF(OR(D7=\"BTS Result\",E7=\"BTS Result\"),\"\",IF('Split Sample Comparison'!N21<12,\"\",100*(D7-E7)/D7))","v":""}]
[null,3,null,{"$f":"IF('Split Sample Comparison'!D11=\"\",\"\",IF(AND('Split Sample Comparison'!G11='Split Sample Comparison'!Q9,'Split Sample Comparison'!I10=\"Datasets Compare\",'Split Sample Comparison'!G19='Split Sample Comparison'!Q9,'Split Sample Comparison'!I18=\"Datasets Compare\"),'Split Sample Comparison'!D11,IF('Split Sample Comparison'!K11=\"\",\"BTS Result\",'Split Sample Comparison'!K11)))","v":""},{"$f":"IF('Split Sample Comparison'!D19=\"\",\"\",IF(AND('Split Sample Comparison'!G11='Split Sample Comparison'!Q9,'Split Sample Comparison'!I10=\"Datasets Compare\",'Split Sample Comparison'!G19='Split Sample Comparison'!Q9,'Split Sample Comparison'!I18=\"Datasets Compare\"),'Split Sample Comparison'!D19,IF('Split Sample Comparison'!K19=\"\",\"BTS Result\",'Split Sample Comparison'!K19)))","v":""},{"$f":"IF(OR(D8=\"BTS Result\",E8=\"BTS Result\"),\"\",IF('Split Sample Comparison'!N21<12,\"\",100*(D8-E8)/D8))","v":""},{"$f":"IF(OR(F6=\"\",F7=\"\",F8=\"\"),\"\",IF('Split Sample Comparison'!N21<12,\"\",IF(STDEV(F6:F8)<0.001,0.001,STDEV(F6:F8))))","v":""},{"$f":"IF(OR(F6=\"\",F7=\"\",F8=\"\"),\"\",IF('Split Sample Comparison'!N21<12,\"\",AVERAGE(F6:F8)))","v":""},3,{"$f":"($AB$5-H8)/G8","v":{"$error":"#VALUE!"}},{"$f":"IF(D6=\"BTS Result\",\"\",SQRT($I8))","v":1.7320508075688772},{"$f":"IF(D6=0,\"\",IF(MAX(0,0.5-(J8*$K8/(2*($I8-1))))>1,1,MAX(0,0.5-(J8*$K8/(2*($I8-1))))))","v":{"$error":"#VALUE!"}},{"$f":"IF(D6=0,\"\",100-(BETADIST(L8,($I8/2)-1,($I8/2)-1)*100))","v":{"$error":"#VALUE!"}},{"$f":"(H8-Z$5)/G8","v":{"$error":"#VALUE!"}},{"$f":"IF(D6=0,\"\",SQRT($I8))","v":1.7320508075688772},{"$f":"IF(D6=0,\"\",IF(MAX(0,0.5-(N8*$K8/(2*($I8-1))))>1,1,MAX(0,0.5-(N8*$K8/(2*($I8-1))))))","v":{"$error":"#VALUE!"}},{"$f":"IF(D6=0,\"\",100-(BETADIST(P8,($I8/2)-1,($I8/2)-1)*100))","v":{"$error":"#VALUE!"}},{"$f":"IF(OR(F6=\"\",F7=\"\",F8=\"\"),\"\",IF('Split Sample Comparison'!N21<12,\"\",(M8+Q8)-100))","v":""},{"$f":"IF(OR(F6=\"\",F7=\"\",F8=\"\"),\"\",IF(R8<50,50,IF(R8<90,R8*0.5+55,(R8-90)*0.4+100)))","v":""},{"$f":"IF(OR(F6=\"\",F7=\"\",F8=\"\"),\"\",IF('Project Info & Instructions'!G21=\"\",\"Final Tonnage Needed\",'Project Info & Instructions'!G21))","v":""},{"$f":"IF(OR(F6=\"\",F7=\"\",F8=\"\",'Project Info & Instructions'!G21=\"\"),\"\",IF(S8=50,((S8-100)*(X5*$T8)/(100)),IF(T8=\"\",\"\",((S8-100)*W$5*$T8)/(2*100))))","v":""},{"$f":"IF(U8>0,\"460.2010 Incentive Air Voids HMA Pavement\",\"804.2015 Disincentive Air Voids HMA Pavement\")","v":"460.2010 Incentive Air Voids HMA Pavement"}]
[]
[null,null,"Average Gmm:",{"$f":"IF(SUM(D6:D8)<0.01,\"\",IF(AND('Split Sample Comparison'!G11=\"Test differences within testing tolerance\",'Split Sample Comparison'!I10=\"Datasets Compare\"),AVERAGE('Split Sample Comparison'!D9:D11),AVERAGE(D6:D8)))","v":""}]
[]
["***Acceptable Gmm & Gmb values carried in as determined from the Split Sample Comparison worksheet/tab",null,null,null,null,null,null,null,null,null,null,null,null,null,null,null,null,null,null,null,null,null,{"$f":"'Project Info & Instructions'!A6","v":"Revised 04-26-18"}]

{"sheet":"Density Pay Factor","index":4,"n_rows":24,"n_cols":16,"rows_kept":24,"cut":false,"hidden":false,"merged":[[0,15,3,15],[5,2,14,2],[0,2,0,3],[1,2,1,3],[2,2,2,3],[3,0,3,13],[0,5,0,6],[1,5,1,6],[2,5,2,6],[5,0,9,0],[10,0,14,0],[0,14,3,14]]}
[null,"Date:",{"$f":"IF('Project Info & Instructions'!C10=\"\",\"\",'Project Info & Instructions'!C10)","v":""},null,"Test Strip #:",{"$f":"IF('Project Info & Instructions'!C11=\"\",\"\",'Project Info & Instructions'!C11)","v":""},null,null,null,null,null,null,"Lane Width(ft):",{"$f":"IF('Project Info & Instructions'!G11=\"\",\"\",'Project Info & Instructions'!G11)","v":""},"PWL Default Unit Price","Contract Unit Price"]
[null,"Project ID:",{"$f":"IF('Project Info & Instructions'!C13=\"\",\"\",'Project Info & Instructions'!C13)","v":""},null,"Route/Road:",{"$f":"IF('Project Info & Instructions'!C14=\"\",\"\",'Project Info & Instructions'!C14)","v":""},null,null,null,null,null,null,"Nominal Thickness(in):",{"$f":"IF('Project Info & Instructions'!G12=\"\",\"\",'Project Info & Instructions'!G12)","v":""}]
[null,"Mix Type:",{"$f":"IF('Project Info & Instructions'!C21=\"\",\"\",'Project Info & Instructions'!C21)","v":"--"},null," Layer:",{"$f":"IF('Project Info & Instructions'!G16=\"\",\"\",'Project Info & Instructions'!G16)","v":""},null,null,null,null,null,null,"LSL(%):",{"$f":"IF('Project Info & Instructions'!G18=\"\",\"Enter LSL\",'Project Info & Instructions'!G18)","v":"Enter Mix and Layer Info"}]
["Density"]
["Zone","Core No.","Date","Core Data (%Gmm)","Standard Deviation","Mean","Number of Tests in Lot","Quality Index","d2","x","PWLD","PFD","Lot Size (Ton)","Density Pay Adjustment",65,{"$f":"IF('Project Info & Instructions'!C22=\"\",\"\",'Project Info & Instructions'!C22)","v":""}]
["1-",{"$f":"'Core Data'!A10","v":""},{"$f":"'Split Sample Comparison'!C3:D3","v":""},{"$f":"IF(AND('Project Info & Instructions'!$O$9=2,'Core Data'!G10=\"\"),\"\",IF('Project Info & Instructions'!$O$9=2,100*('Core Data'!G10/'Project Info & Instructions'!$J$9),IF(OR('Air Voids Pay Factor'!$D$10=\"\",'Core Data'!G10=\"\"),\"\",100*('Core Data'!G10/'Air Voids Pay Factor'!$D$10))))","v":""}]
[null,{"$f":"'Core Data'!A11","v":""},null,{"$f":"IF(AND('Project Info & Instructions'!$O$9=2,'Core Data'!G11=\"\"),\"\",IF('Project Info & Instructions'!$O$9=2,100*('Core Data'!G11/'Project Info & Instructions'!$J$9),IF(OR('Air Voids Pay Factor'!$D$10=\"\",'Core Data'!G11=\"\"),\"\",100*('Core Data'!G11/'Air Voids Pay Factor'!$D$10))))","v":""}]
[null,{"$f":"'Core Data'!A12","v":""},null,{"$f":"IF(AND('Project Info & Instructions'!$O$9=2,'Core Data'!G12=\"\"),\"\",IF('Project Info & Instructions'!$O$9=2,100*('Core Data'!G12/'Project Info & Instructions'!$J$9),IF(OR('Air Voids Pay Factor'!$D$10=\"\",'Core Data'!G12=\"\"),\"\",100*('Core Data'!G12/'Air Voids Pay Factor'!$D$10))))","v":""}]
[null,{"$f":"'Core Data'!A13","v":""},null,{"$f":"IF(AND('Project Info & Instructions'!$O$9=2,'Core Data'!G13=\"\"),\"\",IF('Project Info & Instructions'!$O$9=2,100*('Core Data'!G13/'Project Info & Instructions'!$J$9),IF(OR('Air Voids Pay Factor'!$D$10=\"\",'Core Data'!G13=\"\"),\"\",100*('Core Data'!G13/'Air Voids Pay Factor'!$D$10))))","v":""}]
[null,{"$f":"'Core Data'!A14","v":""},null,{"$f":"IF(AND('Project Info & Instructions'!$O$9=2,'Core Data'!G14=\"\"),\"\",IF('Project Info & Instructions'!$O$9=2,100*('Core Data'!G14/'Project Info & Instructions'!$J$9),IF(OR('Air Voids Pay Factor'!$D$10=\"\",'Core Data'!G14=\"\"),\"\",100*('Core Data'!G14/'Air Voids Pay Factor'!$D$10))))","v":""}]
["2-",{"$f":"'Core Data'!A18","v":""},null,{"$f":"IF(AND('Project Info & Instructions'!$O$9=2,'Core Data'!G18=\"\"),\"\",IF('Project Info & Instructions'!$O$9=2,100*('Core Data'!G18/'Project Info & Instructions'!$J$9),IF(OR('Air Voids Pay Factor'!$D$10=\"\",'Core Data'!G18=\"\"),\"\",100*('Core Data'!G18/'Air Voids Pay Factor'!$D$10))))","v":""}]
[null,{"$f":"'Core Data'!A19","v":""},null,{"$f":"IF(AND('Project Info & Instructions'!$O$9=2,'Core Data'!G19=\"\"),\"\",IF('Project Info & Instructions'!$O$9=2,100*('Core Data'!G19/'Project Info & Instructions'!$J$9),IF(OR('Air Voids Pay Factor'!$D$10=\"\",'Core Data'!G19=\"\"),\"\",100*('Core Data'!G19/'Air Voids Pay Factor'!$D$10))))","v":""}]
[null,{"$f":"'Core Data'!A20","v":""},null,{"$f":"IF(AND('Project Info & Instructions'!$O$9=2,'Core Data'!G20=\"\"),\"\",IF('Project Info & Instructions'!$O$9=2,100*('Core Data'!G20/'Project Info & Instructions'!$J$9),IF(OR('Air Voids Pay Factor'!$D$10=\"\",'Core Data'!G20=\"\"),\"\",100*('Core Data'!G20/'Air Voids Pay Factor'!$D$10))))","v":""}]
[null,{"$f":"'Core Data'!A21","v":""},null,{"$f":"IF(AND('Project Info & Instructions'!$O$9=2,'Core Data'!G21=\"\"),\"\",IF('Project Info & Instructions'!$O$9=2,100*('Core Data'!G21/'Project Info & Instructions'!$J$9),IF(OR('Air Voids Pay Factor'!$D$10=\"\",'Core Data'!G21=\"\"),\"\",100*('Core Data'!G21/'Air Voids Pay Factor'!$D$10))))","v":""}]
[null,{"$f":"'Core Data'!A22","v":""},null,{"$f":"IF(AND('Project Info & Instructions'!$O$9=2,'Core Data'!G22=\"\"),\"\",IF('Project Info & Instructions'!$O$9=2,100*('Core Data'!G22/'Project Info & Instructions'!$J$9),IF(OR('Air Voids Pay Factor'!$D$10=\"\",'Core Data'!G22=\"\"),\"\",100*('Core Data'!G22/'Air Voids Pay Factor'!$D$10))))","v":""},{"$f":"IF(SUM(D6:D15)=0,\"\",IF(STDEV(D6:D15)<0.001,0.001,STDEV(D6:D15)))","v":""},{"$f":"IF(SUM(D6:D15)=0,\"\",AVERAGE(D6:D15))","v":""},{"$f":"COUNT(D6:D15)","v":0},{"$f":"(F15-N3)/E15","v":{"$error":"#VALUE!"}},{"$f":"SQRT($G15)","v":0},{"$f":"IF(MAX(0,0.5-(H15*$I15/(2*($G15-1))))>1,1,MAX(0,0.5-(H15*$I15/(2*($G15-1)))))","v":{"$error":"#VALUE!"}},{"$f":"IF(SUM(D6:D15)=0,\"\",IF(N3=\"Enter LSL\",\"Enter LSL\",100-(BETADIST(J15,($G15/2)-1,($G15/2)-1)*100)))","v":""},{"$f":"IF(SUM(D6:D15)=0,\"\",IF(N3=\"Enter LSL\",\"Enter LSL\",IF(K15<50,50,IF(K15<90,K15*0.5+55,(K15-90)*0.4+100))))","v":""},{"$f":"IF(SUM(D6:D15)=0,\"\",IF('Project Info & Instructions'!G22=\"\",\"Final Length Needed\",IF(N3=\"Enter LSL\",\"Enter LSL\",((L24*$N$1)/9*112*$N$2/2000))))","v":""},{"$f":"IF(OR(SUM(D6:D15)=0,'Project Info & Instructions'!G22=\"\"),\"\",IF(L15=50,((L15-100)*(P5*$M15)/(100)),IF(L24=\"\",\"\",((L15-100)*O$5*$M15)/(2*100))))","v":""},{"$f":"IF(N15>0,\"460.2005 Incentive Density PWL HMA Pavement\",\"804.2010 Disincentive PWL HMA Pavement\")","v":"460.2005 Incentive Density PWL HMA Pavement"}]
[]
[]
[]
[null,null,null,"Core data calculated from Contractor measured Gmb under Dept. supervision, "]
[null,null,null,"and Gmm values determined acceptable in accordance with the paired t-test"]
[]
[]
[]
[null,null,null,null,null,null,null,null,null,null,"Final Length:",{"$f":"IF('Project Info & Instructions'!G22=\"\",\"\",'Project Info & Instructions'!G22)","v":""},"Feet",null,null,{"$f":"'Project Info & Instructions'!A6","v":"Revised 04-26-18"}]

{"sheet":"Test Strip Summary","index":5,"n_rows":43,"n_cols":17,"rows_kept":43,"cut":false,"hidden":false,"merged":[[36,1,36,9],[38,9,41,9],[42,8,42,9],[37,4,37,5],[38,4,38,5],[39,4,39,5],[40,4,40,5],[41,4,41,5],[34,1,34,7],[29,1,29,3],[33,1,33,3],[29,4,29,7],[20,4,20,7],[33,4,33,7],[28,1,28,7],[30,1,30,3],[30,4,30,7],[31,1,31,3],[31,4,31,7],[32,1,32,3],[23,1,23,3],[25,1,25,7],[20,1,20,3],[21,4,21,7],[0,2,0,3],[1,2,1,3],[2,2,2,3],[3,2,3,3],[24,1,24,3],[6,1,6,7],[7,2,7,7],[8,2,8,7],[14,1,14,3],[15,1,15,3],[1,6,1,7],[0,6,0,7],[2,6,2,7],[3,6,3,7],[32,4,32,7],[22,4,22,7],[23,4,23,7],[24,4,24,7],[6,8,11,9],[11,1,11,7],[19,1,19,7],[21,1,21,3],[22,1,22,3],[16,1,16,7],[12,4,12,7],[13,4,13,7],[14,4,14,7],[15,4,15,7],[12,1,12,3],[13,1,13,3]]}
[null,"Contract:",{"$f":"IF('Project Info & Instructions'!C12=\"\",\"\",'Project Info & Instructions'!C12)","v":""},null,null,"Test Strip #:",{"$f":"IF('Project Info & Instructions'!C11=\"\",\"\",'Project Info & Instructions'!C11)","v":""},null,"Paving Width(ft):",{"$f":"IF('Project Info & Instructions'!G10=\"\",\"\",'Project Info & Instructions'!G10)","v":""}]
[null,"Job No./Project ID:",{"$f":"IF('Project Info & Instructions'!C13=\"\",\"\",'Project Info & Instructions'!C13)","v":""},null,null,"Route/Road:",{"$f":"IF('Project Info & Instructions'!C14=\"\",\"\",'Project Info & Instructions'!C14)","v":""},null,"Lane Width(ft):",{"$f":"IF('Project Info & Instructions'!G11=\"\",\"\",'Project Info & Instructions'!G11)","v":""}]
[null,"WisDOT Mix No.:",{"$f":"IF('Project Info & Instructions'!C16=\"\",\"\",'Project Info & Instructions'!C16)","v":""},null,null,"Test Strip Layer:",{"$f":"IF('Project Info & Instructions'!G16=\"\",\"\",'Project Info & Instructions'!G16)","v":""},null,"Nominal Thickness(in):",{"$f":"IF('Project Info & Instructions'!G12=\"\",\"\",'Project Info & Instructions'!G12)","v":""}]
[null,"Mix Type:",{"$f":"IF('Project Info & Instructions'!C21=\"\",\"\",'Project Info & Instructions'!C21)","v":"--"},null,null,"Underlying Layer:",{"$f":"IF('Project Info & Instructions'!G17=\"\",\"\",'Project Info & Instructions'!G17)","v":""},null,"Contract Unit Price:",{"$f":"IF('Project Info & Instructions'!C22=\"\",\"\",'Project Info & Instructions'!C22)","v":""}]
[null,"File Name:",{"$f":"'Project Info & Instructions'!C33","v":"__--__PWL-TS--Combined"},null,null,"Test Strip Type:",{"$f":"'Project Info & Instructions'!C9","v":"Combined Density and Air Voids Test Strip"},null,null,null,null,null,null,"Test strip type",{"$f":"'Project Info & Instructions'!O9","v":1}]
[]
[null,"Overall Test Strip Acceptance",null,null,null,null,null,null,"Dept. rep must also confirm that mix volumetrics are within conformance limits stated in C.2.1 of the HMA PWL Test Strip SPV prior to Overall Test Strip Acceptance. ",null,null,null,"Pass","PWL<50","Density Run"]
[null,"Test Strip",{"$f":"IF(AND(O5=1,OR(B17=\"\",B26=\"\",B35=\"\")),\"\",IF(AND(O5=1,B17=\"Pass\",B26=\"Pass\",B35=\"Pass\"),\"Acceptable, Proceed With Production\",IF(AND(O5=2,B26=\"Pass\"),\"Acceptable, Proceed With Production\",IF(AND(O5=3,B17=\"Pass\",B35=\"Pass\"),\"Acceptable, Proceed With Production\",\"Unacceptable, Consult Regional PWL Rep. & BTS\"))))","v":""},null,null,null,null,null,null,null,null,null,{"$f":"SUM(M17,M22,M31)","v":0}]
[null,"Material",{"$f":"IF(AND(O5=1,OR(B17=\"\",B26=\"\",B35=\"\")),\"\",IF(O9=\"\",\"\",IF(N9=0,\"Conforming, Test Strip Material May Remain in Place\",\"Non-conforming, Consult Regional PWL Rep. & BTS.\")))","v":""},null,null,null,null,null,null,null,null,null,null,{"$f":"SUM(N17,N22,N31)","v":0},{"$f":"IF(AND(M26=\"\",M35=\"\"),\"\",SUM(M26,M35))","v":""}]
[]
[]
[null,"Split Sample Comparison"]
[null,"Gmm Split Sample t-test Results",null,null,{"$f":"IF('Split Sample Comparison'!I10=\"\",\"\",'Split Sample Comparison'!I10)","v":""},null,null,null,null,null,null,{"$f":"IF(E13=\"\",0,1)","v":0},{"$f":"IF(E13=\"Datasets Compare\",0,1)","v":1}]
[null,"Gmm Test Differences Within Tolerance?",null,null,{"$f":"IF('Split Sample Comparison'!G11=\"\",\"\",'Split Sample Comparison'!G11)","v":""},null,null,null,null,null,null,{"$f":"IF(E14=\"\",0,1)","v":0},{"$f":"IF(E14=\"Test differences within testing tolerance\",0,1)","v":1}]
[null,"Gmb Split Sample t-test Results",null,null,{"$f":"IF('Split Sample Comparison'!I18=\"\",\"\",'Split Sample Comparison'!I18)","v":""},null,null,null,null,null,null,{"$f":"IF(E15=\"\",0,1)","v":0},{"$f":"IF(E15=\"Datasets Compare\",0,1)","v":1}]
[null,"Gmb Test Differences Within Tolerance?",null,null,{"$f":"IF('Split Sample Comparison'!G19=\"\",\"\",'Split Sample Comparison'!G19)","v":""},null,null,null,null,null,null,{"$f":"IF(E16=\"\",0,1)","v":0},{"$f":"IF(E16=\"Test differences within testing tolerance\",0,1)","v":1}]
[null,{"$f":"IF(M17=\"\",\"\",IF(M17>0,\"Fail\",\"Pass\"))","v":""},null,null,null,null,null,null,null,null,null,{"$f":"SUM(L13:L16)","v":0},{"$f":"IF(L17<4,\"\",SUM(M13:M16))","v":""}]
[]
[]
[null,"Density"]
[null,"Density Test Strip Tonnage",null,null,{"$f":"'Density Pay Factor'!M15","v":""},null,null,null,null,null,null,{"$f":"IF(E21=\"\",0,1)","v":0},null,null,{"$f":"E21*J4","v":{"$error":"#VALUE!"}},{"$f":"O21+E24","v":{"$error":"#VALUE!"}},{"$f":"P21/O21","v":{"$error":"#VALUE!"}}]
[null,"PWL",null,null,{"$f":"'Density Pay Factor'!K15","v":""},null,null,null,null,null,null,{"$f":"IF(E22=\"\",0,1)","v":0},{"$f":"IF(E22>=75,0,1)","v":0},{"$f":"IF(E22<50,1,0)","v":0}]
[null,"Pay Factor",null,null,{"$f":"'Density Pay Factor'!L15","v":""},null,null,null,null,null,null,{"$f":"IF(E23=\"\",0,1)","v":0}]
[null,"Density Net Pay Adjustment",null,null,{"$f":"'Density Pay Factor'!N15","v":""},null,null,null,{"$f":"IF(E24>0,\"460.2005 Incentive Density PWL HMA Pavement\",\"804.2010 Disincentive Density PWL HMA Pavement\")","v":"460.2005 Incentive Density PWL HMA Pavement"},null,null,{"$f":"IF(E24=\"\",0,1)","v":0}]
[null,"Density Net Pay (%)",null,null,{"$f":"IF(E24=\"\",\"\",IF('Project Info & Instructions'!C22=\"\",\"Enter Contract Unit Price\",Q21))","v":""},null,null,null,null,null,null,{"$f":"IF(E25=\"\",0,1)","v":0}]
[null,{"$f":"IF(M26=\"\",\"\",IF(M26>0,\"Fail\",\"Pass\"))","v":""},null,null,null,null,null,null,null,null,null,{"$f":"SUM(L21:L25)","v":0},{"$f":"IF(L26<5,\"\",M22)","v":""}]
[]
[]
[null,"Air Voids"]
[null,"Air Voids Test Strip Tonnage",null,null,{"$f":"IF('Air Voids Pay Factor'!T8=\"\",\"\",'Air Voids Pay Factor'!T8)","v":""},null,null,null,null,null,null,{"$f":"IF(E30=\"\",0,1)","v":0},null,null,{"$f":"E30*J4","v":{"$error":"#VALUE!"}},{"$f":"O30+E33","v":{"$error":"#VALUE!"}},{"$f":"P30/O30","v":{"$error":"#VALUE!"}}]
[null,"PWL",null,null,{"$f":"IF('Air Voids Pay Factor'!R8=\"\",\"\",'Air Voids Pay Factor'!R8)","v":""},null,null,null,null,null,null,{"$f":"IF(E31=\"\",0,1)","v":0},{"$f":"IF(E31>=75,0,1)","v":0},{"$f":"IF(E31<50,1,0)","v":0}]
[null,"Pay Factor",null,null,{"$f":"IF('Air Voids Pay Factor'!S8=\"\",\"\",'Air Voids Pay Factor'!S8)","v":""},null,null,null,null,null,null,{"$f":"IF(E32=\"\",0,1)","v":0}]
[null,"Air Voids Net Pay Adjustment",null,null,{"$f":"IF('Air Voids Pay Factor'!U8=\"\",\"\",'Air Voids Pay Factor'!U8)","v":""},null,null,null,{"$f":"IF(E33>0,\"460.2010 Incentive Air Voids HMA Pavement\",\"804.2015 Disincentive Air Voids HMA Pavement\")","v":"460.2010 Incentive Air Voids HMA Pavement"},null,null,{"$f":"IF(E33=\"\",0,1)","v":0}]
[null,"Air Voids Net Pay(%)",null,null,{"$f":"IF(E33=\"\",\"\",IF('Project Info & Instructions'!C22=\"\",\"Enter Contract Unit Price\",Q30))","v":""},null,null,null,null,null,null,{"$f":"IF(E34=\"\",0,1)","v":0}]
[null,{"$f":"IF(M35=\"\",\"\",IF(M35>0,\"Fail\",\"Pass\"))","v":""},null,null,null,null,null,null,null,null,null,{"$f":"SUM(L30:L34)","v":0},{"$f":"IF(L35<5,\"\",M31)","v":""}]
[]
[null,"Nuclear Density Gauge Correlation (Info from QC/QV Density & Correlation Worksheets) "]
[null,"Gauge ID","NUCDENSITYTEC","Gauge Serial #","Offset",null,"Density Standard","Moisture Standard","Gauge Spread (%)","Core Spread (%)"]
[null,"QC-1",{"$f":"IF('QC-1 Density Worksheet'!I5=\"\",\"Enter Tech Info\",'QC-1 Density Worksheet'!I5)","v":"Enter Tech Info"},{"$f":"IF('QC-1 Correlation'!W14=\"\",\"Enter Serial #\",'QC-1 Correlation'!W14)","v":"Enter Serial #"},{"$f":"IF('QC-1 Correlation'!Y14=\"\",\"\",'QC-1 Correlation'!Y14)","v":""},null,{"$f":"IF('QC-1 Density Worksheet'!M2=\"\",\"\",'QC-1 Density Worksheet'!M2)","v":""},{"$f":"IF('QC-1 Density Worksheet'!M3=\"\",\"\",'QC-1 Density Worksheet'!M3)","v":""},{"$f":"IF('QC-1 Correlation'!AA14=\"\",\"\",'QC-1 Correlation'!AA14)","v":0},{"$f":"IF('QC-1 Correlation'!AA11=\"\",\"\",'QC-1 Correlation'!AA11)","v":""}]
[null,"QC-2",{"$f":"IF('QC-2 Density Worksheet'!I5=\"\",\"Enter Tech Info\",'QC-2 Density Worksheet'!I5)","v":"Enter Tech Info"},{"$f":"IF('QC-1 Correlation'!W15=\"\",\"Enter Serial #\",'QC-1 Correlation'!W15)","v":"Enter Serial #"},{"$f":"IF('QC-1 Correlation'!Y15=\"\",\"\",'QC-1 Correlation'!Y15)","v":""},null,{"$f":"IF('QC-2 Density Worksheet'!M2=\"\",\"\",'QC-2 Density Worksheet'!M2)","v":""},{"$f":"IF('QC-2 Density Worksheet'!M3=\"\",\"\",'QC-2 Density Worksheet'!M3)","v":""},{"$f":"IF('QC-1 Correlation'!AA15=\"\",\"\",'QC-1 Correlation'!AA15)","v":0}]
[null,"QV-1",{"$f":"IF('QV-1 Density Worksheet'!I6=\"\",\"Enter Tech Info\",'QV-1 Density Worksheet'!I6)","v":"Enter Tech Info"},{"$f":"IF('QC-1 Correlation'!W16=\"\",\"Enter Serial #\",'QC-1 Correlation'!W16)","v":"Enter Serial #"},{"$f":"IF('QC-1 Correlation'!Y16=\"\",\"\",'QC-1 Correlation'!Y16)","v":""},null,{"$f":"IF('QV-1 Density Worksheet'!M2=\"\",\"\",'QV-1 Density Worksheet'!M2)","v":""},{"$f":"IF('QV-1 Density Worksheet'!M3=\"\",\"\",'QV-1 Density Worksheet'!M3)","v":""},{"$f":"IF('QC-1 Correlation'!AA16=\"\",\"\",'QC-1 Correlation'!AA16)","v":0}]
[null,"QV-2",{"$f":"IF('QV-2 Density Worksheet'!I6=\"\",\"Enter Tech Info\",'QV-2 Density Worksheet'!I6)","v":"Enter Tech Info"},{"$f":"IF('QV-2 Correlation'!W17=\"\",\"Enter Serial #\",'QV-2 Correlation'!W17)","v":"Enter Serial #"},{"$f":"IF('QC-1 Correlation'!Y17=\"\",\"\",'QC-1 Correlation'!Y17)","v":""},null,{"$f":"IF('QV-2 Density Worksheet'!M2=\"\",\"\",'QV-2 Density Worksheet'!M2)","v":""},{"$f":"IF('QV-2 Density Worksheet'!M3=\"\",\"\",'QV-2 Density Worksheet'!M3)","v":""},{"$f":"IF('QC-1 Correlation'!AA17=\"\",\"\",'QC-1 Correlation'!AA17)","v":0}]
[null,null,null,null,null,null,null,null,{"$f":"'Project Info & Instructions'!A6","v":"Revised 04-26-18"}]

{"sheet":"QC-1 Density Worksheet","index":6,"n_rows":25,"n_cols":97,"rows_kept":25,"cut":false,"hidden":false,"merged":[[4,5,4,6],[3,1,3,3],[4,1,4,3],[2,8,2,9],[4,8,4,10],[25,0,32,14],[23,13,23,14],[22,13,22,14],[21,13,21,14],[20,13,20,14],[24,0,24,14],[19,13,19,14],[18,13,18,14],[17,13,17,14],[16,13,16,14],[15,13,15,14],[13,13,13,14],[0,0,0,4],[3,8,3,10],[7,8,7,10],[11,9,11,11],[1,0,1,4],[5,8,5,10],[11,3,11,5],[11,6,11,8],[5,0,10,6],[8,8,8,10],[9,8,9,10],[10,8,10,10],[11,0,11,1],[1,8,1,9],[3,5,3,6],[12,95,12,97],[13,95,13,96],[14,95,14,96],[1,12,1,14],[12,13,12,14],[11,12,11,14],[10,12,10,14],[9,12,9,14],[8,12,8,14],[7,12,7,14],[6,12,6,14],[5,12,5,14],[2,12,2,14],[4,12,4,14],[3,12,3,14],[14,13,14,14],[11,82,11,86],[12,81,12,82],[12,83,12,84],[12,85,12,86],[12,89,12,93],[20,95,20,96],[21,95,21,96],[22,95,22,96],[23,95,23,96],[15,95,15,96],[16,95,16,96],[17,95,17,96],[18,95,18,96],[19,95,19,96]]}
["PWL DENSITY DATA FORM (LANE FOOT)",null,null,null,null,{"$f":"'Project Info & Instructions'!A6","v":"Revised 04-26-18"}]
["               Nuclear HMA Density QC/QV Testing Records",null,null,null,null,{"$f":"CONCATENATE(\"TEST STRIP #\",'Project Info & Instructions'!C11)","v":"TEST STRIP #"},"QC-1","LAYER:",{"$f":"IF('Project Info & Instructions'!G16=\"\",\"\",'Project Info & Instructions'!G16)","v":""},null,null,"Density\nStandard:"]
[null,null,null,null,null,null,null,null,null,null,null,"Moisture\nStandard: "]
["Project ID:",{"$f":"IF('Project Info & Instructions'!C13=\"\",\"\",'Project Info & Instructions'!C13)","v":""},null,null,"Road Name:",{"$f":"IF('Project Info & Instructions'!C14=\"\",\"\",'Project Info & Instructions'!C14)","v":""},null,"Contractor:",{"$f":"IF('Project Info & Instructions'!G20=\"\",\"\",'Project Info & Instructions'!G20)","v":""},null,null,"Gauge Serial #:",null,null,null,11]
["Project\nLeader:",{"$f":"IF('Project Info & Instructions'!G19=\"\",\"\",'Project Info & Instructions'!G19)","v":""},null,null,"County:",{"$f":"IF('Project Info & Instructions'!C15=\"\",\"\",'Project Info & Instructions'!C15)","v":""},null,"QC \nNUCDENSITYTEC:",null,null,null,"WisDOT Mix #:",{"$f":"IF('Project Info & Instructions'!C16=\"\",\"\",'Project Info & Instructions'!C16)","v":""}]
["TEST STRIP - Field Worksheet\n\nOffsets are predetermined according to layout in SPV\n\nGauge offset is locked at ZERO since Raw Gauge Readings are needed\n\nTarget Max Gmm is average from 3 split samples (locked)\n",null,null,null,null,null,null,"QV \nNUCDENSITYTEC:","N/A",null,null,"Mix Type:",{"$f":"IF('Project Info & Instructions'!C21=\"\",\"\",'Project Info & Instructions'!C21)","v":"--"}]
[null,null,null,null,null,null,null,"Start:",{"$f":"IF('Project Info & Instructions'!G14=\"\",\"\",'Project Info & Instructions'!G14)","v":""},"End:",{"$f":"IF('Project Info & Instructions'!I14=\"\",\"\",'Project Info & Instructions'!I14)","v":""},"Target Gmm:",{"$f":"IF('Project Info & Instructions'!O9=2,'Project Info & Instructions'!J9,'Air Voids Pay Factor'!D10)","v":""}]
[null,null,null,null,null,null,null,"Estimated\nLength (ft):",{"$f":"IF('Project Info & Instructions'!G15=\"\",\"\",'Project Info & Instructions'!G15)","v":""},null,null,"Target Max Density (PCF):",{"$f":"IF(M7=\"\",\"\",M7*62.24)","v":""}]
[null,null,null,null,null,null,null,"Lane Width (ft):",{"$f":"IF('Project Info & Instructions'!G11=\"\",\"\",'Project Info & Instructions'!G11)","v":""},null,null,"Required\nDensity %:",{"$f":"IF('Project Info & Instructions'!G18=\"\",\"\",'Project Info & Instructions'!G18)","v":"Enter Mix and Layer Info"}]
[null,null,null,null,null,null,null,"Nominal \nThickness(in):",{"$f":"IF('Project Info & Instructions'!G12=\"\",\"\",'Project Info & Instructions'!G12)","v":""},null,null,"Date Placed:",{"$f":"IF('Project Info & Instructions'!C10=\"\",\"\",'Project Info & Instructions'!C10)","v":""}]
[null,null,null,null,null,null,null,"Gauge Offset","ZERO",null,null,"Date Tested:",{"$f":"IF('Project Info & Instructions'!C10=\"\",\"\",'Project Info & Instructions'!C10)","v":""}]
["Gauge/Core Spacing (ft)",null,{"$f":"IF('Project Info & Instructions'!G23=\"\",\"\",'Project Info & Instructions'!G23)","v":50},"Reading 1",null,null,"Reading  2 (rotate 180)",null,null,"Reading  3 (If Reading 1 & 2 are not within +/- 1.0 pcf of one another, collect Reading 3.)",null,null,"Average",null,null,null,null,null,null,null,null,null,null,null,null,null,null,null,null,null,null,null,null,null,null,null,null,null,null,null,null,null,null,null,null,null,null,null,null,null,null,null,null,null,null,null,null,null,null,null,null,null,null,null,null,null,null,null,null,null,null,null,null,null,null,null,null,null,null,null,null,null,"ID","Variation from Avg"]
["Lot / Sub Lot ID","Random Station","Offset from CL","M Count / \nD Count","Wet Density 1             ","% Max Density 1","M Count / \nD Count","Wet Density 2            ","% Max Density 2","M Count / \nD Count","Wet Density 3             ","% Max Density 3","Average PCF","% Max Density",null,null,null,null,null,null,null,null,null,null,null,null,null,null,null,null,null,null,null,null,null,null,null,null,null,null,null,null,null,null,null,null,null,null,null,null,null,null,null,null,null,null,null,null,null,null,null,null,null,null,null,null,null,null,null,null,null,null,null,null,null,null,null,null,null,null,null,null,"Read 1",null,"Read 2",null,"Read 3",null,null,null,"Filter Outlier",null,null,null,null,null,"Nuc Avg Excluding Outlier"]
[{"$f":"'Core Data'!A10","v":""},{"$f":"IF(B16=\"\",\"\",B16-2*C12)","v":-100},{"$f":"IF('Project Info & Instructions'!G11=\"\",\"\",1.5)","v":""},null,null,{"$f":"IF(E14=\"\",\"\",(+E14/$M$8))","v":""},null,null,{"$f":"IF(H14=\"\",\"\",(+H14/$M$8))","v":""},null,null,{"$f":"IF(K14=\"\",\"\",(+K14/$M$8))","v":""},{"$f":"IF(F14=\"\",\"\",CS14)","v":""},{"$f":"IF(F14=\"\",\"\",((M14/$M$8)*100))","v":""},null,null,null,null,null,null,null,null,null,null,null,null,null,null,null,null,null,null,null,null,null,null,null,null,null,null,null,null,null,null,null,null,null,null,null,null,null,null,null,null,null,null,null,null,null,null,null,null,null,null,null,null,null,null,null,null,null,null,null,null,null,null,null,null,null,null,null,null,"1-1a",{"$f":"ABS(AVERAGE(E14,H14,K14)-E14)","v":{"$error":"#DIV/0!"}},"1-1a",{"$f":"ABS(AVERAGE(E14,H14,K14)-H14)","v":{"$error":"#DIV/0!"}},"1-1a",{"$f":"ABS(AVERAGE(E14,H14,K14)-K14)","v":{"$error":"#DIV/0!"}},null,null,{"$f":"IF(CF14=MAX($CF14,$CH14,$CJ14),0,E14)","v":{"$error":"#DIV/0!"}},null,{"$f":"IF(CH14=MAX($CF14,$CH14,$CJ14),0,H14)","v":{"$error":"#DIV/0!"}},null,{"$f":"IF(CJ14=MAX($CF14,$CH14,$CJ14),0,K14)","v":{"$error":"#DIV/0!"}},null,{"$f":"AVERAGEIF(CM14:CQ14,\">0\",CM14:CQ14)","v":{"$error":"#DIV/0!"}}]
[{"$f":"'Core Data'!A11","v":""},{"$f":"IF(B16=\"\",\"\",B16-C12)","v":-50},{"$f":"IF('Project Info & Instructions'!G11=\"\",\"\",3.5)","v":""},null,null,{"$f":"IF(E15=\"\",\"\",(+E15/$M$8))","v":""},null,null,{"$f":"IF(H15=\"\",\"\",(+H15/$M$8))","v":""},null,null,"","","",null,null,null,null,null,null,null,null,null,null,null,null,null,null,null,null,null,null,null,null,null,null,null,null,null,null,null,null,null,null,null,null,null,null,null,null,null,null,null,null,null,null,null,null,null,null,null,null,null,null,null,null,null,null,null,null,null,null,null,null,null,null,null,null,null,null,null,null,"1-1b",{"$error":"#DIV/0!"},"1-1b",{"$error":"#DIV/0!"},"1-1b",{"$error":"#DIV/0!"},null,null,{"$error":"#DIV/0!"},null,{"$error":"#DIV/0!"},null,{"$error":"#DIV/0!"},null,{"$error":"#DIV/0!"}]
[{"$f":"'Core Data'!A12","v":""},{"$f":"'Project Info & Instructions'!G24","v":0},{"$f":"IF('Project Info & Instructions'!G11=\"\",\"\",'Project Info & Instructions'!G11/2)","v":""},null,null,"",null,null,"",null,null,"","","",null,null,null,null,null,null,null,null,null,null,null,null,null,null,null,null,null,null,null,null,null,null,null,null,null,null,null,null,null,null,null,null,null,null,null,null,null,null,null,null,null,null,null,null,null,null,null,null,null,null,null,null,null,null,null,null,null,null,null,null,null,null,null,null,null,null,null,null,"1-1c",{"$error":"#DIV/0!"},"1-1c",{"$error":"#DIV/0!"},"1-1c",{"$error":"#DIV/0!"},null,null,{"$error":"#DIV/0!"},null,{"$error":"#DIV/0!"},null,{"$error":"#DIV/0!"},null,{"$error":"#DIV/0!"}]
[{"$f":"'Core Data'!A13","v":""},{"$f":"IF(B16=\"\",\"\",B16+C12)","v":50},{"$f":"IF('Project Info & Instructions'!G11=\"\",\"\",'Project Info & Instructions'!G11-3.5)","v":""},null,null,"",null,null,"",null,null,"","","",null,null,null,null,null,null,null,null,null,null,null,null,null,null,null,null,null,null,null,null,null,null,null,null,null,null,null,null,null,null,null,null,null,null,null,null,null,null,null,null,null,null,null,null,null,null,null,null,null,null,null,null,null,null,null,null,null,null,null,null,null,null,null,null,null,null,null,null,"1-2a",{"$error":"#DIV/0!"},"1-2a",{"$error":"#DIV/0!"},"1-2a",{"$error":"#DIV/0!"},null,null,{"$error":"#DIV/0!"},null,{"$error":"#DIV/0!"},null,{"$error":"#DIV/0!"},null,{"$error":"#DIV/0!"}]
[{"$f":"'Core Data'!A14","v":""},{"$f":"IF(B16=\"\",\"\",B16+2*C12)","v":100},{"$f":"IF('Project Info & Instructions'!G11=\"\",\"\",'Project Info & Instructions'!G11-1.5)","v":""},null,null,"",null,null,"",null,null,"","","",null,null,null,null,null,null,null,null,null,null,null,null,null,null,null,null,null,null,null,null,null,null,null,null,null,null,null,null,null,null,null,null,null,null,null,null,null,null,null,null,null,null,null,null,null,null,null,null,null,null,null,null,null,null,null,null,null,null,null,null,null,null,null,null,null,null,null,null,"1-2b",{"$error":"#DIV/0!"},"1-2b",{"$error":"#DIV/0!"},"1-2b",{"$error":"#DIV/0!"},null,null,{"$error":"#DIV/0!"},null,{"$error":"#DIV/0!"},null,{"$error":"#DIV/0!"},null,{"$error":"#DIV/0!"}]
[null,null,null,null,null,"",null,null,"",null,null,"","","",null,null,null,null,null,null,null,null,null,null,null,null,null,null,null,null,null,null,null,null,null,null,null,null,null,null,null,null,null,null,null,null,null,null,null,null,null,null,null,null,null,null,null,null,null,null,null,null,null,null,null,null,null,null,null,null,null,null,null,null,null,null,null,null,null,null,null,null,"1-2c",{"$error":"#DIV/0!"},"1-2c",{"$error":"#DIV/0!"},"1-2c",{"$error":"#DIV/0!"},null,null,{"$error":"#DIV/0!"},null,{"$error":"#DIV/0!"},null,{"$error":"#DIV/0!"},null,{"$error":"#DIV/0!"}]
[{"$f":"'Core Data'!A18","v":""},{"$f":"IF(B22=\"\",\"\",B22-2*C12)","v":-100},{"$f":"C14","v":""},null,null,"",null,null,"",null,null,"","","",null,null,null,null,null,null,null,null,null,null,null,null,null,null,null,null,null,null,null,null,null,null,null,null,null,null,null,null,null,null,null,null,null,null,null,null,null,null,null,null,null,null,null,null,null,null,null,null,null,null,null,null,null,null,null,null,null,null,null,null,null,null,null,null,null,null,null,null,"1-3a",{"$error":"#DIV/0!"},"1-3a",{"$error":"#DIV/0!"},"1-3a",{"$error":"#DIV/0!"},null,null,{"$error":"#DIV/0!"},null,{"$error":"#DIV/0!"},null,{"$error":"#DIV/0!"},null,{"$error":"#DIV/0!"}]
[{"$f":"'Core Data'!A19","v":""},{"$f":"IF(B22=\"\",\"\",B22-C12)","v":-50},{"$f":"C15","v":""},null,null,"",null,null,"",null,null,"","","",null,null,null,null,null,null,null,null,null,null,null,null,null,null,null,null,null,null,null,null,null,null,null,null,null,null,null,null,null,null,null,null,null,null,null,null,null,null,null,null,null,null,null,null,null,null,null,null,null,null,null,null,null,null,null,null,null,null,null,null,null,null,null,null,null,null,null,null,"1-3b",{"$error":"#DIV/0!"},"1-3b",{"$error":"#DIV/0!"},"1-3b",{"$error":"#DIV/0!"},null,null,{"$error":"#DIV/0!"},null,{"$error":"#DIV/0!"},null,{"$error":"#DIV/0!"},null,{"$error":"#DIV/0!"}]
[{"$f":"'Core Data'!A20","v":""},{"$f":"'Project Info & Instructions'!G25","v":0},{"$f":"C16","v":""},null,null,"",null,null,"",null,null,"","","",null,null,null,null,null,null,null,null,null,null,null,null,null,null,null,null,null,null,null,null,null,null,null,null,null,null,null,null,null,null,null,null,null,null,null,null,null,null,null,null,null,null,null,null,null,null,null,null,null,null,null,null,null,null,null,null,null,null,null,null,null,null,null,null,null,null,null,null,"1-3c",{"$error":"#DIV/0!"},"1-3c",{"$error":"#DIV/0!"},"1-3c",{"$error":"#DIV/0!"},null,null,{"$error":"#DIV/0!"},null,{"$error":"#DIV/0!"},null,{"$error":"#DIV/0!"},null,{"$error":"#DIV/0!"}]
[{"$f":"'Core Data'!A21","v":""},{"$f":"IF(B22=\"\",\"\",B22+C12)","v":50},{"$f":"C17","v":""},null,null,"",null,null,"",null,null,"","","",null,null,null,null,null,null,null,null,null,null,null,null,null,null,null,null,null,null,null,null,null,null,null,null,null,null,null,null,null,null,null,null,null,null,null,null,null,null,null,null,null,null,null,null,null,null,null,null,null,null,null,null,null,null,null,null,null,null,null,null,null,null,null,null,null,null,null,null,"1-4a",{"$error":"#DIV/0!"},"1-4a",{"$error":"#DIV/0!"},"1-4a",{"$error":"#DIV/0!"},null,null,{"$error":"#DIV/0!"},null,{"$error":"#DIV/0!"},null,{"$error":"#DIV/0!"},null,{"$error":"#DIV/0!"}]
[{"$f":"'Core Data'!A22","v":""},{"$f":"IF(B22=\"\",\"\",B22+2*C12)","v":100},{"$f":"C18","v":""},null,null,"",null,null,"",null,null,"","","",null,null,null,null,null,null,null,null,null,null,null,null,null,null,null,null,null,null,null,null,null,null,null,null,null,null,null,null,null,null,null,null,null,null,null,null,null,null,null,null,null,null,null,null,null,null,null,null,null,null,null,null,null,null,null,null,null,null,null,null,null,null,null,null,null,null,null,null,"1-4b ",{"$error":"#DIV/0!"},"1-4b ",{"$error":"#DIV/0!"},"1-4b ",{"$error":"#DIV/0!"},null,null,{"$error":"#DIV/0!"},null,{"$error":"#DIV/0!"},null,{"$error":"#DIV/0!"},null,{"$error":"#DIV/0!"}]
["Test Remarks"]

{"sheet":"QC-2 Density Worksheet","index":7,"n_rows":25,"n_cols":96,"rows_kept":25,"cut":false,"hidden":false,"merged":[[24,0,24,14],[25,0,32,14],[21,13,21,14],[21,95,21,96],[22,13,22,14],[22,95,22,96],[23,13,23,14],[23,95,23,96],[18,13,18,14],[18,95,18,96],[19,13,19,14],[19,95,19,96],[20,13,20,14],[20,95,20,96],[15,13,15,14],[15,95,15,96],[16,13,16,14],[16,95,16,96],[17,13,17,14],[17,95,17,96],[14,13,14,14],[14,95,14,96],[12,13,12,14],[12,81,12,82],[12,83,12,84],[12,85,12,86],[11,12,11,14],[11,82,11,86],[12,89,12,93],[12,95,12,97],[13,13,13,14],[13,95,13,96],[4,12,4,14],[5,0,10,6],[5,8,5,10],[5,12,5,14],[6,12,6,14],[7,8,7,10],[7,12,7,14],[8,8,8,10],[8,12,8,14],[9,8,9,10],[9,12,9,14],[10,8,10,10],[10,12,10,14],[4,1,4,3],[4,5,4,6],[3,12,3,14],[0,0,0,4],[1,0,1,4],[1,12,1,14],[2,12,2,14],[2,8,2,9],[3,1,3,3],[3,5,3,6],[11,0,11,1],[1,8,1,9],[3,8,3,10],[4,8,4,10],[11,3,11,5],[11,6,11,8],[11,9,11,11]]}
["PWL DENSITY DATA FORM (LANE FOOT)",null,null,null,null,{"$f":"'Project Info & Instructions'!A6","v":"Revised 04-26-18"}]
["               Nuclear HMA Density QC/QV Testing Records",null,null,null,null,{"$f":"CONCATENATE(\"TEST STRIP #\",'Project Info & Instructions'!C11)","v":"TEST STRIP #"},"QC-2","LAYER:",{"$f":"IF('Project Info & Instructions'!G16=\"\",\"\",'Project Info & Instructions'!G16)","v":""},null,null,"Density\nStandard:"]
[null,null,null,null,null,null,null,null,null,null,null,"Moisture\nStandard: "]
["Project ID:",{"$f":"IF('Project Info & Instructions'!C13=\"\",\"\",'Project Info & Instructions'!C13)","v":""},null,null,"Road Name:",{"$f":"IF('Project Info & Instructions'!C14=\"\",\"\",'Project Info & Instructions'!C14)","v":""},null,"Contractor:",{"$f":"IF('Project Info & Instructions'!G20=\"\",\"\",'Project Info & Instructions'!G20)","v":""},null,null,"Gauge Serial #:"]
["Project\nLeader:",{"$f":"IF('Project Info & Instructions'!G19=\"\",\"\",'Project Info & Instructions'!G19)","v":""},null,null,"County:",{"$f":"IF('Project Info & Instructions'!C15=\"\",\"\",'Project Info & Instructions'!C15)","v":""},null,"QC \nNUCDENSITYTEC:",null,null,null,"WisDOT Mix #:",{"$f":"IF('Project Info & Instructions'!C16=\"\",\"\",'Project Info & Instructions'!C16)","v":""}]
["TEST STRIP - Field Worksheet\n\nOffsets are predetermined according to layout in SPV\n\nGauge offset is locked at ZERO since Raw Gauge Readings are needed\n\nTarget Max Gmm is average from 3 split samples (locked)\n",null,null,null,null,null,null,"QV \nNUCDENSITYTEC:","N/A",null,null,"Mix Type:",{"$f":"IF('Project Info & Instructions'!C21=\"\",\"\",'Project Info & Instructions'!C21)","v":"--"}]
[null,null,null,null,null,null,null,"Start:",{"$f":"IF('Project Info & Instructions'!G14=\"\",\"\",'Project Info & Instructions'!G14)","v":""},"End:",{"$f":"IF('Project Info & Instructions'!I14=\"\",\"\",'Project Info & Instructions'!I14)","v":""},"Target Gmm:",{"$f":"IF('Project Info & Instructions'!O9=2,'Project Info & Instructions'!J9,'Air Voids Pay Factor'!D10)","v":""}]
[null,null,null,null,null,null,null,"Estimated\nLength (ft):",{"$f":"IF('Project Info & Instructions'!G15=\"\",\"\",'Project Info & Instructions'!G15)","v":""},null,null,"Target Max Density (PCF):",{"$f":"IF(M7=\"\",\"\",M7*62.24)","v":""}]
[null,null,null,null,null,null,null,"Lane Width (ft):",{"$f":"IF('Project Info & Instructions'!G11=\"\",\"\",'Project Info & Instructions'!G11)","v":""},null,null,"Required\nDensity %:",{"$f":"IF('Project Info & Instructions'!G18=\"\",\"\",'Project Info & Instructions'!G18)","v":"Enter Mix and Layer Info"}]
[null,null,null,null,null,null,null,"Nominal \nThickness(in):",{"$f":"IF('Project Info & Instructions'!G12=\"\",\"\",'Project Info & Instructions'!G12)","v":""},null,null,"Date Placed:",{"$f":"IF('Project Info & Instructions'!C10=\"\",\"\",'Project Info & Instructions'!C10)","v":""}]
[null,null,null,null,null,null,null,"Gauge Offset","ZERO",null,null,"Date Tested:",{"$f":"IF('Project Info & Instructions'!C10=\"\",\"\",'Project Info & Instructions'!C10)","v":""}]
["Gauge/Core Spacing (ft)",null,{"$f":"'QC-1 Density Worksheet'!C12","v":50},"Reading 1",null,null,"Reading  2 (rotate 180)",null,null,"Reading  3 (If Reading 1 & 2 are not within +/- 1.0 pcf of one another, collect Reading 3.)",null,null,"Average",null,null,null,null,null,null,null,null,null,null,null,null,null,null,null,null,null,null,null,null,null,null,null,null,null,null,null,null,null,null,null,null,null,null,null,null,null,null,null,null,null,null,null,null,null,null,null,null,null,null,null,null,null,null,null,null,null,null,null,null,null,null,null,null,null,null,null,null,"ID","Variation from Avg"]
["Lot / Sub Lot ID","Random Station","Offset from CL","M Count / \nD Count","Wet Density 1             ","% Max Density 1","M Count / \nD Count","Wet Density 2            ","% Max Density 2","M Count / \nD Count","Wet Density 3             ","% Max Density 3","Average PCF","% Max Density",null,null,null,null,null,null,null,null,null,null,null,null,null,null,null,null,null,null,null,null,null,null,null,null,null,null,null,null,null,null,null,null,null,null,null,null,null,null,null,null,null,null,null,null,null,null,null,null,null,null,null,null,null,null,null,null,null,null,null,null,null,null,null,null,null,null,null,"Read 1",null,"Read 2",null,"Read 3",null,null,null,"Filter Outlier",null,null,null,null,null,"Nuc Avg Excluding Outlier"]
[{"$f":"'Core Data'!A10","v":""},{"$f":"IF(B16=\"\",\"\",B16-2*C12)","v":-100},{"$f":"'QC-1 Density Worksheet'!C14","v":""},null,null,{"$f":"IF(E14=\"\",\"\",(+E14/$M$8))","v":""},null,null,{"$f":"IF(H14=\"\",\"\",(+H14/$M$8))","v":""},null,null,{"$f":"IF(K14=\"\",\"\",(+K14/$M$8))","v":""},{"$f":"IF(F14=\"\",\"\",CR14)","v":""},{"$f":"IF(F14=\"\",\"\",((M14/$M$8)*100))","v":""},null,null,null,null,null,null,null,null,null,null,null,null,null,null,null,null,null,null,null,null,null,null,null,null,null,null,null,null,null,null,null,null,null,null,null,null,null,null,null,null,null,null,null,null,null,null,null,null,null,null,null,null,null,null,null,null,null,null,null,null,null,null,null,null,null,null,null,"1-1a",{"$f":"ABS(AVERAGE(E14,H14,K14)-E14)","v":{"$error":"#DIV/0!"}},"1-1a",{"$f":"ABS(AVERAGE(E14,H14,K14)-H14)","v":{"$error":"#DIV/0!"}},"1-1a",{"$f":"ABS(AVERAGE(E14,H14,K14)-K14)","v":{"$error":"#DIV/0!"}},null,null,{"$f":"IF(CE14=MAX($CE14,$CG14,$CI14),0,E14)","v":{"$error":"#DIV/0!"}},null,{"$f":"IF(CG14=MAX($CE14,$CG14,$CI14),0,H14)","v":{"$error":"#DIV/0!"}},null,{"$f":"IF(CI14=MAX($CE14,$CG14,$CI14),0,K14)","v":{"$error":"#DIV/0!"}},null,{"$f":"AVERAGEIF(CL14:CP14,\">0\",CL14:CP14)","v":{"$error":"#DIV/0!"}}]
[{"$f":"'Core Data'!A11","v":""},{"$f":"IF(B16=\"\",\"\",B16-C12)","v":-50},{"$f":"'QC-1 Density Worksheet'!C15","v":""},null,null,"",null,null,"",null,null,"","","",null,null,null,null,null,null,null,null,null,null,null,null,null,null,null,null,null,null,null,null,null,null,null,null,null,null,null,null,null,null,null,null,null,null,null,null,null,null,null,null,null,null,null,null,null,null,null,null,null,null,null,null,null,null,null,null,null,null,null,null,null,null,null,null,null,null,null,"1-1b",{"$error":"#DIV/0!"},"1-1b",{"$error":"#DIV/0!"},"1-1b",{"$error":"#DIV/0!"},null,null,{"$error":"#DIV/0!"},null,{"$error":"#DIV/0!"},null,{"$error":"#DIV/0!"},null,{"$error":"#DIV/0!"}]
[{"$f":"'Core Data'!A12","v":""},{"$f":"'QC-1 Density Worksheet'!B16","v":0},{"$f":"'QC-1 Density Worksheet'!C16","v":""},null,null,"",null,null,"",null,null,"","","",null,null,null,null,null,null,null,null,null,null,null,null,null,null,null,null,null,null,null,null,null,null,null,null,null,null,null,null,null,null,null,null,null,null,null,null,null,null,null,null,null,null,null,null,null,null,null,null,null,null,null,null,null,null,null,null,null,null,null,null,null,null,null,null,null,null,null,"1-1c",{"$error":"#DIV/0!"},"1-1c",{"$error":"#DIV/0!"},"1-1c",{"$error":"#DIV/0!"},null,null,{"$error":"#DIV/0!"},null,{"$error":"#DIV/0!"},null,{"$error":"#DIV/0!"},null,{"$error":"#DIV/0!"}]
[{"$f":"'Core Data'!A13","v":""},{"$f":"IF(B16=\"\",\"\",B16+C12)","v":50},{"$f":"'QC-1 Density Worksheet'!C17","v":""},null,null,"",null,null,"",null,null,"","","",null,null,null,null,null,null,null,null,null,null,null,null,null,null,null,null,null,null,null,null,null,null,null,null,null,null,null,null,null,null,null,null,null,null,null,null,null,null,null,null,null,null,null,null,null,null,null,null,null,null,null,null,null,null,null,null,null,null,null,null,null,null,null,null,null,null,null,"1-2a",{"$error":"#DIV/0!"},"1-2a",{"$error":"#DIV/0!"},"1-2a",{"$error":"#DIV/0!"},null,null,{"$error":"#DIV/0!"},null,{"$error":"#DIV/0!"},null,{"$error":"#DIV/0!"},null,{"$error":"#DIV/0!"}]
[{"$f":"'Core Data'!A14","v":""},{"$f":"IF(B16=\"\",\"\",B16+2*C12)","v":100},{"$f":"'QC-1 Density Worksheet'!C18","v":""},null,null,"",null,null,"",null,null,"","","",null,null,null,null,null,null,null,null,null,null,null,null,null,null,null,null,null,null,null,null,null,null,null,null,null,null,null,null,null,null,null,null,null,null,null,null,null,null,null,null,null,null,null,null,null,null,null,null,null,null,null,null,null,null,null,null,null,null,null,null,null,null,null,null,null,null,null,"1-2b",{"$error":"#DIV/0!"},"1-2b",{"$error":"#DIV/0!"},"1-2b",{"$error":"#DIV/0!"},null,null,{"$error":"#DIV/0!"},null,{"$error":"#DIV/0!"},null,{"$error":"#DIV/0!"},null,{"$error":"#DIV/0!"}]
[null,null,null,null,null,"",null,null,"",null,null,"","","",null,null,null,null,null,null,null,null,null,null,null,null,null,null,null,null,null,null,null,null,null,null,null,null,null,null,null,null,null,null,null,null,null,null,null,null,null,null,null,null,null,null,null,null,null,null,null,null,null,null,null,null,null,null,null,null,null,null,null,null,null,null,null,null,null,null,null,"1-2c",{"$error":"#DIV/0!"},"1-2c",{"$error":"#DIV/0!"},"1-2c",{"$error":"#DIV/0!"},null,null,{"$error":"#DIV/0!"},null,{"$error":"#DIV/0!"},null,{"$error":"#DIV/0!"},null,{"$error":"#DIV/0!"}]
[{"$f":"'Core Data'!A18","v":""},{"$f":"IF(B22=\"\",\"\",B22-2*C12)","v":-100},{"$f":"'QC-1 Density Worksheet'!C20","v":""},null,null,"",null,null,"",null,null,"","","",null,null,null,null,null,null,null,null,null,null,null,null,null,null,null,null,null,null,null,null,null,null,null,null,null,null,null,null,null,null,null,null,null,null,null,null,null,null,null,null,null,null,null,null,null,null,null,null,null,null,null,null,null,null,null,null,null,null,null,null,null,null,null,null,null,null,null,"1-3a",{"$error":"#DIV/0!"},"1-3a",{"$error":"#DIV/0!"},"1-3a",{"$error":"#DIV/0!"},null,null,{"$error":"#DIV/0!"},null,{"$error":"#DIV/0!"},null,{"$error":"#DIV/0!"},null,{"$error":"#DIV/0!"}]
[{"$f":"'Core Data'!A19","v":""},{"$f":"IF(B22=\"\",\"\",B22-C12)","v":-50},{"$f":"'QC-1 Density Worksheet'!C21","v":""},null,null,"",null,null,"",null,null,"","","",null,null,null,null,null,null,null,null,null,null,null,null,null,null,null,null,null,null,null,null,null,null,null,null,null,null,null,null,null,null,null,null,null,null,null,null,null,null,null,null,null,null,null,null,null,null,null,null,null,null,null,null,null,null,null,null,null,null,null,null,null,null,null,null,null,null,null,"1-3b",{"$error":"#DIV/0!"},"1-3b",{"$error":"#DIV/0!"},"1-3b",{"$error":"#DIV/0!"},null,null,{"$error":"#DIV/0!"},null,{"$error":"#DIV/0!"},null,{"$error":"#DIV/0!"},null,{"$error":"#DIV/0!"}]
[{"$f":"'Core Data'!A20","v":""},{"$f":"'QC-1 Density Worksheet'!B22","v":0},{"$f":"'QC-1 Density Worksheet'!C22","v":""},null,null,"",null,null,"",null,null,"","","",null,null,null,null,null,null,null,null,null,null,null,null,null,null,null,null,null,null,null,null,null,null,null,null,null,null,null,null,null,null,null,null,null,null,null,null,null,null,null,null,null,null,null,null,null,null,null,null,null,null,null,null,null,null,null,null,null,null,null,null,null,null,null,null,null,null,null,"1-3c",{"$error":"#DIV/0!"},"1-3c",{"$error":"#DIV/0!"},"1-3c",{"$error":"#DIV/0!"},null,null,{"$error":"#DIV/0!"},null,{"$error":"#DIV/0!"},null,{"$error":"#DIV/0!"},null,{"$error":"#DIV/0!"}]
[{"$f":"'Core Data'!A21","v":""},{"$f":"IF(B22=\"\",\"\",B22+C12)","v":50},{"$f":"'QC-1 Density Worksheet'!C23","v":""},null,null,"",null,null,"",null,null,"","","",null,null,null,null,null,null,null,null,null,null,null,null,null,null,null,null,null,null,null,null,null,null,null,null,null,null,null,null,null,null,null,null,null,null,null,null,null,null,null,null,null,null,null,null,null,null,null,null,null,null,null,null,null,null,null,null,null,null,null,null,null,null,null,null,null,null,null,"1-4a",{"$error":"#DIV/0!"},"1-4a",{"$error":"#DIV/0!"},"1-4a",{"$error":"#DIV/0!"},null,null,{"$error":"#DIV/0!"},null,{"$error":"#DIV/0!"},null,{"$error":"#DIV/0!"},null,{"$error":"#DIV/0!"}]
[{"$f":"'Core Data'!A22","v":""},{"$f":"IF(B22=\"\",\"\",B22+2*C12)","v":100},{"$f":"'QC-1 Density Worksheet'!C24","v":""},null,null,"",null,null,"",null,null,"","","",null,null,null,null,null,null,null,null,null,null,null,null,null,null,null,null,null,null,null,null,null,null,null,null,null,null,null,null,null,null,null,null,null,null,null,null,null,null,null,null,null,null,null,null,null,null,null,null,null,null,null,null,null,null,null,null,null,null,null,null,null,null,null,null,null,null,null,"1-4b ",{"$error":"#DIV/0!"},"1-4b ",{"$error":"#DIV/0!"},"1-4b ",{"$error":"#DIV/0!"},null,null,{"$error":"#DIV/0!"},null,{"$error":"#DIV/0!"},null,{"$error":"#DIV/0!"},null,{"$error":"#DIV/0!"}]
["Test Remarks"]

{"sheet":"QV-1 Density Worksheet","index":8,"n_rows":25,"n_cols":96,"rows_kept":25,"cut":false,"hidden":false,"merged":[[24,0,24,14],[25,0,32,14],[21,13,21,14],[21,95,21,96],[22,13,22,14],[22,95,22,96],[23,13,23,14],[23,95,23,96],[18,13,18,14],[18,95,18,96],[19,13,19,14],[19,95,19,96],[20,13,20,14],[20,95,20,96],[15,13,15,14],[15,95,15,96],[16,13,16,14],[16,95,16,96],[17,13,17,14],[17,95,17,96],[14,13,14,14],[14,95,14,96],[12,13,12,14],[12,81,12,82],[12,83,12,84],[12,85,12,86],[11,12,11,14],[11,82,11,86],[12,89,12,93],[12,95,12,97],[13,13,13,14],[13,95,13,96],[4,12,4,14],[5,0,10,6],[5,8,5,10],[5,12,5,14],[6,12,6,14],[7,8,7,10],[7,12,7,14],[8,8,8,10],[8,12,8,14],[9,8,9,10],[9,12,9,14],[10,8,10,10],[10,12,10,14],[4,1,4,3],[4,5,4,6],[3,12,3,14],[0,0,0,4],[1,0,1,4],[1,12,1,14],[2,12,2,14],[2,8,2,9],[3,1,3,3],[3,5,3,6],[11,0,11,1],[1,8,1,9],[3,8,3,10],[4,8,4,10],[11,3,11,5],[11,6,11,8],[11,9,11,11]]}
["PWL DENSITY DATA FORM (LANE FOOT)",null,null,null,null,{"$f":"'Project Info & Instructions'!A6","v":"Revised 04-26-18"}]
["               Nuclear HMA Density QC/QV Testing Records",null,null,null,null,{"$f":"CONCATENATE(\"TEST STRIP #\",'Project Info & Instructions'!C11)","v":"TEST STRIP #"},"QV-1","LAYER:",{"$f":"IF('Project Info & Instructions'!G16=\"\",\"\",'Project Info & Instructions'!G16)","v":""},null,null,"Density\nStandard:"]
[null,null,null,null,null,null,null,null,null,null,null,"Moisture\nStandard: "]
["Project ID:",{"$f":"IF('Project Info & Instructions'!C13=\"\",\"\",'Project Info & Instructions'!C13)","v":""},null,null,"Road Name:",{"$f":"IF('Project Info & Instructions'!C14=\"\",\"\",'Project Info & Instructions'!C14)","v":""},null,"Contractor:",{"$f":"IF('Project Info & Instructions'!G20=\"\",\"\",'Project Info & Instructions'!G20)","v":""},null,null,"Gauge Serial #:"]
["Project\nLeader:",{"$f":"IF('Project Info & Instructions'!G19=\"\",\"\",'Project Info & Instructions'!G19)","v":""},null,null,"County:",{"$f":"IF('Project Info & Instructions'!C15=\"\",\"\",'Project Info & Instructions'!C15)","v":""},null,"QC \nNUCDENSITYTEC:","N/A",null,null,"WisDOT Mix #:",{"$f":"IF('Project Info & Instructions'!C16=\"\",\"\",'Project Info & Instructions'!C16)","v":""}]
["TEST STRIP - Field Worksheet\n\nOffsets are predetermined according to layout in SPV\n\nGauge offset is locked at ZERO since Raw Gauge Readings are needed\n\nTarget Max Gmm is average from 3 split samples (locked)\n",null,null,null,null,null,null,"QV \nNUCDENSITYTEC:",null,null,null,"Mix Type:",{"$f":"IF('Project Info & Instructions'!C21=\"\",\"\",'Project Info & Instructions'!C21)","v":"--"}]
[null,null,null,null,null,null,null,"Start:",{"$f":"IF('Project Info & Instructions'!G14=\"\",\"\",'Project Info & Instructions'!G14)","v":""},"End:",{"$f":"IF('Project Info & Instructions'!I14=\"\",\"\",'Project Info & Instructions'!I14)","v":""},"Target Gmm:",{"$f":"IF('Project Info & Instructions'!O9=2,'Project Info & Instructions'!J9,'Air Voids Pay Factor'!D10)","v":""}]
[null,null,null,null,null,null,null,"Estimated\nLength (ft):",{"$f":"IF('Project Info & Instructions'!G15=\"\",\"\",'Project Info & Instructions'!G15)","v":""},null,null,"Target Max Density (PCF):",{"$f":"IF(M7=\"\",\"\",M7*62.24)","v":""}]
[null,null,null,null,null,null,null,"Lane Width (ft):",{"$f":"IF('Project Info & Instructions'!G11=\"\",\"\",'Project Info & Instructions'!G11)","v":""},null,null,"Required\nDensity %:",{"$f":"IF('Project Info & Instructions'!G18=\"\",\"\",'Project Info & Instructions'!G18)","v":"Enter Mix and Layer Info"}]
[null,null,null,null,null,null,null,"Nominal \nThickness(in):",{"$f":"IF('Project Info & Instructions'!G12=\"\",\"\",'Project Info & Instructions'!G12)","v":""},null,null,"Date Placed:",{"$f":"IF('Project Info & Instructions'!C10=\"\",\"\",'Project Info & Instructions'!C10)","v":""}]
[null,null,null,null,null,null,null,"Gauge Offset","ZERO",null,null,"Date Tested:",{"$f":"IF('Project Info & Instructions'!C10=\"\",\"\",'Project Info & Instructions'!C10)","v":""}]
["Gauge/Core Spacing (ft)",null,{"$f":"'QC-1 Density Worksheet'!C12","v":50},"Reading 1",null,null,"Reading  2 (rotate 180)",null,null,"Reading  3 (If Reading 1 & 2 are not within +/- 1.0 pcf of one another, collect Reading 3.)",null,null,"Average",null,null,null,null,null,null,null,null,null,null,null,null,null,null,null,null,null,null,null,null,null,null,null,null,null,null,null,null,null,null,null,null,null,null,null,null,null,null,null,null,null,null,null,null,null,null,null,null,null,null,null,null,null,null,null,null,null,null,null,null,null,null,null,null,null,null,null,null,"ID","Variation from Avg"]
["Lot / Sub Lot ID","Random Station","Offset from CL","M Count / \nD Count","Wet Density 1             ","% Max Density 1","M Count / \nD Count","Wet Density 2            ","% Max Density 2","M Count / \nD Count","Wet Density 3             ","% Max Density 3","Average PCF","% Max Density",null,null,null,null,null,null,null,null,null,null,null,null,null,null,null,null,null,null,null,null,null,null,null,null,null,null,null,null,null,null,null,null,null,null,null,null,null,null,null,null,null,null,null,null,null,null,null,null,null,null,null,null,null,null,null,null,null,null,null,null,null,null,null,null,null,null,null,"Read 1",null,"Read 2",null,"Read 3",null,null,null,"Filter Outlier",null,null,null,null,null,"Nuc Avg Excluding Outlier"]
[{"$f":"'Core Data'!A10","v":""},{"$f":"IF(B16=\"\",\"\",B16-2*C12)","v":-100},{"$f":"'QC-1 Density Worksheet'!C14","v":""},null,null,{"$f":"IF(E14=\"\",\"\",(+E14/$M$8))","v":""},null,null,{"$f":"IF(H14=\"\",\"\",(+H14/$M$8))","v":""},null,null,{"$f":"IF(K14=\"\",\"\",(+K14/$M$8))","v":""},{"$f":"IF(F14=\"\",\"\",CR14)","v":""},{"$f":"IF(F14=\"\",\"\",((M14/$M$8)*100))","v":""},null,null,null,null,null,null,null,null,null,null,null,null,null,null,null,null,null,null,null,null,null,null,null,null,null,null,null,null,null,null,null,null,null,null,null,null,null,null,null,null,null,null,null,null,null,null,null,null,null,null,null,null,null,null,null,null,null,null,null,null,null,null,null,null,null,null,null,"1-1a",{"$f":"ABS(AVERAGE(E14,H14,K14)-E14)","v":{"$error":"#DIV/0!"}},"1-1a",{"$f":"ABS(AVERAGE(E14,H14,K14)-H14)","v":{"$error":"#DIV/0!"}},"1-1a",{"$f":"ABS(AVERAGE(E14,H14,K14)-K14)","v":{"$error":"#DIV/0!"}},null,null,{"$f":"IF(CE14=MAX($CE14,$CG14,$CI14),0,E14)","v":{"$error":"#DIV/0!"}},null,{"$f":"IF(CG14=MAX($CE14,$CG14,$CI14),0,H14)","v":{"$error":"#DIV/0!"}},null,{"$f":"IF(CI14=MAX($CE14,$CG14,$CI14),0,K14)","v":{"$error":"#DIV/0!"}},null,{"$f":"AVERAGEIF(CL14:CP14,\">0\",CL14:CP14)","v":{"$error":"#DIV/0!"}}]
[{"$f":"'Core Data'!A11","v":""},{"$f":"IF(B16=\"\",\"\",B16-C12)","v":-50},{"$f":"'QC-1 Density Worksheet'!C15","v":""},null,null,"",null,null,"",null,null,"","","",null,null,null,null,null,null,null,null,null,null,null,null,null,null,null,null,null,null,null,null,null,null,null,null,null,null,null,null,null,null,null,null,null,null,null,null,null,null,null,null,null,null,null,null,null,null,null,null,null,null,null,null,null,null,null,null,null,null,null,null,null,null,null,null,null,null,null,"1-1b",{"$error":"#DIV/0!"},"1-1b",{"$error":"#DIV/0!"},"1-1b",{"$error":"#DIV/0!"},null,null,{"$error":"#DIV/0!"},null,{"$error":"#DIV/0!"},null,{"$error":"#DIV/0!"},null,{"$error":"#DIV/0!"}]
[{"$f":"'Core Data'!A12","v":""},{"$f":"'QC-1 Density Worksheet'!B16","v":0},{"$f":"'QC-1 Density Worksheet'!C16","v":""},null,null,"",null,null,"",null,null,"","","",null,null,null,null,null,null,null,null,null,null,null,null,null,null,null,null,null,null,null,null,null,null,null,null,null,null,null,null,null,null,null,null,null,null,null,null,null,null,null,null,null,null,null,null,null,null,null,null,null,null,null,null,null,null,null,null,null,null,null,null,null,null,null,null,null,null,null,"1-1c",{"$error":"#DIV/0!"},"1-1c",{"$error":"#DIV/0!"},"1-1c",{"$error":"#DIV/0!"},null,null,{"$error":"#DIV/0!"},null,{"$error":"#DIV/0!"},null,{"$error":"#DIV/0!"},null,{"$error":"#DIV/0!"}]
[{"$f":"'Core Data'!A13","v":""},{"$f":"IF(B16=\"\",\"\",B16+C12)","v":50},{"$f":"'QC-1 Density Worksheet'!C17","v":""},null,null,"",null,null,"",null,null,"","","",null,null,null,null,null,null,null,null,null,null,null,null,null,null,null,null,null,null,null,null,null,null,null,null,null,null,null,null,null,null,null,null,null,null,null,null,null,null,null,null,null,null,null,null,null,null,null,null,null,null,null,null,null,null,null,null,null,null,null,null,null,null,null,null,null,null,null,"1-2a",{"$error":"#DIV/0!"},"1-2a",{"$error":"#DIV/0!"},"1-2a",{"$error":"#DIV/0!"},null,null,{"$error":"#DIV/0!"},null,{"$error":"#DIV/0!"},null,{"$error":"#DIV/0!"},null,{"$error":"#DIV/0!"}]
[{"$f":"'Core Data'!A14","v":""},{"$f":"IF(B16=\"\",\"\",B16+2*C12)","v":100},{"$f":"'QC-1 Density Worksheet'!C18","v":""},null,null,"",null,null,"",null,null,"","","",null,null,null,null,null,null,null,null,null,null,null,null,null,null,null,null,null,null,null,null,null,null,null,null,null,null,null,null,null,null,null,null,null,null,null,null,null,null,null,null,null,null,null,null,null,null,null,null,null,null,null,null,null,null,null,null,null,null,null,null,null,null,null,null,null,null,null,"1-2b",{"$error":"#DIV/0!"},"1-2b",{"$error":"#DIV/0!"},"1-2b",{"$error":"#DIV/0!"},null,null,{"$error":"#DIV/0!"},null,{"$error":"#DIV/0!"},null,{"$error":"#DIV/0!"},null,{"$error":"#DIV/0!"}]
[null,null,null,null,null,"",null,null,"",null,null,"","","",null,null,null,null,null,null,null,null,null,null,null,null,null,null,null,null,null,null,null,null,null,null,null,null,null,null,null,null,null,null,null,null,null,null,null,null,null,null,null,null,null,null,null,null,null,null,null,null,null,null,null,null,null,null,null,null,null,null,null,null,null,null,null,null,null,null,null,"1-2c",{"$error":"#DIV/0!"},"1-2c",{"$error":"#DIV/0!"},"1-2c",{"$error":"#DIV/0!"},null,null,{"$error":"#DIV/0!"},null,{"$error":"#DIV/0!"},null,{"$error":"#DIV/0!"},null,{"$error":"#DIV/0!"}]
[{"$f":"'Core Data'!A18","v":""},{"$f":"IF(B22=\"\",\"\",B22-2*C12)","v":-100},{"$f":"'QC-1 Density Worksheet'!C20","v":""},null,null,"",null,null,"",null,null,"","","",null,null,null,null,null,null,null,null,null,null,null,null,null,null,null,null,null,null,null,null,null,null,null,null,null,null,null,null,null,null,null,null,null,null,null,null,null,null,null,null,null,null,null,null,null,null,null,null,null,null,null,null,null,null,null,null,null,null,null,null,null,null,null,null,null,null,null,"1-3a",{"$error":"#DIV/0!"},"1-3a",{"$error":"#DIV/0!"},"1-3a",{"$error":"#DIV/0!"},null,null,{"$error":"#DIV/0!"},null,{"$error":"#DIV/0!"},null,{"$error":"#DIV/0!"},null,{"$error":"#DIV/0!"}]
[{"$f":"'Core Data'!A19","v":""},{"$f":"IF(B22=\"\",\"\",B22-C12)","v":-50},{"$f":"'QC-1 Density Worksheet'!C21","v":""},null,null,"",null,null,"",null,null,"","","",null,null,null,null,null,null,null,null,null,null,null,null,null,null,null,null,null,null,null,null,null,null,null,null,null,null,null,null,null,null,null,null,null,null,null,null,null,null,null,null,null,null,null,null,null,null,null,null,null,null,null,null,null,null,null,null,null,null,null,null,null,null,null,null,null,null,null,"1-3b",{"$error":"#DIV/0!"},"1-3b",{"$error":"#DIV/0!"},"1-3b",{"$error":"#DIV/0!"},null,null,{"$error":"#DIV/0!"},null,{"$error":"#DIV/0!"},null,{"$error":"#DIV/0!"},null,{"$error":"#DIV/0!"}]
[{"$f":"'Core Data'!A20","v":""},{"$f":"'QC-1 Density Worksheet'!B22","v":0},{"$f":"'QC-1 Density Worksheet'!C22","v":""},null,null,"",null,null,"",null,null,"","","",null,null,null,null,null,null,null,null,null,null,null,null,null,null,null,null,null,null,null,null,null,null,null,null,null,null,null,null,null,null,null,null,null,null,null,null,null,null,null,null,null,null,null,null,null,null,null,null,null,null,null,null,null,null,null,null,null,null,null,null,null,null,null,null,null,null,null,"1-3c",{"$error":"#DIV/0!"},"1-3c",{"$error":"#DIV/0!"},"1-3c",{"$error":"#DIV/0!"},null,null,{"$error":"#DIV/0!"},null,{"$error":"#DIV/0!"},null,{"$error":"#DIV/0!"},null,{"$error":"#DIV/0!"}]
[{"$f":"'Core Data'!A21","v":""},{"$f":"IF(B22=\"\",\"\",B22+C12)","v":50},{"$f":"'QC-1 Density Worksheet'!C23","v":""},null,null,"",null,null,"",null,null,"","","",null,null,null,null,null,null,null,null,null,null,null,null,null,null,null,null,null,null,null,null,null,null,null,null,null,null,null,null,null,null,null,null,null,null,null,null,null,null,null,null,null,null,null,null,null,null,null,null,null,null,null,null,null,null,null,null,null,null,null,null,null,null,null,null,null,null,null,"1-4a",{"$error":"#DIV/0!"},"1-4a",{"$error":"#DIV/0!"},"1-4a",{"$error":"#DIV/0!"},null,null,{"$error":"#DIV/0!"},null,{"$error":"#DIV/0!"},null,{"$error":"#DIV/0!"},null,{"$error":"#DIV/0!"}]
[{"$f":"'Core Data'!A22","v":""},{"$f":"IF(B22=\"\",\"\",B22+2*C12)","v":100},{"$f":"'QC-1 Density Worksheet'!C24","v":""},null,null,"",null,null,"",null,null,"","","",null,null,null,null,null,null,null,null,null,null,null,null,null,null,null,null,null,null,null,null,null,null,null,null,null,null,null,null,null,null,null,null,null,null,null,null,null,null,null,null,null,null,null,null,null,null,null,null,null,null,null,null,null,null,null,null,null,null,null,null,null,null,null,null,null,null,null,"1-4b ",{"$error":"#DIV/0!"},"1-4b ",{"$error":"#DIV/0!"},"1-4b ",{"$error":"#DIV/0!"},null,null,{"$error":"#DIV/0!"},null,{"$error":"#DIV/0!"},null,{"$error":"#DIV/0!"},null,{"$error":"#DIV/0!"}]
["Test Remarks"]

{"sheet":"QV-2 Density Worksheet","index":9,"n_rows":25,"n_cols":96,"rows_kept":25,"cut":false,"hidden":false,"merged":[[24,0,24,14],[25,0,32,14],[21,13,21,14],[21,95,21,96],[22,13,22,14],[22,95,22,96],[23,13,23,14],[23,95,23,96],[18,13,18,14],[18,95,18,96],[19,13,19,14],[19,95,19,96],[20,13,20,14],[20,95,20,96],[15,13,15,14],[15,95,15,96],[16,13,16,14],[16,95,16,96],[17,13,17,14],[17,95,17,96],[14,13,14,14],[14,95,14,96],[12,13,12,14],[12,81,12,82],[12,83,12,84],[12,85,12,86],[11,12,11,14],[11,82,11,86],[12,89,12,93],[12,95,12,97],[13,13,13,14],[13,95,13,96],[4,12,4,14],[5,0,10,6],[5,8,5,10],[5,12,5,14],[6,12,6,14],[7,8,7,10],[7,12,7,14],[8,8,8,10],[8,12,8,14],[9,8,9,10],[9,12,9,14],[10,8,10,10],[10,12,10,14],[4,1,4,3],[4,5,4,6],[3,12,3,14],[0,0,0,4],[1,0,1,4],[1,12,1,14],[2,12,2,14],[2,8,2,9],[3,1,3,3],[3,5,3,6],[11,0,11,1],[1,8,1,9],[3,8,3,10],[4,8,4,10],[11,3,11,5],[11,6,11,8],[11,9,11,11]]}
["PWL DENSITY DATA FORM (LANE FOOT)",null,null,null,null,{"$f":"'Project Info & Instructions'!A6","v":"Revised 04-26-18"}]
["               Nuclear HMA Density QC/QV Testing Records",null,null,null,null,{"$f":"CONCATENATE(\"TEST STRIP #\",'Project Info & Instructions'!C11)","v":"TEST STRIP #"},"QV-2","LAYER:",{"$f":"IF('Project Info & Instructions'!G16=\"\",\"\",'Project Info & Instructions'!G16)","v":""},null,null,"Density\nStandard:"]
[null,null,null,null,null,null,null,null,null,null,null,"Moisture\nStandard: "]
["Project ID:",{"$f":"IF('Project Info & Instructions'!C13=\"\",\"\",'Project Info & Instructions'!C13)","v":""},null,null,"Road Name:",{"$f":"IF('Project Info & Instructions'!C14=\"\",\"\",'Project Info & Instructions'!C14)","v":""},null,"Contractor:",{"$f":"IF('Project Info & Instructions'!G20=\"\",\"\",'Project Info & Instructions'!G20)","v":""},null,null,"Gauge Serial #:"]
["Project\nLeader:",{"$f":"IF('Project Info & Instructions'!G19=\"\",\"\",'Project Info & Instructions'!G19)","v":""},null,null,"County:",{"$f":"IF('Project Info & Instructions'!C15=\"\",\"\",'Project Info & Instructions'!C15)","v":""},null,"QC \nNUCDENSITYTEC:","N/A",null,null,"WisDOT Mix #:",{"$f":"IF('Project Info & Instructions'!C16=\"\",\"\",'Project Info & Instructions'!C16)","v":""}]
["TEST STRIP - Field Worksheet\n\nOffsets are predetermined according to layout in SPV\n\nGauge offset is locked at ZERO since Raw Gauge Readings are needed\n\nTarget Max Gmm is average from 3 split samples (locked)\n",null,null,null,null,null,null,"QV \nNUCDENSITYTEC:",null,null,null,"Mix Type:",{"$f":"IF('Project Info & Instructions'!C21=\"\",\"\",'Project Info & Instructions'!C21)","v":"--"}]
[null,null,null,null,null,null,null,"Start:",{"$f":"IF('Project Info & Instructions'!G14=\"\",\"\",'Project Info & Instructions'!G14)","v":""},"End:",{"$f":"IF('Project Info & Instructions'!I14=\"\",\"\",'Project Info & Instructions'!I14)","v":""},"Target Gmm:",{"$f":"IF('Project Info & Instructions'!O9=2,'Project Info & Instructions'!J9,'Air Voids Pay Factor'!D10)","v":""}]
[null,null,null,null,null,null,null,"Estimated\nLength (ft):",{"$f":"IF('Project Info & Instructions'!G15=\"\",\"\",'Project Info & Instructions'!G15)","v":""},null,null,"Target Max Density (PCF):",{"$f":"IF(M7=\"\",\"\",M7*62.24)","v":""}]
[null,null,null,null,null,null,null,"Lane Width (ft):",{"$f":"IF('Project Info & Instructions'!G11=\"\",\"\",'Project Info & Instructions'!G11)","v":""},null,null,"Required\nDensity %:",{"$f":"IF('Project Info & Instructions'!G18=\"\",\"\",'Project Info & Instructions'!G18)","v":"Enter Mix and Layer Info"}]
[null,null,null,null,null,null,null,"Nominal \nThickness(in):",{"$f":"IF('Project Info & Instructions'!G12=\"\",\"\",'Project Info & Instructions'!G12)","v":""},null,null,"Date Placed:",{"$f":"IF('Project Info & Instructions'!C10=\"\",\"\",'Project Info & Instructions'!C10)","v":""}]
[null,null,null,null,null,null,null,"Gauge Offset","ZERO",null,null,"Date Tested:",{"$f":"IF('Project Info & Instructions'!C10=\"\",\"\",'Project Info & Instructions'!C10)","v":""}]
["Gauge/Core Spacing (ft)",null,{"$f":"'QC-1 Density Worksheet'!C12","v":50},"Reading 1",null,null,"Reading  2 (rotate 180)",null,null,"Reading  3 (If Reading 1 & 2 are not within +/- 1.0 pcf of one another, collect Reading 3.)",null,null,"Average",null,null,null,null,null,null,null,null,null,null,null,null,null,null,null,null,null,null,null,null,null,null,null,null,null,null,null,null,null,null,null,null,null,null,null,null,null,null,null,null,null,null,null,null,null,null,null,null,null,null,null,null,null,null,null,null,null,null,null,null,null,null,null,null,null,null,null,null,"ID","Variation from Avg"]
["Lot / Sub Lot ID","Random Station","Offset from CL","M Count / \nD Count","Wet Density 1             ","% Max Density 1","M Count / \nD Count","Wet Density 2            ","% Max Density 2","M Count / \nD Count","Wet Density 3             ","% Max Density 3","Average PCF","% Max Density",null,null,null,null,null,null,null,null,null,null,null,null,null,null,null,null,null,null,null,null,null,null,null,null,null,null,null,null,null,null,null,null,null,null,null,null,null,null,null,null,null,null,null,null,null,null,null,null,null,null,null,null,null,null,null,null,null,null,null,null,null,null,null,null,null,null,null,"Read 1",null,"Read 2",null,"Read 3",null,null,null,"Filter Outlier",null,null,null,null,null,"Nuc Avg Excluding Outlier"]
[{"$f":"'Core Data'!A10","v":""},{"$f":"IF(B16=\"\",\"\",B16-2*C12)","v":-100},{"$f":"'QC-1 Density Worksheet'!C14","v":""},null,null,{"$f":"IF(E14=\"\",\"\",(+E14/$M$8))","v":""},null,null,{"$f":"IF(H14=\"\",\"\",(+H14/$M$8))","v":""},null,null,{"$f":"IF(K14=\"\",\"\",(+K14/$M$8))","v":""},{"$f":"IF(F14=\"\",\"\",CR14)","v":""},{"$f":"IF(F14=\"\",\"\",((M14/$M$8)*100))","v":""},null,null,null,null,null,null,null,null,null,null,null,null,null,null,null,null,null,null,null,null,null,null,null,null,null,null,null,null,null,null,null,null,null,null,null,null,null,null,null,null,null,null,null,null,null,null,null,null,null,null,null,null,null,null,null,null,null,null,null,null,null,null,null,null,null,null,null,"1-1a",{"$f":"ABS(AVERAGE(E14,H14,K14)-E14)","v":{"$error":"#DIV/0!"}},"1-1a",{"$f":"ABS(AVERAGE(E14,H14,K14)-H14)","v":{"$error":"#DIV/0!"}},"1-1a",{"$f":"ABS(AVERAGE(E14,H14,K14)-K14)","v":{"$error":"#DIV/0!"}},null,null,{"$f":"IF(CE14=MAX($CE14,$CG14,$CI14),0,E14)","v":{"$error":"#DIV/0!"}},null,{"$f":"IF(CG14=MAX($CE14,$CG14,$CI14),0,H14)","v":{"$error":"#DIV/0!"}},null,{"$f":"IF(CI14=MAX($CE14,$CG14,$CI14),0,K14)","v":{"$error":"#DIV/0!"}},null,{"$f":"AVERAGEIF(CL14:CP14,\">0\",CL14:CP14)","v":{"$error":"#DIV/0!"}}]
[{"$f":"'Core Data'!A11","v":""},{"$f":"IF(B16=\"\",\"\",B16-C12)","v":-50},{"$f":"'QC-1 Density Worksheet'!C15","v":""},null,null,"",null,null,"",null,null,"","","",null,null,null,null,null,null,null,null,null,null,null,null,null,null,null,null,null,null,null,null,null,null,null,null,null,null,null,null,null,null,null,null,null,null,null,null,null,null,null,null,null,null,null,null,null,null,null,null,null,null,null,null,null,null,null,null,null,null,null,null,null,null,null,null,null,null,null,"1-1b",{"$error":"#DIV/0!"},"1-1b",{"$error":"#DIV/0!"},"1-1b",{"$error":"#DIV/0!"},null,null,{"$error":"#DIV/0!"},null,{"$error":"#DIV/0!"},null,{"$error":"#DIV/0!"},null,{"$error":"#DIV/0!"}]
[{"$f":"'Core Data'!A12","v":""},{"$f":"'QC-1 Density Worksheet'!B16","v":0},{"$f":"'QC-1 Density Worksheet'!C16","v":""},null,null,"",null,null,"",null,null,"","","",null,null,null,null,null,null,null,null,null,null,null,null,null,null,null,null,null,null,null,null,null,null,null,null,null,null,null,null,null,null,null,null,null,null,null,null,null,null,null,null,null,null,null,null,null,null,null,null,null,null,null,null,null,null,null,null,null,null,null,null,null,null,null,null,null,null,null,"1-1c",{"$error":"#DIV/0!"},"1-1c",{"$error":"#DIV/0!"},"1-1c",{"$error":"#DIV/0!"},null,null,{"$error":"#DIV/0!"},null,{"$error":"#DIV/0!"},null,{"$error":"#DIV/0!"},null,{"$error":"#DIV/0!"}]
[{"$f":"'Core Data'!A13","v":""},{"$f":"IF(B16=\"\",\"\",B16+C12)","v":50},{"$f":"'QC-1 Density Worksheet'!C17","v":""},null,null,"",null,null,"",null,null,"","","",null,null,null,null,null,null,null,null,null,null,null,null,null,null,null,null,null,null,null,null,null,null,null,null,null,null,null,null,null,null,null,null,null,null,null,null,null,null,null,null,null,null,null,null,null,null,null,null,null,null,null,null,null,null,null,null,null,null,null,null,null,null,null,null,null,null,null,"1-2a",{"$error":"#DIV/0!"},"1-2a",{"$error":"#DIV/0!"},"1-2a",{"$error":"#DIV/0!"},null,null,{"$error":"#DIV/0!"},null,{"$error":"#DIV/0!"},null,{"$error":"#DIV/0!"},null,{"$error":"#DIV/0!"}]
[{"$f":"'Core Data'!A14","v":""},{"$f":"IF(B16=\"\",\"\",B16+2*C12)","v":100},{"$f":"'QC-1 Density Worksheet'!C18","v":""},null,null,"",null,null,"",null,null,"","","",null,null,null,null,null,null,null,null,null,null,null,null,null,null,null,null,null,null,null,null,null,null,null,null,null,null,null,null,null,null,null,null,null,null,null,null,null,null,null,null,null,null,null,null,null,null,null,null,null,null,null,null,null,null,null,null,null,null,null,null,null,null,null,null,null,null,null,"1-2b",{"$error":"#DIV/0!"},"1-2b",{"$error":"#DIV/0!"},"1-2b",{"$error":"#DIV/0!"},null,null,{"$error":"#DIV/0!"},null,{"$error":"#DIV/0!"},null,{"$error":"#DIV/0!"},null,{"$error":"#DIV/0!"}]
[null,null,null,null,null,"",null,null,"",null,null,"","","",null,null,null,null,null,null,null,null,null,null,null,null,null,null,null,null,null,null,null,null,null,null,null,null,null,null,null,null,null,null,null,null,null,null,null,null,null,null,null,null,null,null,null,null,null,null,null,null,null,null,null,null,null,null,null,null,null,null,null,null,null,null,null,null,null,null,null,"1-2c",{"$error":"#DIV/0!"},"1-2c",{"$error":"#DIV/0!"},"1-2c",{"$error":"#DIV/0!"},null,null,{"$error":"#DIV/0!"},null,{"$error":"#DIV/0!"},null,{"$error":"#DIV/0!"},null,{"$error":"#DIV/0!"}]
[{"$f":"'Core Data'!A18","v":""},{"$f":"IF(B22=\"\",\"\",B22-2*C12)","v":-100},{"$f":"'QC-1 Density Worksheet'!C20","v":""},null,null,"",null,null,"",null,null,"","","",null,null,null,null,null,null,null,null,null,null,null,null,null,null,null,null,null,null,null,null,null,null,null,null,null,null,null,null,null,null,null,null,null,null,null,null,null,null,null,null,null,null,null,null,null,null,null,null,null,null,null,null,null,null,null,null,null,null,null,null,null,null,null,null,null,null,null,"1-3a",{"$error":"#DIV/0!"},"1-3a",{"$error":"#DIV/0!"},"1-3a",{"$error":"#DIV/0!"},null,null,{"$error":"#DIV/0!"},null,{"$error":"#DIV/0!"},null,{"$error":"#DIV/0!"},null,{"$error":"#DIV/0!"}]
[{"$f":"'Core Data'!A19","v":""},{"$f":"IF(B22=\"\",\"\",B22-C12)","v":-50},{"$f":"'QC-1 Density Worksheet'!C21","v":""},null,null,"",null,null,"",null,null,"","","",null,null,null,null,null,null,null,null,null,null,null,null,null,null,null,null,null,null,null,null,null,null,null,null,null,null,null,null,null,null,null,null,null,null,null,null,null,null,null,null,null,null,null,null,null,null,null,null,null,null,null,null,null,null,null,null,null,null,null,null,null,null,null,null,null,null,null,"1-3b",{"$error":"#DIV/0!"},"1-3b",{"$error":"#DIV/0!"},"1-3b",{"$error":"#DIV/0!"},null,null,{"$error":"#DIV/0!"},null,{"$error":"#DIV/0!"},null,{"$error":"#DIV/0!"},null,{"$error":"#DIV/0!"}]
[{"$f":"'Core Data'!A20","v":""},{"$f":"'QC-1 Density Worksheet'!B22","v":0},{"$f":"'QC-1 Density Worksheet'!C22","v":""},null,null,"",null,null,"",null,null,"","","",null,null,null,null,null,null,null,null,null,null,null,null,null,null,null,null,null,null,null,null,null,null,null,null,null,null,null,null,null,null,null,null,null,null,null,null,null,null,null,null,null,null,null,null,null,null,null,null,null,null,null,null,null,null,null,null,null,null,null,null,null,null,null,null,null,null,null,"1-3c",{"$error":"#DIV/0!"},"1-3c",{"$error":"#DIV/0!"},"1-3c",{"$error":"#DIV/0!"},null,null,{"$error":"#DIV/0!"},null,{"$error":"#DIV/0!"},null,{"$error":"#DIV/0!"},null,{"$error":"#DIV/0!"}]
[{"$f":"'Core Data'!A21","v":""},{"$f":"IF(B22=\"\",\"\",B22+C12)","v":50},{"$f":"'QC-1 Density Worksheet'!C23","v":""},null,null,"",null,null,"",null,null,"","","",null,null,null,null,null,null,null,null,null,null,null,null,null,null,null,null,null,null,null,null,null,null,null,null,null,null,null,null,null,null,null,null,null,null,null,null,null,null,null,null,null,null,null,null,null,null,null,null,null,null,null,null,null,null,null,null,null,null,null,null,null,null,null,null,null,null,null,"1-4a",{"$error":"#DIV/0!"},"1-4a",{"$error":"#DIV/0!"},"1-4a",{"$error":"#DIV/0!"},null,null,{"$error":"#DIV/0!"},null,{"$error":"#DIV/0!"},null,{"$error":"#DIV/0!"},null,{"$error":"#DIV/0!"}]
[{"$f":"'Core Data'!A22","v":""},{"$f":"IF(B22=\"\",\"\",B22+2*C12)","v":100},{"$f":"'QC-1 Density Worksheet'!C24","v":""},null,null,"",null,null,"",null,null,"","","",null,null,null,null,null,null,null,null,null,null,null,null,null,null,null,null,null,null,null,null,null,null,null,null,null,null,null,null,null,null,null,null,null,null,null,null,null,null,null,null,null,null,null,null,null,null,null,null,null,null,null,null,null,null,null,null,null,null,null,null,null,null,null,null,null,null,null,"1-4b ",{"$error":"#DIV/0!"},"1-4b ",{"$error":"#DIV/0!"},"1-4b ",{"$error":"#DIV/0!"},null,null,{"$error":"#DIV/0!"},null,{"$error":"#DIV/0!"},null,{"$error":"#DIV/0!"},null,{"$error":"#DIV/0!"}]
["Test Remarks"]

{"sheet":"QC-1 Correlation","index":10,"n_rows":47,"n_cols":91,"rows_kept":47,"cut":false,"hidden":false,"merged":[[16,84,16,88],[22,84,22,88],[22,89,22,91],[40,1,42,8],[9,26,9,27],[10,26,10,27],[40,18,40,19],[21,18,21,19],[9,2,9,4],[10,2,10,4],[17,2,17,4],[11,7,11,8],[12,7,12,8],[14,7,14,8],[21,4,21,6],[31,4,31,6],[0,84,0,88],[1,30,2,30],[1,32,2,32],[0,3,4,8],[6,3,6,8],[0,23,0,24],[1,23,1,24],[2,23,2,24],[3,23,3,24],[4,23,4,24],[5,23,5,24],[0,12,0,14],[0,19,0,20],[6,23,6,24],[18,2,18,4],[15,2,15,8],[7,23,7,27],[8,23,8,24],[9,23,9,24],[13,7,13,8],[9,7,9,8],[10,7,10,8],[8,2,8,4],[11,2,11,4],[12,2,12,4],[13,2,13,4],[14,2,14,4],[8,7,8,8]]}
[null,null,null,"Wisconsin Department \nof Transportation ",null,null,null,null,null,null,"Date:",null,{"$f":"IF(C9=\"\",\"\",C9)","v":""},null,null,null,null,null,"Gauge No.:",{"$f":"IF(H12=\"\",\"\",H12)","v":""},null,null,"Date:",{"$f":"IF(C9=\"\",\"\",C9)","v":""},null,null,"Layer:",{"$f":"IF('Project Info & Instructions'!G16=\"\",\"\",'Project Info & Instructions'!G16)","v":""},null,null,null,null,null,null,null,null,null,null,null,null,null,null,null,null,null,null,null,null,null,null,null,null,null,null,null,null,null,null,null,null,null,null,null,null,null,null,null,null,null,null,null,null,null,null,null,null,null,null,null,null,null,null,null,"Zone 1","Variation from Avg"]
[null,null,null,null,null,null,null,null,null,null,null,null,null,null,null,null,null,null,"Nuclear / Core Correlation Worksheet     ",null,null,null,"Contract:",{"$f":"IF(C10=\"\",\"\",C10)","v":""},null,null,"Layer Thickness:",{"$f":"H13","v":""},null,null,"Ave Nuclear",null,"Core Density",null,null,null,null,null,null,null,null,null,null,null,null,null,null,null,null,null,null,null,null,null,null,null,null,null,null,null,null,null,null,null,null,null,null,null,null,null,null,null,null,null,null,null,null,null,null,null,null,null,null,"1A)",{"$f":"ABS(AVERAGE('QC-1 Correlation'!$B$25,'QC-1 Correlation'!$D$25,'QC-1 Correlation'!$G$25)-'QC-1 Correlation'!B25)","v":0},"1B)",{"$f":"ABS(AVERAGE('QC-1 Correlation'!$B$25,'QC-1 Correlation'!$D$25,'QC-1 Correlation'!$G$25)-'QC-1 Correlation'!D25)","v":0},"1C)",{"$f":"ABS(AVERAGE('QC-1 Correlation'!$B$25,'QC-1 Correlation'!$D$25,'QC-1 Correlation'!$G$25)-'QC-1 Correlation'!G25)","v":0}]
[null,null,null,null,null,null,null,null,null,null,null,null,null,null,null,null,null,null,null,null,null,null,"Job No.:","",null,null,"Gmm:",{"$f":"H14","v":""},null,null,null,null,null,null,null,null,null,null,null,null,null,null,null,null,null,null,null,null,null,null,null,null,null,null,null,null,null,null,null,null,null,null,null,null,null,null,null,null,null,null,null,null,null,null,null,null,null,null,null,null,null,null,null,"2A)",{"$f":"ABS(AVERAGE('QC-1 Correlation'!$B$26,'QC-1 Correlation'!$D$26,'QC-1 Correlation'!$G$26)-'QC-1 Correlation'!B26)","v":0},"2B)",{"$f":"ABS(AVERAGE('QC-1 Correlation'!$B$26,'QC-1 Correlation'!$D$26,'QC-1 Correlation'!$G$26)-'QC-1 Correlation'!D26)","v":0},"2C)",{"$f":"ABS(AVERAGE('QC-1 Correlation'!$B$26,'QC-1 Correlation'!$D$26,'QC-1 Correlation'!$G$26)-'QC-1 Correlation'!G26)","v":0}]
[null,null,null,null,null,null,null,null,null,null,null,null,null,null,null,null,null,null,null,null,null,null,"Route:","",null,null,null,null,null,null,{"$f":"M25","v":""},null,{"$f":"O25","v":""},null,null,null,null,null,null,null,null,null,null,null,null,null,null,null,null,null,null,null,null,null,null,null,null,null,null,null,null,null,null,null,null,null,null,null,null,null,null,null,null,null,null,null,null,null,null,null,null,null,null,"3A)",{"$f":"ABS(AVERAGE('QC-1 Correlation'!$B$27,'QC-1 Correlation'!$D$27,'QC-1 Correlation'!$G$27)-'QC-1 Correlation'!B27)","v":0},"3B)",{"$f":"ABS(AVERAGE('QC-1 Correlation'!$B$27,'QC-1 Correlation'!$D$27,'QC-1 Correlation'!$G$27)-'QC-1 Correlation'!D27)","v":0},"3C)",{"$f":"ABS(AVERAGE('QC-1 Correlation'!$B$27,'QC-1 Correlation'!$D$27,'QC-1 Correlation'!$G$27)-'QC-1 Correlation'!G27)","v":0}]
[null,null,null,null,null,null,null,null,null,null,null,null,null,null,null,null,null,null,null,null,null,null,"Underlying Material:",{"$f":"IF(C13=\"\",\"\",C13)","v":""},null,null,null,null,null,null,{"$f":"M26","v":""},null,{"$f":"O26","v":""},null,null,null,null,null,null,null,null,null,null,null,null,null,null,null,null,null,null,null,null,null,null,null,null,null,null,null,null,null,null,null,null,null,null,null,null,null,null,null,null,null,null,null,null,null,null,null,null,null,null,"4A)",{"$f":"ABS(AVERAGE('QC-1 Correlation'!$B$28,'QC-1 Correlation'!$D$28,'QC-1 Correlation'!$G$28)-'QC-1 Correlation'!B28)","v":0},"4B)",{"$f":"ABS(AVERAGE('QC-1 Correlation'!$B$28,'QC-1 Correlation'!$D$28,'QC-1 Correlation'!$G$28)-'QC-1 Correlation'!D28)","v":0},"4C)",{"$f":"ABS(AVERAGE('QC-1 Correlation'!$B$28,'QC-1 Correlation'!$D$28,'QC-1 Correlation'!$G$28)-'QC-1 Correlation'!G28)","v":0}]
[null,{"$f":"'Project Info & Instructions'!A6","v":"Revised 04-26-18"},null,null,null,null,null,null,null,null,null,null,null,null,null,null,null,null,null,null,null,null,"WisDOT Mix No.:",{"$f":"IF(C14=\"\",\"\",C14)","v":""},null,null,null,null,null,null,{"$f":"M27","v":""},null,{"$f":"O27","v":""},null,null,null,null,null,null,null,null,null,null,null,null,null,null,null,null,null,null,null,null,null,null,null,null,null,null,null,null,null,null,null,null,null,null,null,null,null,null,null,null,null,null,null,null,null,null,null,null,null,null,"5A)",{"$f":"ABS(AVERAGE('QC-1 Correlation'!$B$29,'QC-1 Correlation'!$D$29,'QC-1 Correlation'!$G$29)-'QC-1 Correlation'!B29)","v":0},"5B)",{"$f":"ABS(AVERAGE('QC-1 Correlation'!$B$29,'QC-1 Correlation'!$D$29,'QC-1 Correlation'!$G$29)-'QC-1 Correlation'!D29)","v":0},"5C)",{"$f":"ABS(AVERAGE('QC-1 Correlation'!$B$29,'QC-1 Correlation'!$D$29,'QC-1 Correlation'!$G$29)-'QC-1 Correlation'!G29)","v":0}]
[null,null,null,"Nuclear / Core Correlation Worksheet",null,null,null,null,null,null,null,null,null,null,null,null,null,null,null,null,null,null,"Mixture Type:",{"$f":"IF('Project Info & Instructions'!C21=\"\",\"\",'Project Info & Instructions'!C21)","v":"--"},null,null,"Core Diameter:",{"$f":"H15","v":6},null,null,{"$f":"M28","v":""},null,{"$f":"O28","v":""},null,null,null,null,null,null,null,null,null,null,null,null,null,null,null,null,null,null,null,null,null,null,null,null,null,null,null,null,null,null,null,null,null,null,null,null,null,null,null,null,null,null,null,null,null,null,null,null,null,null,null,{"$f":"IF(CG2=MAX($CG2,$CI2,$CK2),0,'QC-1 Correlation'!B25)","v":0},null,{"$f":"IF(CI2=MAX($CG2,$CI2,$CK2),0,'QC-1 Correlation'!D25)","v":0},null,{"$f":"IF(CK2=MAX($CG2,$CI2,$CK2),0,'QC-1 Correlation'!G25)","v":0},null,{"$f":"AVERAGEIF(CG7:CK7,\">0\",CG7:CK7)","v":{"$error":"#DIV/0!"}}]
[null,null,null,null,null,null,null,null,null,null,null,null,null,null,null,null,null,null,null,null,null,null,"Test Strip Type:",{"$f":"'Project Info & Instructions'!C9","v":"Combined Density and Air Voids Test Strip"},null,null,null,null,null,null,{"$f":"M29","v":""},null,{"$f":"O29","v":""},null,null,null,null,null,null,null,null,null,null,null,null,null,null,null,null,null,null,null,null,null,null,null,null,null,null,null,null,null,null,null,null,null,null,null,null,null,null,null,null,null,null,null,null,null,null,null,null,null,null,null,{"$f":"IF(CG3=MAX($CG3,$CI3,$CK3),0,'QC-1 Correlation'!B26)","v":0},null,{"$f":"IF(CI3=MAX($CG3,$CI3,$CK3),0,'QC-1 Correlation'!D26)","v":0},null,{"$f":"IF(CK3=MAX($CG3,$CI3,$CK3),0,'QC-1 Correlation'!G26)","v":0},null,{"$f":"AVERAGEIF(CG8:CK8,\">0\",CG8:CK8)","v":{"$error":"#DIV/0!"}}]
[null,"Date:",{"$f":"IF('Project Info & Instructions'!C10=\"\",\"\",'Project Info & Instructions'!C10)","v":""},null,null,null,"Test Strip #:",{"$f":"IF('Project Info & Instructions'!C11=\"\",\"\",'Project Info & Instructions'!C11)","v":""},null,null,null,null,null,null,null,null,null,null,null,null,null,null,"NUCDENSITYTEC:",{"$f":"IF('QC-1 Density Worksheet'!I5=\"\",\"\",'QC-1 Density Worksheet'!I5)","v":""},null,null,null,null,null,null,{"$f":"M35","v":""},null,{"$f":"O35","v":""},null,null,null,null,null,null,null,null,null,null,null,null,null,null,null,null,null,null,null,null,null,null,null,null,null,null,null,null,null,null,null,null,null,null,null,null,null,null,null,null,null,null,null,null,null,null,null,null,null,null,null,{"$f":"IF(CG4=MAX($CG4,$CI4,$CK4),0,'QC-1 Correlation'!B27)","v":0},null,{"$f":"IF(CI4=MAX($CG4,$CI4,$CK4),0,'QC-1 Correlation'!D27)","v":0},null,{"$f":"IF(CK4=MAX($CG4,$CI4,$CK4),0,'QC-1 Correlation'!G27)","v":0},null,{"$f":"AVERAGEIF(CG9:CK9,\">0\",CG9:CK9)","v":{"$error":"#DIV/0!"}}]
[null,"Contract:",{"$f":"IF('Project Info & Instructions'!C12=\"\",\"\",'Project Info & Instructions'!C12)","v":""},null,null,null,"Layer:",{"$f":"IF('Project Info & Instructions'!G16=\"\",\"\",'Project Info & Instructions'!G16)","v":""},null,null,null,null,null,null,null,null,null,null,null,null,null,null,"Gauge No.:",{"$f":"IF('QC-1 Density Worksheet'!M4=\"\",\"\",'QC-1 Density Worksheet'!M4)","v":""},null,null,"Spread of Cores (%)",null,null,null,{"$f":"M36","v":""},null,{"$f":"O36","v":""},null,null,null,null,null,null,null,null,null,null,null,null,null,null,null,null,null,null,null,null,null,null,null,null,null,null,null,null,null,null,null,null,null,null,null,null,null,null,null,null,null,null,null,null,null,null,null,null,null,null,null,{"$f":"IF(CG5=MAX($CG5,$CI5,$CK5),0,'QC-1 Correlation'!B28)","v":0},null,{"$f":"IF(CI5=MAX($CG5,$CI5,$CK5),0,'QC-1 Correlation'!D28)","v":0},null,{"$f":"IF(CK5=MAX($CG5,$CI5,$CK5),0,'QC-1 Correlation'!G28)","v":0},null,{"$f":"AVERAGEIF(CG10:CK10,\">0\",CG10:CK10)","v":{"$error":"#DIV/0!"}}]
[null,"Job No.:",{"$f":"IF('Project Info & Instructions'!C13=\"\",\"\",'Project Info & Instructions'!C13)","v":""},null,null,null,"Mixture Type:",{"$f":"IF('Project Info & Instructions'!C21=\"\",\"\",'Project Info & Instructions'!C21)","v":"--"},null,null,null,null,null,null,null,null,null,null,null,null,null,null,null,null,null,null,{"$f":"IF(Q44>0,Q44,\"\")","v":""},null,null,null,{"$f":"M37","v":""},null,{"$f":"O37","v":""},null,null,null,null,null,null,null,null,null,null,null,null,null,null,null,null,null,null,null,null,null,null,null,null,null,null,null,null,null,null,null,null,null,null,null,null,null,null,null,null,null,null,null,null,null,null,null,null,null,null,null,{"$f":"IF(CG6=MAX($CG6,$CI6,$CK6),0,'QC-1 Correlation'!B29)","v":0},null,{"$f":"IF(CI6=MAX($CG6,$CI6,$CK6),0,'QC-1 Correlation'!D29)","v":0},null,{"$f":"IF(CK6=MAX($CG6,$CI6,$CK6),0,'QC-1 Correlation'!G29)","v":0},null,{"$f":"AVERAGEIF(CG11:CK11,\">0\",CG11:CK11)","v":{"$error":"#DIV/0!"}}]
[null,"Route:",{"$f":"IF('Project Info & Instructions'!C14=\"\",\"\",'Project Info & Instructions'!C14)","v":""},null,null,null,null,null,null,null,null,null,null,null,null,null,null,null,null,null,null,null,null,null,null,null,null,null,null,null,{"$f":"M38","v":""},null,{"$f":"O38","v":""}]
[null,"Underlying Matl.:",{"$f":"IF('Project Info & Instructions'!G17=\"\",\"\",'Project Info & Instructions'!G17)","v":""},null,null,null,"Layer Thickness:",{"$f":"IF('Project Info & Instructions'!G12=\"\",\"\",'Project Info & Instructions'!G12)","v":""},null,null,null,null,null,null,null,null,null,null,null,null,null,null,"SN","Gauge ID","Offset","R-squared","Spread (%)",null,null,null,{"$f":"M39","v":""},null,{"$f":"O39","v":""}]
[null,"WisDOT Mix No.:",{"$f":"IF('Project Info & Instructions'!C16=\"\",\"\",'Project Info & Instructions'!C16)","v":""},null,null,null,"Gmm:",{"$f":"IF('Project Info & Instructions'!O9=2,'Project Info & Instructions'!J9,'Air Voids Pay Factor'!D10)","v":""},null,null,null,null,null,null,null,null,null,null,null,null,null,null,{"$f":"IF('QC-1 Correlation'!C19=\"\",\"\",'QC-1 Correlation'!C19)","v":""},"QC-1",{"$f":"IF('QC-1 Correlation'!U41=\"\",\"\",'QC-1 Correlation'!U41)","v":""},{"$f":"IF('QC-1 Correlation'!U22=\"\",\"\",'QC-1 Correlation'!U22)","v":""},{"$f":"IF('QC-1 Correlation'!O44=\"\",\"\",'QC-1 Correlation'!O44)","v":0}]
[null,"Mix Type:",{"$f":"IF('Project Info & Instructions'!C21=\"\",\"\",'Project Info & Instructions'!C21)","v":"--"},null,null,null,"Core Diameter:",6,null,null,null,null,null,null,null,null,null,null,null,null,null,null,{"$f":"IF('QC-2 Correlation'!C19=\"\",\"\",'QC-2 Correlation'!C19)","v":""},"QC-2",{"$f":"IF('QC-2 Correlation'!U41=\"\",\"\",'QC-2 Correlation'!U41)","v":""},{"$f":"IF('QC-2 Correlation'!U22=\"\",\"\",'QC-2 Correlation'!U22)","v":""},{"$f":"IF('QC-2 Correlation'!O44=\"\",\"\",'QC-2 Correlation'!O44)","v":0}]
[null,"Test Strip Type:",{"$f":"'Project Info & Instructions'!C9","v":"Combined Density and Air Voids Test Strip"},null,null,null,null,null,null,null,null,null,null,null,null,null,null,null,null,null,null,null,{"$f":"IF('QV-1 Correlation'!C19=\"\",\"\",'QV-1 Correlation'!C19)","v":""},"QV-1",{"$f":"IF('QV-1 Correlation'!U41=\"\",\"\",'QV-1 Correlation'!U41)","v":""},{"$f":"IF('QV-1 Correlation'!U22=\"\",\"\",'QV-1 Correlation'!U22)","v":""},{"$f":"IF('QV-1 Correlation'!O44=\"\",\"\",'QV-1 Correlation'!O44)","v":0}]
[null,null,null,null,null,null,null,null,null,null,null,null,null,null,null,null,null,null,null,null,null,null,{"$f":"IF('QV-2 Correlation'!C19=\"\",\"\",'QV-2 Correlation'!C19)","v":""},"QV-2",{"$f":"IF('QV-2 Correlation'!U41=\"\",\"\",'QV-2 Correlation'!U41)","v":""},{"$f":"IF('QV-2 Correlation'!U22=\"\",\"\",'QV-2 Correlation'!U22)","v":""},{"$f":"IF('QV-2 Correlation'!O44=\"\",\"\",'QV-2 Correlation'!O44)","v":0},null,null,null,null,null,null,null,null,null,null,null,null,null,null,null,null,null,null,null,null,null,null,null,null,null,null,null,null,null,null,null,null,null,null,null,null,null,null,null,null,null,null,null,null,null,null,null,null,null,null,null,null,null,null,null,null,"Zone 2","Variation from Avg"]
[null,"NUCDENSITYTEC:",{"$f":"IF('QC-1 Density Worksheet'!I5=\"\",\"\",'QC-1 Density Worksheet'!I5)","v":""},null,null,null,null,null,null,null,null,null,null,null,null,null,null,null,null,null,null,null,null,null,null,null,null,null,null,null,null,null,null,null,null,null,null,null,null,null,null,null,null,null,null,null,null,null,null,null,null,null,null,null,null,null,null,null,null,null,null,null,null,null,null,null,null,null,null,null,null,null,null,null,null,null,null,null,null,null,null,null,null,"6A",{"$f":"ABS(AVERAGE('QC-1 Correlation'!$B35,'QC-1 Correlation'!$D35,'QC-1 Correlation'!$G35)-'QC-1 Correlation'!B35)","v":0},"6B",{"$f":"ABS(AVERAGE('QC-1 Correlation'!$B35,'QC-1 Correlation'!$D35,'QC-1 Correlation'!$G35)-'QC-1 Correlation'!D35)","v":0},"6C",{"$f":"ABS(AVERAGE('QC-1 Correlation'!$B35,'QC-1 Correlation'!$D35,'QC-1 Correlation'!$G35)-'QC-1 Correlation'!G35)","v":0}]
[null,"Gauge No.:",{"$f":"IF('QC-1 Density Worksheet'!M4=\"\",\"\",'QC-1 Density Worksheet'!M4)","v":""},null,null,null,null,null,null,null,null,null,null,null,null,null,null,null,null,null,null,null,null,null,null,null,null,null,null,null,null,null,null,null,null,null,null,null,null,null,null,null,null,null,null,null,null,null,null,null,null,null,null,null,null,null,null,null,null,null,null,null,null,null,null,null,null,null,null,null,null,null,null,null,null,null,null,null,null,null,null,null,null,"7A",{"$f":"ABS(AVERAGE('QC-1 Correlation'!$B36,'QC-1 Correlation'!$D36,'QC-1 Correlation'!$G36)-'QC-1 Correlation'!B36)","v":0},"7B",{"$f":"ABS(AVERAGE('QC-1 Correlation'!$B36,'QC-1 Correlation'!$D36,'QC-1 Correlation'!$G36)-'QC-1 Correlation'!D36)","v":0},"7C",{"$f":"ABS(AVERAGE('QC-1 Correlation'!$B36,'QC-1 Correlation'!$D36,'QC-1 Correlation'!$G36)-'QC-1 Correlation'!G36)","v":0}]
[null,null,null,null,null,null,null,null,null,null,null,null,null,null,null,null,null,null,null,null,null,null,null,null,null,null,null,null,null,null,null,null,null,null,null,null,null,null,null,null,null,null,null,null,null,null,null,null,null,null,null,null,null,null,null,null,null,null,null,null,null,null,null,null,null,null,null,null,null,null,null,null,null,null,null,null,null,null,null,null,null,null,null,"8A",{"$f":"ABS(AVERAGE('QC-1 Correlation'!$B37,'QC-1 Correlation'!$D37,'QC-1 Correlation'!$G37)-'QC-1 Correlation'!B37)","v":0},"8B",{"$f":"ABS(AVERAGE('QC-1 Correlation'!$B37,'QC-1 Correlation'!$D37,'QC-1 Correlation'!$G37)-'QC-1 Correlation'!D37)","v":0},"8C",{"$f":"ABS(AVERAGE('QC-1 Correlation'!$B37,'QC-1 Correlation'!$D37,'QC-1 Correlation'!$G37)-'QC-1 Correlation'!G37)","v":0}]
[null,"ZONE 1",null,null,null,null,null,null,null,null,null,null,null,null,null,null,null,null,null,null,null,null,null,null,null,null,null,null,null,null,null,null,null,null,null,null,null,null,null,null,null,null,null,null,null,null,null,null,null,null,null,null,null,null,null,null,null,null,null,null,null,null,null,null,null,null,null,null,null,null,null,null,null,null,null,null,null,null,null,null,null,null,null,"9A",{"$f":"ABS(AVERAGE('QC-1 Correlation'!$B38,'QC-1 Correlation'!$D38,'QC-1 Correlation'!$G38)-'QC-1 Correlation'!B38)","v":0},"9B",{"$f":"ABS(AVERAGE('QC-1 Correlation'!$B38,'QC-1 Correlation'!$D38,'QC-1 Correlation'!$G38)-'QC-1 Correlation'!D38)","v":0},"9C",{"$f":"ABS(AVERAGE('QC-1 Correlation'!$B38,'QC-1 Correlation'!$D38,'QC-1 Correlation'!$G38)-'QC-1 Correlation'!G38)","v":0}]
[null,"Station (@ center of Zone):",null,null,{"$f":"IF('QC-1 Density Worksheet'!B16=\"\",\"\",'QC-1 Density Worksheet'!B16)","v":0},null,null,null,null,null,null,null,"CALCULATIONS",null,null,null,null,null,"R-Squared",null,{"$f":"IFERROR(RSQ(AE4:AE13,AG4:AG13),\"\")","v":""},null,null,null,"Core Density Calculations",null,null,null,null,null,null,null,null,null,null,null,null,null,null,null,null,null,null,null,null,null,null,null,null,null,null,null,null,null,null,null,null,null,null,null,null,null,null,null,null,null,null,null,null,null,null,null,null,null,null,null,null,null,null,null,null,null,null,"10A",{"$f":"ABS(AVERAGE('QC-1 Correlation'!$B39,'QC-1 Correlation'!$D39,'QC-1 Correlation'!$G39)-'QC-1 Correlation'!B39)","v":0},"10B",{"$f":"ABS(AVERAGE('QC-1 Correlation'!$B39,'QC-1 Correlation'!$D39,'QC-1 Correlation'!$G39)-'QC-1 Correlation'!D39)","v":0},"10C",{"$f":"ABS(AVERAGE('QC-1 Correlation'!$B39,'QC-1 Correlation'!$D39,'QC-1 Correlation'!$G39)-'QC-1 Correlation'!G39)","v":0}]
[null,"pcf",null,"pcf",null,null,"pcf",null,"pcf",null,"Gmb",null,"%",null,"%",null,null,null,null,null,null,null,null,null,null,null,null,null,null,null,null,null,null,null,null,null,null,null,null,null,null,null,null,null,null,null,null,null,null,null,null,null,null,null,null,null,null,null,null,null,null,null,null,null,null,null,null,null,null,null,null,null,null,null,null,null,null,null,null,null,null,null,null,null,"Filter Outlier",null,null,null,null,"Nuc Avg Excluding Outlier"]
[null,"Reading 1",null,"Reading 2","Difference",null,"Reading 3*            \nif applicable",null,"Ave Nuclear",null,"Core Density",null,"Ave Nuclear",null,"Core Density",null,"Difference",null,"Adjusted Nuc.",null,"Adj. Diff.",null,null,"Dry weight","SSD","Submerged","Core Density",null,null,null,null,null,null,null,null,null,null,null,null,null,null,null,null,null,null,null,null,null,null,null,null,null,null,null,null,null,null,null,null,null,null,null,null,null,null,null,null,null,null,null,null,null,null,null,null,null,null,null,null,null,null,null,null,null,{"$f":"IF(CG18=MAX($CG18,$CI18,$CK18),0,B35)","v":0},null,{"$f":"IF(CI18=MAX($CG18,$CI18,$CK18),0,D35)","v":0},null,{"$f":"IF(CK18=MAX($CG18,$CI18,$CK18),0,G35)","v":0},null,{"$f":"AVERAGEIF(CG24:CK24,\">0\",CG24:CK24)","v":{"$error":"#DIV/0!"}}]
[{"$f":"'Core Data'!A10","v":""},{"$f":"'QC-1 Density Worksheet'!E14","v":0},null,{"$f":"'QC-1 Density Worksheet'!H14","v":0},{"$f":"ABS(B25-D25)","v":0},null,{"$f":"'QC-1 Density Worksheet'!K14","v":0},null,{"$f":"IF(B25=0,\"\",(IF(ABS(B25-D25)>1,CM7,AVERAGE(B25,D25))))","v":""},{"$f":"A25","v":""},{"$f":"IFERROR(AA25,\"\")","v":""},null,{"$f":"IFERROR(+I25/62.24/$H$14*100,\"\")","v":""},null,{"$f":"IFERROR(+K25/$H$14*100,\"\")","v":""},null,{"$f":"IFERROR(O25-M25,\"\")","v":""},null,{"$f":"IFERROR(M25+$U$41,\"\")","v":""},null,{"$f":"IFERROR(O25-S25,\"\")","v":""},null,{"$f":"'Core Data'!A10","v":""},{"$f":"'Core Data'!D10","v":0},{"$f":"'Core Data'!E10","v":0},{"$f":"'Core Data'!F10","v":0},{"$f":"IFERROR(ROUND(+X25/(Y25-Z25),3),\"\")","v":""},null,null,null,null,null,null,null,null,null,null,null,null,null,null,null,null,null,null,null,null,null,null,null,null,null,null,null,null,null,null,null,null,null,null,null,null,null,null,null,null,null,null,null,null,null,null,null,null,null,null,null,null,null,null,null,null,null,{"$f":"IF(CG19=MAX($CG19,$CI19,$CK19),0,B36)","v":0},null,{"$f":"IF(CI19=MAX($CG19,$CI19,$CK19),0,D36)","v":0},null,{"$f":"IF(CK19=MAX($CG19,$CI19,$CK19),0,G36)","v":0},null,{"$f":"AVERAGEIF(CG25:CK25,\">0\",CG25:CK25)","v":{"$error":"#DIV/0!"}}]
[{"$f":"'Core Data'!A11","v":""},{"$f":"'QC-1 Density Worksheet'!E15","v":0},null,{"$f":"'QC-1 Density Worksheet'!H15","v":0},{"$f":"ABS(B26-D26)","v":0},null,{"$f":"'QC-1 Density Worksheet'!K15","v":0},null,{"$f":"IF(B26=0,\"\",(IF(ABS(B26-D26)>1,CM8,AVERAGE(B26,D26))))","v":""},{"$f":"A26","v":""},{"$f":"IFERROR(AA26,\"\")","v":""},null,{"$f":"IFERROR(+I26/62.24/$H$14*100,\"\")","v":""},null,{"$f":"IFERROR(+K26/$H$14*100,\"\")","v":""},null,{"$f":"IFERROR(O26-M26,\"\")","v":""},null,{"$f":"IFERROR(M26+$U$41,\"\")","v":""},null,{"$f":"IFERROR(O26-S26,\"\")","v":""},null,{"$f":"'Core Data'!A11","v":""},{"$f":"'Core Data'!D11","v":0},{"$f":"'Core Data'!E11","v":0},{"$f":"'Core Data'!F11","v":0},{"$f":"IFERROR(ROUND(+X26/(Y26-Z26),3),\"\")","v":""},null,null,null,null,null,null,null,null,null,null,null,null,null,null,null,null,null,null,null,null,null,null,null,null,null,null,null,null,null,null,null,null,null,null,null,null,null,null,null,null,null,null,null,null,null,null,null,null,null,null,null,null,null,null,null,null,null,{"$f":"IF(CG20=MAX($CG20,$CI20,$CK20),0,B37)","v":0},null,{"$f":"IF(CI20=MAX($CG20,$CI20,$CK20),0,D37)","v":0},null,{"$f":"IF(CK20=MAX($CG20,$CI20,$CK20),0,G37)","v":0},null,{"$f":"AVERAGEIF(CG26:CK26,\">0\",CG26:CK26)","v":{"$error":"#DIV/0!"}}]
[{"$f":"'Core Data'!A12","v":""},{"$f":"'QC-1 Density Worksheet'!E16","v":0},null,{"$f":"'QC-1 Density Worksheet'!H16","v":0},{"$f":"ABS(B27-D27)","v":0},null,{"$f":"'QC-1 Density Worksheet'!K16","v":0},null,{"$f":"IF(B27=0,\"\",(IF(ABS(B27-D27)>1,CM9,AVERAGE(B27,D27))))","v":""},"",{"$f":"IFERROR(AA27,\"\")","v":""},null,{"$f":"IFERROR(+I27/62.24/$H$14*100,\"\")","v":""},null,{"$f":"IFERROR(+K27/$H$14*100,\"\")","v":""},null,{"$f":"IFERROR(O27-M27,\"\")","v":""},null,{"$f":"IFERROR(M27+$U$41,\"\")","v":""},null,{"$f":"IFERROR(O27-S27,\"\")","v":""},null,{"$f":"'Core Data'!A12","v":""},{"$f":"'Core Data'!D12","v":0},{"$f":"'Core Data'!E12","v":0},{"$f":"'Core Data'!F12","v":0},{"$f":"IFERROR(ROUND(+X27/(Y27-Z27),3),\"\")","v":""},null,null,null,null,null,null,null,null,null,null,null,null,null,null,null,null,null,null,null,null,null,null,null,null,null,null,null,null,null,null,null,null,null,null,null,null,null,null,null,null,null,null,null,null,null,null,null,null,null,null,null,null,null,null,null,null,null,{"$f":"IF(CG21=MAX($CG21,$CI21,$CK21),0,B38)","v":0},null,{"$f":"IF(CI21=MAX($CG21,$CI21,$CK21),0,D38)","v":0},null,{"$f":"IF(CK21=MAX($CG21,$CI21,$CK21),0,G38)","v":0},null,{"$f":"AVERAGEIF(CG27:CK27,\">0\",CG27:CK27)","v":{"$error":"#DIV/0!"}}]
[{"$f":"'Core Data'!A13","v":""},{"$f":"'QC-1 Density Worksheet'!E17","v":0},null,{"$f":"'QC-1 Density Worksheet'!H17","v":0},{"$f":"ABS(B28-D28)","v":0},null,{"$f":"'QC-1 Density Worksheet'!K17","v":0},null,{"$f":"IF(B28=0,\"\",(IF(ABS(B28-D28)>1,CM10,AVERAGE(B28,D28))))","v":""},"",{"$f":"IFERROR(AA28,\"\")","v":""},null,{"$f":"IFERROR(+I28/62.24/$H$14*100,\"\")","v":""},null,{"$f":"IFERROR(+K28/$H$14*100,\"\")","v":""},null,{"$f":"IFERROR(O28-M28,\"\")","v":""},null,{"$f":"IFERROR(M28+$U$41,\"\")","v":""},null,{"$f":"IFERROR(O28-S28,\"\")","v":""},null,{"$f":"'Core Data'!A13","v":""},{"$f":"'Core Data'!D13","v":0},{"$f":"'Core Data'!E13","v":0},{"$f":"'Core Data'!F13","v":0},{"$f":"IFERROR(ROUND(+X28/(Y28-Z28),3),\"\")","v":""},null,null,null,null,null,null,null,null,null,null,null,null,null,null,null,null,null,null,null,null,null,null,null,null,null,null,null,null,null,null,null,null,null,null,null,null,null,null,null,null,null,null,null,null,null,null,null,null,null,null,null,null,null,null,null,null,null,{"$f":"IF(CG22=MAX($CG22,$CI22,$CK22),0,B39)","v":0},null,{"$f":"IF(CI22=MAX($CG22,$CI22,$CK22),0,D39)","v":0},null,{"$f":"IF(CK22=MAX($CG22,$CI22,$CK22),0,G39)","v":0},null,{"$f":"AVERAGEIF(CG28:CK28,\">0\",CG28:CK28)","v":{"$error":"#DIV/0!"}}]
[{"$f":"'Core Data'!A14","v":""},{"$f":"'QC-1 Density Worksheet'!E18","v":0},null,{"$f":"'QC-1 Density Worksheet'!H18","v":0},{"$f":"ABS(B29-D29)","v":0},null,{"$f":"'QC-1 Density Worksheet'!K18","v":0},null,{"$f":"IF(B29=0,\"\",(IF(ABS(B29-D29)>1,CM11,AVERAGE(B29,D29))))","v":""},"",{"$f":"IFERROR(AA29,\"\")","v":""},null,{"$f":"IFERROR(+I29/62.24/$H$14*100,\"\")","v":""},null,{"$f":"IFERROR(+K29/$H$14*100,\"\")","v":""},null,{"$f":"IFERROR(O29-M29,\"\")","v":""},null,{"$f":"IFERROR(M29+$U$41,\"\")","v":""},null,{"$f":"IFERROR(O29-S29,\"\")","v":""},null,{"$f":"'Core Data'!A14","v":""},{"$f":"'Core Data'!D14","v":0},{"$f":"'Core Data'!E14","v":0},{"$f":"'Core Data'!F14","v":0},{"$f":"IFERROR(ROUND(+X29/(Y29-Z29),3),\"\")","v":""}]
[]
[null,"ZONE 2"]
[null,"Station (@ center of Zone):",null,null,{"$f":"IF('QC-1 Density Worksheet'!B22=\"\",\"\",'QC-1 Density Worksheet'!B22)","v":0}]
[null,"pcf",null,"pcf",null,null,"pcf",null,"pcf"]
[null,"Reading 1",null,"Reading 2","Difference",null,"Reading 3*            \nif applicable",null,"Ave Nuclear",null,"Core Density",null,"Ave Nuclear",null,"Core Density",null,"Difference",null,"Adjusted Nuc.",null,"Adj. Diff.",null,null,"Dry weight","SSD","Submerged","Core Density"]
[{"$f":"'Core Data'!A18","v":""},{"$f":"'QC-1 Density Worksheet'!E20","v":0},null,{"$f":"'QC-1 Density Worksheet'!H20","v":0},{"$f":"ABS(B35-D35)","v":0},null,{"$f":"'QC-1 Density Worksheet'!K20","v":0},null,{"$f":"IF(B35=0,\"\",(IF(ABS(B35-D35)>1,CM24,AVERAGE(B35,D35))))","v":""},"",{"$f":"IFERROR(AA35,\"\")","v":""},null,{"$f":"IFERROR(+I35/62.24/$H$14*100,\"\")","v":""},null,{"$f":"IFERROR(+K35/$H$14*100,\"\")","v":""},null,{"$f":"IFERROR(O35-M35,\"\")","v":""},null,{"$f":"IFERROR(M35+$U$41,\"\")","v":""},null,{"$f":"IFERROR(O35-S35,\"\")","v":""},null,{"$f":"'Core Data'!A18","v":""},{"$f":"'Core Data'!D18","v":0},{"$f":"'Core Data'!E18","v":0},{"$f":"'Core Data'!F18","v":0},{"$f":"IFERROR(ROUND(+X35/(Y35-Z35),3),\"\")","v":""}]
[{"$f":"'Core Data'!A19","v":""},{"$f":"'QC-1 Density Worksheet'!E21","v":0},null,{"$f":"'QC-1 Density Worksheet'!H21","v":0},{"$f":"ABS(B36-D36)","v":0},null,{"$f":"'QC-1 Density Worksheet'!K21","v":0},null,{"$f":"IF(B36=0,\"\",(IF(ABS(B36-D36)>1,CM25,AVERAGE(B36,D36))))","v":""},"",{"$f":"IFERROR(AA36,\"\")","v":""},null,{"$f":"IFERROR(+I36/62.24/$H$14*100,\"\")","v":""},null,{"$f":"IFERROR(+K36/$H$14*100,\"\")","v":""},null,{"$f":"IFERROR(O36-M36,\"\")","v":""},null,{"$f":"IFERROR(M36+$U$41,\"\")","v":""},null,{"$f":"IFERROR(O36-S36,\"\")","v":""},null,{"$f":"'Core Data'!A19","v":""},{"$f":"'Core Data'!D19","v":0},{"$f":"'Core Data'!E19","v":0},{"$f":"'Core Data'!F19","v":0},{"$f":"IFERROR(ROUND(+X36/(Y36-Z36),3),\"\")","v":""}]
[{"$f":"'Core Data'!A20","v":""},{"$f":"'QC-1 Density Worksheet'!E22","v":0},null,{"$f":"'QC-1 Density Worksheet'!H22","v":0},{"$f":"ABS(B37-D37)","v":0},null,{"$f":"'QC-1 Density Worksheet'!K22","v":0},null,{"$f":"IF(B37=0,\"\",(IF(ABS(B37-D37)>1,CM26,AVERAGE(B37,D37))))","v":""},"",{"$f":"IFERROR(AA37,\"\")","v":""},null,{"$f":"IFERROR(+I37/62.24/$H$14*100,\"\")","v":""},null,{"$f":"IFERROR(+K37/$H$14*100,\"\")","v":""},null,{"$f":"IFERROR(O37-M37,\"\")","v":""},null,{"$f":"IFERROR(M37+$U$41,\"\")","v":""},null,{"$f":"IFERROR(O37-S37,\"\")","v":""},null,{"$f":"'Core Data'!A20","v":""},{"$f":"'Core Data'!D20","v":0},{"$f":"'Core Data'!E20","v":0},{"$f":"'Core Data'!F20","v":0},{"$f":"IFERROR(ROUND(+X37/(Y37-Z37),3),\"\")","v":""}]
[{"$f":"'Core Data'!A21","v":""},{"$f":"'QC-1 Density Worksheet'!E23","v":0},null,{"$f":"'QC-1 Density Worksheet'!H23","v":0},{"$f":"ABS(B38-D38)","v":0},null,{"$f":"'QC-1 Density Worksheet'!K23","v":0},null,{"$f":"IF(B38=0,\"\",(IF(ABS(B38-D38)>1,CM27,AVERAGE(B38,D38))))","v":""},"",{"$f":"IFERROR(AA38,\"\")","v":""},null,{"$f":"IFERROR(+I38/62.24/$H$14*100,\"\")","v":""},null,{"$f":"IFERROR(+K38/$H$14*100,\"\")","v":""},null,{"$f":"IFERROR(O38-M38,\"\")","v":""},null,{"$f":"IFERROR(M38+$U$41,\"\")","v":""},null,{"$f":"IFERROR(O38-S38,\"\")","v":""},null,{"$f":"'Core Data'!A21","v":""},{"$f":"'Core Data'!D21","v":0},{"$f":"'Core Data'!E21","v":0},{"$f":"'Core Data'!F21","v":0},{"$f":"IFERROR(ROUND(+X38/(Y38-Z38),3),\"\")","v":""}]
[{"$f":"'Core Data'!A22","v":""},{"$f":"'QC-1 Density Worksheet'!E24","v":0},null,{"$f":"'QC-1 Density Worksheet'!H24","v":0},{"$f":"ABS(B39-D39)","v":0},null,{"$f":"'QC-1 Density Worksheet'!K24","v":0},null,{"$f":"IF(B39=0,\"\",(IF(ABS(B39-D39)>1,CM28,AVERAGE(B39,D39))))","v":""},"",{"$f":"IFERROR(AA39,\"\")","v":""},null,{"$f":"IFERROR(+I39/62.24/$H$14*100,\"\")","v":""},null,{"$f":"IFERROR(+K39/$H$14*100,\"\")","v":""},null,{"$f":"IFERROR(O39-M39,\"\")","v":""},null,{"$f":"IFERROR(M39+$U$41,\"\")","v":""},null,{"$f":"IFERROR(O39-S39,\"\")","v":""},null,{"$f":"'Core Data'!A22","v":""},{"$f":"'Core Data'!D22","v":0},{"$f":"'Core Data'!E22","v":0},{"$f":"'Core Data'!F22","v":0},{"$f":"IFERROR(ROUND(+X39/(Y39-Z39),3),\"\")","v":""}]
[]
[null,null,null,null,null,null,null,null,null,null,null,null,null,null,null,null,null,null,"OFFSET",null,{"$f":"IFERROR(AVERAGE(Q25:Q29,Q35:Q39),\"\")","v":""}]
[null,null,null,null,null,null,null,null,null,null,null,null,null,null,null,null,null,null,null,null,null,null,null,null,null,null,"Nuclear / Core Correlation Worksheet     "]
[null,null,null,null,null,null,null,null,null,null,null,null,null,null,"Gauge",null,"Cores"]
[null,null,null,null,null,null,null,null,"page 1",null,null,null,"RANGE",null,{"$f":"O46-O47","v":0},"%",{"$f":"Q46-Q47","v":0},"%",null,null,"page 2",null,null,null,null,null,null,"page 3"]
[]
[null,null,null,null,null,null,null,null,null,null,null,null,"Max",null,{"$f":"MAX(M25:M29,M35:M39)","v":0},null,{"$f":"MAX(O25:O29,O35:O39)","v":0}]
[null,null,null,null,null,null,null,null,null,null,null,null,"Min",null,{"$f":"MIN(M25:M29,M35:M39)","v":0},null,{"$f":"MIN(O25:O29,O35:O39)","v":0}]

{"sheet":"QC-2 Correlation","index":11,"n_rows":47,"n_cols":91,"rows_kept":47,"cut":false,"hidden":false,"merged":[[40,1,42,8],[40,18,40,19],[16,84,16,88],[17,2,17,4],[21,4,21,6],[21,18,21,19],[22,84,22,88],[13,7,13,8],[9,7,9,8],[10,7,10,8],[22,89,22,91],[31,4,31,6],[15,2,15,8],[18,2,18,4],[9,23,9,24],[14,2,14,4],[14,7,14,8],[9,2,9,4],[11,7,11,8],[9,26,9,27],[10,2,10,4],[12,7,12,8],[10,26,10,27],[5,23,5,24],[6,3,6,8],[8,7,8,8],[7,23,7,27],[8,23,8,24],[11,2,11,4],[12,2,12,4],[13,2,13,4],[0,84,0,88],[1,23,1,24],[1,30,2,30],[1,32,2,32],[2,23,2,24],[6,23,6,24],[8,2,8,4],[0,3,4,8],[0,12,0,14],[0,19,0,20],[0,23,0,24],[3,23,3,24],[4,23,4,24]]}
[null,null,null,"Wisconsin Department \nof Transportation ",null,null,null,null,null,null,"Date:",null,{"$f":"IF(C9=\"\",\"\",C9)","v":""},null,null,null,null,null,"Gauge No.:",{"$f":"IF(H12=\"\",\"\",H12)","v":""},null,null,"Date:",{"$f":"IF(C9=\"\",\"\",C9)","v":""},null,null,"Layer:",{"$f":"IF('Project Info & Instructions'!G16=\"\",\"\",'Project Info & Instructions'!G16)","v":""},null,null,null,null,null,null,null,null,null,null,null,null,null,null,null,null,null,null,null,null,null,null,null,null,null,null,null,null,null,null,null,null,null,null,null,null,null,null,null,null,null,null,null,null,null,null,null,null,null,null,null,null,null,null,null,"Zone 1","Variation from Avg"]
[null,null,null,null,null,null,null,null,null,null,null,null,null,null,null,null,null,null,"Nuclear / Core Correlation Worksheet     ",null,null,null,"Contract:",{"$f":"IF(C10=\"\",\"\",C10)","v":""},null,null,"Layer Thickness:",{"$f":"H13","v":""},null,null,"Ave Nuclear",null,"Core Density",null,null,null,null,null,null,null,null,null,null,null,null,null,null,null,null,null,null,null,null,null,null,null,null,null,null,null,null,null,null,null,null,null,null,null,null,null,null,null,null,null,null,null,null,null,null,null,null,null,null,"1A)",{"$f":"ABS(AVERAGE('QC-2 Correlation'!$B$25,'QC-2 Correlation'!$D$25,'QC-2 Correlation'!$G$25)-'QC-2 Correlation'!B25)","v":0},"1B)",{"$f":"ABS(AVERAGE('QC-2 Correlation'!$B$25,'QC-2 Correlation'!$D$25,'QC-2 Correlation'!$G$25)-'QC-2 Correlation'!D25)","v":0},"1C)",{"$f":"ABS(AVERAGE('QC-2 Correlation'!$B$25,'QC-2 Correlation'!$D$25,'QC-2 Correlation'!$G$25)-'QC-2 Correlation'!G25)","v":0}]
[null,null,null,null,null,null,null,null,null,null,null,null,null,null,null,null,null,null,null,null,null,null,"Job No.:","",null,null,"Gmm:",{"$f":"H14","v":""},null,null,null,null,null,null,null,null,null,null,null,null,null,null,null,null,null,null,null,null,null,null,null,null,null,null,null,null,null,null,null,null,null,null,null,null,null,null,null,null,null,null,null,null,null,null,null,null,null,null,null,null,null,null,null,"2A)",{"$f":"ABS(AVERAGE('QC-2 Correlation'!$B$26,'QC-2 Correlation'!$D$26,'QC-2 Correlation'!$G$26)-'QC-2 Correlation'!B26)","v":0},"2B)",{"$f":"ABS(AVERAGE('QC-2 Correlation'!$B$26,'QC-2 Correlation'!$D$26,'QC-2 Correlation'!$G$26)-'QC-2 Correlation'!D26)","v":0},"2C)",{"$f":"ABS(AVERAGE('QC-2 Correlation'!$B$26,'QC-2 Correlation'!$D$26,'QC-2 Correlation'!$G$26)-'QC-2 Correlation'!G26)","v":0}]
[null,null,null,null,null,null,null,null,null,null,null,null,null,null,null,null,null,null,null,null,null,null,"Route:","",null,null,null,null,null,null,{"$f":"M25","v":""},null,{"$f":"O25","v":""},null,null,null,null,null,null,null,null,null,null,null,null,null,null,null,null,null,null,null,null,null,null,null,null,null,null,null,null,null,null,null,null,null,null,null,null,null,null,null,null,null,null,null,null,null,null,null,null,null,null,"3A)",{"$f":"ABS(AVERAGE('QC-2 Correlation'!$B$27,'QC-2 Correlation'!$D$27,'QC-2 Correlation'!$G$27)-'QC-2 Correlation'!B27)","v":0},"3B)",{"$f":"ABS(AVERAGE('QC-2 Correlation'!$B$27,'QC-2 Correlation'!$D$27,'QC-2 Correlation'!$G$27)-'QC-2 Correlation'!D27)","v":0},"3C)",{"$f":"ABS(AVERAGE('QC-2 Correlation'!$B$27,'QC-2 Correlation'!$D$27,'QC-2 Correlation'!$G$27)-'QC-2 Correlation'!G27)","v":0}]
[null,null,null,null,null,null,null,null,null,null,null,null,null,null,null,null,null,null,null,null,null,null,"Underlying Material:","",null,null,null,null,null,null,{"$f":"M26","v":""},null,{"$f":"O26","v":""},null,null,null,null,null,null,null,null,null,null,null,null,null,null,null,null,null,null,null,null,null,null,null,null,null,null,null,null,null,null,null,null,null,null,null,null,null,null,null,null,null,null,null,null,null,null,null,null,null,null,"4A)",{"$f":"ABS(AVERAGE('QC-2 Correlation'!$B$28,'QC-2 Correlation'!$D$28,'QC-2 Correlation'!$G$28)-'QC-2 Correlation'!B28)","v":0},"4B)",{"$f":"ABS(AVERAGE('QC-2 Correlation'!$B$28,'QC-2 Correlation'!$D$28,'QC-2 Correlation'!$G$28)-'QC-2 Correlation'!D28)","v":0},"4C)",{"$f":"ABS(AVERAGE('QC-2 Correlation'!$B$28,'QC-2 Correlation'!$D$28,'QC-2 Correlation'!$G$28)-'QC-2 Correlation'!G28)","v":0}]
[null,{"$f":"'Project Info & Instructions'!A6","v":"Revised 04-26-18"},null,null,null,null,null,null,null,null,null,null,null,null,null,null,null,null,null,null,null,null,"WisDOT Mix No.:","",null,null,null,null,null,null,{"$f":"M27","v":""},null,{"$f":"O27","v":""},null,null,null,null,null,null,null,null,null,null,null,null,null,null,null,null,null,null,null,null,null,null,null,null,null,null,null,null,null,null,null,null,null,null,null,null,null,null,null,null,null,null,null,null,null,null,null,null,null,null,"5A)",{"$f":"ABS(AVERAGE('QC-2 Correlation'!$B$29,'QC-2 Correlation'!$D$29,'QC-2 Correlation'!$G$29)-'QC-2 Correlation'!B29)","v":0},"5B)",{"$f":"ABS(AVERAGE('QC-2 Correlation'!$B$29,'QC-2 Correlation'!$D$29,'QC-2 Correlation'!$G$29)-'QC-2 Correlation'!D29)","v":0},"5C)",{"$f":"ABS(AVERAGE('QC-2 Correlation'!$B$29,'QC-2 Correlation'!$D$29,'QC-2 Correlation'!$G$29)-'QC-2 Correlation'!G29)","v":0}]
[null,null,null,"Nuclear / Core Correlation Worksheet",null,null,null,null,null,null,null,null,null,null,null,null,null,null,null,null,null,null,"Mixture Type:",{"$f":"IF('Project Info & Instructions'!C21=\"\",\"\",'Project Info & Instructions'!C21)","v":"--"},null,null,"Core Diameter:",{"$f":"H15","v":6},null,null,{"$f":"M28","v":""},null,{"$f":"O28","v":""},null,null,null,null,null,null,null,null,null,null,null,null,null,null,null,null,null,null,null,null,null,null,null,null,null,null,null,null,null,null,null,null,null,null,null,null,null,null,null,null,null,null,null,null,null,null,null,null,null,null,null,{"$f":"IF(CG2=MAX($CG2,$CI2,$CK2),0,'QC-2 Correlation'!B25)","v":0},null,{"$f":"IF(CI2=MAX($CG2,$CI2,$CK2),0,'QC-2 Correlation'!D25)","v":0},null,{"$f":"IF(CK2=MAX($CG2,$CI2,$CK2),0,'QC-2 Correlation'!G25)","v":0},null,{"$f":"AVERAGEIF(CG7:CK7,\">0\",CG7:CK7)","v":{"$error":"#DIV/0!"}}]
[null,null,null,null,null,null,null,null,null,null,null,null,null,null,null,null,null,null,null,null,null,null,"Test Strip Type:",{"$f":"'Project Info & Instructions'!C9","v":"Combined Density and Air Voids Test Strip"},null,null,null,null,null,null,{"$f":"M29","v":""},null,{"$f":"O29","v":""},null,null,null,null,null,null,null,null,null,null,null,null,null,null,null,null,null,null,null,null,null,null,null,null,null,null,null,null,null,null,null,null,null,null,null,null,null,null,null,null,null,null,null,null,null,null,null,null,null,null,null,{"$f":"IF(CG3=MAX($CG3,$CI3,$CK3),0,'QC-2 Correlation'!B26)","v":0},null,{"$f":"IF(CI3=MAX($CG3,$CI3,$CK3),0,'QC-2 Correlation'!D26)","v":0},null,{"$f":"IF(CK3=MAX($CG3,$CI3,$CK3),0,'QC-2 Correlation'!G26)","v":0},null,{"$f":"AVERAGEIF(CG8:CK8,\">0\",CG8:CK8)","v":{"$error":"#DIV/0!"}}]
[null,"Date:",{"$f":"IF('Project Info & Instructions'!C10=\"\",\"\",'Project Info & Instructions'!C10)","v":""},null,null,null,"Test Strip #:",{"$f":"IF('Project Info & Instructions'!C11=\"\",\"\",'Project Info & Instructions'!C11)","v":""},null,null,null,null,null,null,null,null,null,null,null,null,null,null,"NUCDENSITYTEC:",{"$f":"IF('QC-2 Density Worksheet'!I5=\"\",\"\",'QC-2 Density Worksheet'!I5)","v":""},null,null,null,null,null,null,{"$f":"M35","v":""},null,{"$f":"O35","v":""},null,null,null,null,null,null,null,null,null,null,null,null,null,null,null,null,null,null,null,null,null,null,null,null,null,null,null,null,null,null,null,null,null,null,null,null,null,null,null,null,null,null,null,null,null,null,null,null,null,null,null,{"$f":"IF(CG4=MAX($CG4,$CI4,$CK4),0,'QC-2 Correlation'!B27)","v":0},null,{"$f":"IF(CI4=MAX($CG4,$CI4,$CK4),0,'QC-2 Correlation'!D27)","v":0},null,{"$f":"IF(CK4=MAX($CG4,$CI4,$CK4),0,'QC-2 Correlation'!G27)","v":0},null,{"$f":"AVERAGEIF(CG9:CK9,\">0\",CG9:CK9)","v":{"$error":"#DIV/0!"}}]
[null,"Contract:",{"$f":"IF('Project Info & Instructions'!C12=\"\",\"\",'Project Info & Instructions'!C12)","v":""},null,null,null,"Layer:",{"$f":"IF('Project Info & Instructions'!G16=\"\",\"\",'Project Info & Instructions'!G16)","v":""},null,null,null,null,null,null,null,null,null,null,null,null,null,null,"Gauge No.:",{"$f":"IF('QC-2 Density Worksheet'!M4=\"\",\"\",'QC-2 Density Worksheet'!M4)","v":""},null,null,"Spread of Cores (%)",null,null,null,{"$f":"M36","v":""},null,{"$f":"O36","v":""},null,null,null,null,null,null,null,null,null,null,null,null,null,null,null,null,null,null,null,null,null,null,null,null,null,null,null,null,null,null,null,null,null,null,null,null,null,null,null,null,null,null,null,null,null,null,null,null,null,null,null,{"$f":"IF(CG5=MAX($CG5,$CI5,$CK5),0,'QC-2 Correlation'!B28)","v":0},null,{"$f":"IF(CI5=MAX($CG5,$CI5,$CK5),0,'QC-2 Correlation'!D28)","v":0},null,{"$f":"IF(CK5=MAX($CG5,$CI5,$CK5),0,'QC-2 Correlation'!G28)","v":0},null,{"$f":"AVERAGEIF(CG10:CK10,\">0\",CG10:CK10)","v":{"$error":"#DIV/0!"}}]
[null,"Job No.:",{"$f":"IF('Project Info & Instructions'!C13=\"\",\"\",'Project Info & Instructions'!C13)","v":""},null,null,null,"Mixture Type:",{"$f":"IF('Project Info & Instructions'!C21=\"\",\"\",'Project Info & Instructions'!C21)","v":"--"},null,null,null,null,null,null,null,null,null,null,null,null,null,null,null,null,null,null,{"$f":"IF(Q44>0,Q44,\"\")","v":""},null,null,null,{"$f":"M37","v":""},null,{"$f":"O37","v":""},null,null,null,null,null,null,null,null,null,null,null,null,null,null,null,null,null,null,null,null,null,null,null,null,null,null,null,null,null,null,null,null,null,null,null,null,null,null,null,null,null,null,null,null,null,null,null,null,null,null,null,{"$f":"IF(CG6=MAX($CG6,$CI6,$CK6),0,'QC-2 Correlation'!B29)","v":0},null,{"$f":"IF(CI6=MAX($CG6,$CI6,$CK6),0,'QC-2 Correlation'!D29)","v":0},null,{"$f":"IF(CK6=MAX($CG6,$CI6,$CK6),0,'QC-2 Correlation'!G29)","v":0},null,{"$f":"AVERAGEIF(CG11:CK11,\">0\",CG11:CK11)","v":{"$error":"#DIV/0!"}}]
[null,"Route:",{"$f":"IF('Project Info & Instructions'!C14=\"\",\"\",'Project Info & Instructions'!C14)","v":""},null,null,null,null,null,null,null,null,null,null,null,null,null,null,null,null,null,null,null,null,null,null,null,null,null,null,null,{"$f":"M38","v":""},null,{"$f":"O38","v":""}]
[null,"Underlying Matl.:",{"$f":"IF('Project Info & Instructions'!G17=\"\",\"\",'Project Info & Instructions'!G17)","v":""},null,null,null,"Layer Thickness:",{"$f":"IF('Project Info & Instructions'!G12=\"\",\"\",'Project Info & Instructions'!G12)","v":""},null,null,null,null,null,null,null,null,null,null,null,null,null,null,"SN","Gauge ID","Offset","R-squared","Spread (%)",null,null,null,{"$f":"M39","v":""},null,{"$f":"O39","v":""}]
[null,"WisDOT Mix No.:",{"$f":"IF('Project Info & Instructions'!C16=\"\",\"\",'Project Info & Instructions'!C16)","v":""},null,null,null,"Gmm:",{"$f":"IF('Project Info & Instructions'!O9=2,'Project Info & Instructions'!J9,'Air Voids Pay Factor'!D10)","v":""},null,null,null,null,null,null,null,null,null,null,null,null,null,null,{"$f":"IF('QC-1 Correlation'!C19=\"\",\"\",'QC-1 Correlation'!C19)","v":""},"QC-1",{"$f":"IF('QC-1 Correlation'!U41=\"\",\"\",'QC-1 Correlation'!U41)","v":""},{"$f":"IF('QC-1 Correlation'!U22=\"\",\"\",'QC-1 Correlation'!U22)","v":""},{"$f":"IF('QC-1 Correlation'!O44=\"\",\"\",'QC-1 Correlation'!O44)","v":0}]
[null,"Mix Type:",{"$f":"IF('Project Info & Instructions'!C21=\"\",\"\",'Project Info & Instructions'!C21)","v":"--"},null,null,null,"Core Diameter:",6,null,null,null,null,null,null,null,null,null,null,null,null,null,null,{"$f":"IF('QC-2 Correlation'!C19=\"\",\"\",'QC-2 Correlation'!C19)","v":""},"QC-2",{"$f":"IF('QC-2 Correlation'!U41=\"\",\"\",'QC-2 Correlation'!U41)","v":""},{"$f":"IF('QC-2 Correlation'!U22=\"\",\"\",'QC-2 Correlation'!U22)","v":""},{"$f":"IF('QC-2 Correlation'!O44=\"\",\"\",'QC-2 Correlation'!O44)","v":0}]
[null,"Test Strip Type:",{"$f":"'Project Info & Instructions'!C9","v":"Combined Density and Air Voids Test Strip"},null,null,null,null,null,null,null,null,null,null,null,null,null,null,null,null,null,null,null,{"$f":"IF('QV-1 Correlation'!C19=\"\",\"\",'QV-1 Correlation'!C19)","v":""},"QV-1",{"$f":"IF('QV-1 Correlation'!U41=\"\",\"\",'QV-1 Correlation'!U41)","v":""},{"$f":"IF('QV-1 Correlation'!U22=\"\",\"\",'QV-1 Correlation'!U22)","v":""},{"$f":"IF('QV-1 Correlation'!O44=\"\",\"\",'QV-1 Correlation'!O44)","v":0}]
[null,null,null,null,null,null,null,null,null,null,null,null,null,null,null,null,null,null,null,null,null,null,{"$f":"IF('QV-2 Correlation'!C19=\"\",\"\",'QV-2 Correlation'!C19)","v":""},"QV-2",{"$f":"IF('QV-2 Correlation'!U41=\"\",\"\",'QV-2 Correlation'!U41)","v":""},{"$f":"IF('QV-2 Correlation'!U22=\"\",\"\",'QV-2 Correlation'!U22)","v":""},{"$f":"IF('QV-2 Correlation'!O44=\"\",\"\",'QV-2 Correlation'!O44)","v":0},null,null,null,null,null,null,null,null,null,null,null,null,null,null,null,null,null,null,null,null,null,null,null,null,null,null,null,null,null,null,null,null,null,null,null,null,null,null,null,null,null,null,null,null,null,null,null,null,null,null,null,null,null,null,null,null,"Zone 2","Variation from Avg"]
[null,"NUCDENSITYTEC:",{"$f":"IF('QC-2 Density Worksheet'!I5=\"\",\"\",'QC-2 Density Worksheet'!I5)","v":""},null,null,null,null,null,null,null,null,null,null,null,null,null,null,null,null,null,null,null,null,null,null,null,null,null,null,null,null,null,null,null,null,null,null,null,null,null,null,null,null,null,null,null,null,null,null,null,null,null,null,null,null,null,null,null,null,null,null,null,null,null,null,null,null,null,null,null,null,null,null,null,null,null,null,null,null,null,null,null,null,"6A",{"$f":"ABS(AVERAGE('QC-2 Correlation'!$B35,'QC-2 Correlation'!$D35,'QC-2 Correlation'!$G35)-'QC-2 Correlation'!B35)","v":0},"6B",{"$f":"ABS(AVERAGE('QC-2 Correlation'!$B35,'QC-2 Correlation'!$D35,'QC-2 Correlation'!$G35)-'QC-2 Correlation'!D35)","v":0},"6C",{"$f":"ABS(AVERAGE('QC-2 Correlation'!$B35,'QC-2 Correlation'!$D35,'QC-2 Correlation'!$G35)-'QC-2 Correlation'!G35)","v":0}]
[null,"Gauge No.:",{"$f":"IF('QC-2 Density Worksheet'!M4=\"\",\"\",'QC-2 Density Worksheet'!M4)","v":""},null,null,null,null,null,null,null,null,null,null,null,null,null,null,null,null,null,null,null,null,null,null,null,null,null,null,null,null,null,null,null,null,null,null,null,null,null,null,null,null,null,null,null,null,null,null,null,null,null,null,null,null,null,null,null,null,null,null,null,null,null,null,null,null,null,null,null,null,null,null,null,null,null,null,null,null,null,null,null,null,"7A",{"$f":"ABS(AVERAGE('QC-2 Correlation'!$B36,'QC-2 Correlation'!$D36,'QC-2 Correlation'!$G36)-'QC-2 Correlation'!B36)","v":0},"7B",{"$f":"ABS(AVERAGE('QC-2 Correlation'!$B36,'QC-2 Correlation'!$D36,'QC-2 Correlation'!$G36)-'QC-2 Correlation'!D36)","v":0},"7C",{"$f":"ABS(AVERAGE('QC-2 Correlation'!$B36,'QC-2 Correlation'!$D36,'QC-2 Correlation'!$G36)-'QC-2 Correlation'!G36)","v":0}]
[null,null,null,null,null,null,null,null,null,null,null,null,null,null,null,null,null,null,null,null,null,null,null,null,null,null,null,null,null,null,null,null,null,null,null,null,null,null,null,null,null,null,null,null,null,null,null,null,null,null,null,null,null,null,null,null,null,null,null,null,null,null,null,null,null,null,null,null,null,null,null,null,null,null,null,null,null,null,null,null,null,null,null,"8A",{"$f":"ABS(AVERAGE('QC-2 Correlation'!$B37,'QC-2 Correlation'!$D37,'QC-2 Correlation'!$G37)-'QC-2 Correlation'!B37)","v":0},"8B",{"$f":"ABS(AVERAGE('QC-2 Correlation'!$B37,'QC-2 Correlation'!$D37,'QC-2 Correlation'!$G37)-'QC-2 Correlation'!D37)","v":0},"8C",{"$f":"ABS(AVERAGE('QC-2 Correlation'!$B37,'QC-2 Correlation'!$D37,'QC-2 Correlation'!$G37)-'QC-2 Correlation'!G37)","v":0}]
[null,"ZONE 1",null,null,null,null,null,null,null,null,null,null,null,null,null,null,null,null,null,null,null,null,null,null,null,null,null,null,null,null,null,null,null,null,null,null,null,null,null,null,null,null,null,null,null,null,null,null,null,null,null,null,null,null,null,null,null,null,null,null,null,null,null,null,null,null,null,null,null,null,null,null,null,null,null,null,null,null,null,null,null,null,null,"9A",{"$f":"ABS(AVERAGE('QC-2 Correlation'!$B38,'QC-2 Correlation'!$D38,'QC-2 Correlation'!$G38)-'QC-2 Correlation'!B38)","v":0},"9B",{"$f":"ABS(AVERAGE('QC-2 Correlation'!$B38,'QC-2 Correlation'!$D38,'QC-2 Correlation'!$G38)-'QC-2 Correlation'!D38)","v":0},"9C",{"$f":"ABS(AVERAGE('QC-2 Correlation'!$B38,'QC-2 Correlation'!$D38,'QC-2 Correlation'!$G38)-'QC-2 Correlation'!G38)","v":0}]
[null,"Station (@ center of Zone):",null,null,{"$f":"IF('QC-1 Density Worksheet'!B16=\"\",\"\",'QC-1 Density Worksheet'!B16)","v":0},null,null,null,null,null,null,null,"CALCULATIONS",null,null,null,null,null,"R-Squared",null,{"$f":"IFERROR(RSQ(AE4:AE13,AG4:AG13),\"\")","v":""},null,null,null,"Core Density Calculations",null,null,null,null,null,null,null,null,null,null,null,null,null,null,null,null,null,null,null,null,null,null,null,null,null,null,null,null,null,null,null,null,null,null,null,null,null,null,null,null,null,null,null,null,null,null,null,null,null,null,null,null,null,null,null,null,null,null,"10A",{"$f":"ABS(AVERAGE('QC-2 Correlation'!$B39,'QC-2 Correlation'!$D39,'QC-2 Correlation'!$G39)-'QC-2 Correlation'!B39)","v":0},"10B",{"$f":"ABS(AVERAGE('QC-2 Correlation'!$B39,'QC-2 Correlation'!$D39,'QC-2 Correlation'!$G39)-'QC-2 Correlation'!D39)","v":0},"10C",{"$f":"ABS(AVERAGE('QC-2 Correlation'!$B39,'QC-2 Correlation'!$D39,'QC-2 Correlation'!$G39)-'QC-2 Correlation'!G39)","v":0}]
[null,"pcf",null,"pcf",null,null,"pcf",null,"pcf",null,"Gmb",null,"%",null,"%",null,null,null,null,null,null,null,null,null,null,null,null,null,null,null,null,null,null,null,null,null,null,null,null,null,null,null,null,null,null,null,null,null,null,null,null,null,null,null,null,null,null,null,null,null,null,null,null,null,null,null,null,null,null,null,null,null,null,null,null,null,null,null,null,null,null,null,null,null,"Filter Outlier",null,null,null,null,"Nuc Avg Excluding Outlier"]
[null,"Reading 1",null,"Reading 2","Difference",null,"Reading 3*            \nif applicable",null,"Ave Nuclear",null,"Core Density",null,"Ave Nuclear",null,"Core Density",null,"Difference",null,"Adjusted Nuc.",null,"Adj. Diff.",null,null,"Dry weight","SSD","Submerged","Core Density",null,null,null,null,null,null,null,null,null,null,null,null,null,null,null,null,null,null,null,null,null,null,null,null,null,null,null,null,null,null,null,null,null,null,null,null,null,null,null,null,null,null,null,null,null,null,null,null,null,null,null,null,null,null,null,null,null,{"$f":"IF(CG18=MAX($CG18,$CI18,$CK18),0,B35)","v":0},null,{"$f":"IF(CI18=MAX($CG18,$CI18,$CK18),0,D35)","v":0},null,{"$f":"IF(CK18=MAX($CG18,$CI18,$CK18),0,G35)","v":0},null,{"$f":"AVERAGEIF(CG24:CK24,\">0\",CG24:CK24)","v":{"$error":"#DIV/0!"}}]
[{"$f":"'Core Data'!A10","v":""},{"$f":"'QC-2 Density Worksheet'!E14","v":0},null,{"$f":"'QC-2 Density Worksheet'!H14","v":0},{"$f":"ABS(B25-D25)","v":0},null,{"$f":"'QC-2 Density Worksheet'!K14","v":0},null,{"$f":"IF(B25=0,\"\",(IF(ABS(B25-D25)>1,CM7,AVERAGE(B25,D25))))","v":""},{"$f":"A25","v":""},{"$f":"IFERROR(AA25,\"\")","v":""},null,{"$f":"IFERROR(+I25/62.24/$H$14*100,\"\")","v":""},null,{"$f":"IFERROR(+K25/$H$14*100,\"\")","v":""},null,{"$f":"IFERROR(O25-M25,\"\")","v":""},null,{"$f":"IFERROR(M25+$U$41,\"\")","v":""},null,{"$f":"IFERROR(O25-S25,\"\")","v":""},null,{"$f":"'Core Data'!A10","v":""},{"$f":"'Core Data'!D10","v":0},{"$f":"'Core Data'!E10","v":0},{"$f":"'Core Data'!F10","v":0},{"$f":"IFERROR(ROUND(+X25/(Y25-Z25),3),\"\")","v":""},null,null,null,null,null,null,null,null,null,null,null,null,null,null,null,null,null,null,null,null,null,null,null,null,null,null,null,null,null,null,null,null,null,null,null,null,null,null,null,null,null,null,null,null,null,null,null,null,null,null,null,null,null,null,null,null,null,{"$f":"IF(CG19=MAX($CG19,$CI19,$CK19),0,B36)","v":0},null,{"$f":"IF(CI19=MAX($CG19,$CI19,$CK19),0,D36)","v":0},null,{"$f":"IF(CK19=MAX($CG19,$CI19,$CK19),0,G36)","v":0},null,{"$f":"AVERAGEIF(CG25:CK25,\">0\",CG25:CK25)","v":{"$error":"#DIV/0!"}}]
[{"$f":"'Core Data'!A11","v":""},{"$f":"'QC-2 Density Worksheet'!E15","v":0},null,{"$f":"'QC-2 Density Worksheet'!H15","v":0},{"$f":"ABS(B26-D26)","v":0},null,{"$f":"'QC-2 Density Worksheet'!K15","v":0},null,{"$f":"IF(B26=0,\"\",(IF(ABS(B26-D26)>1,CM8,AVERAGE(B26,D26))))","v":""},{"$f":"A26","v":""},{"$f":"IFERROR(AA26,\"\")","v":""},null,{"$f":"IFERROR(+I26/62.24/$H$14*100,\"\")","v":""},null,{"$f":"IFERROR(+K26/$H$14*100,\"\")","v":""},null,{"$f":"IFERROR(O26-M26,\"\")","v":""},null,{"$f":"IFERROR(M26+$U$41,\"\")","v":""},null,{"$f":"IFERROR(O26-S26,\"\")","v":""},null,{"$f":"'Core Data'!A11","v":""},{"$f":"'Core Data'!D11","v":0},{"$f":"'Core Data'!E11","v":0},{"$f":"'Core Data'!F11","v":0},{"$f":"IFERROR(ROUND(+X26/(Y26-Z26),3),\"\")","v":""},null,null,null,null,null,null,null,null,null,null,null,null,null,null,null,null,null,null,null,null,null,null,null,null,null,null,null,null,null,null,null,null,null,null,null,null,null,null,null,null,null,null,null,null,null,null,null,null,null,null,null,null,null,null,null,null,null,{"$f":"IF(CG20=MAX($CG20,$CI20,$CK20),0,B37)","v":0},null,{"$f":"IF(CI20=MAX($CG20,$CI20,$CK20),0,D37)","v":0},null,{"$f":"IF(CK20=MAX($CG20,$CI20,$CK20),0,G37)","v":0},null,{"$f":"AVERAGEIF(CG26:CK26,\">0\",CG26:CK26)","v":{"$error":"#DIV/0!"}}]
[{"$f":"'Core Data'!A12","v":""},{"$f":"'QC-2 Density Worksheet'!E16","v":0},null,{"$f":"'QC-2 Density Worksheet'!H16","v":0},{"$f":"ABS(B27-D27)","v":0},null,{"$f":"'QC-2 Density Worksheet'!K16","v":0},null,{"$f":"IF(B27=0,\"\",(IF(ABS(B27-D27)>1,CM9,AVERAGE(B27,D27))))","v":""},"",{"$f":"IFERROR(AA27,\"\")","v":""},null,{"$f":"IFERROR(+I27/62.24/$H$14*100,\"\")","v":""},null,{"$f":"IFERROR(+K27/$H$14*100,\"\")","v":""},null,{"$f":"IFERROR(O27-M27,\"\")","v":""},null,{"$f":"IFERROR(M27+$U$41,\"\")","v":""},null,{"$f":"IFERROR(O27-S27,\"\")","v":""},null,{"$f":"'Core Data'!A12","v":""},{"$f":"'Core Data'!D12","v":0},{"$f":"'Core Data'!E12","v":0},{"$f":"'Core Data'!F12","v":0},{"$f":"IFERROR(ROUND(+X27/(Y27-Z27),3),\"\")","v":""},null,null,null,null,null,null,null,null,null,null,null,null,null,null,null,null,null,null,null,null,null,null,null,null,null,null,null,null,null,null,null,null,null,null,null,null,null,null,null,null,null,null,null,null,null,null,null,null,null,null,null,null,null,null,null,null,null,{"$f":"IF(CG21=MAX($CG21,$CI21,$CK21),0,B38)","v":0},null,{"$f":"IF(CI21=MAX($CG21,$CI21,$CK21),0,D38)","v":0},null,{"$f":"IF(CK21=MAX($CG21,$CI21,$CK21),0,G38)","v":0},null,{"$f":"AVERAGEIF(CG27:CK27,\">0\",CG27:CK27)","v":{"$error":"#DIV/0!"}}]
[{"$f":"'Core Data'!A13","v":""},{"$f":"'QC-2 Density Worksheet'!E17","v":0},null,{"$f":"'QC-2 Density Worksheet'!H17","v":0},{"$f":"ABS(B28-D28)","v":0},null,{"$f":"'QC-2 Density Worksheet'!K17","v":0},null,{"$f":"IF(B28=0,\"\",(IF(ABS(B28-D28)>1,CM10,AVERAGE(B28,D28))))","v":""},"",{"$f":"IFERROR(AA28,\"\")","v":""},null,{"$f":"IFERROR(+I28/62.24/$H$14*100,\"\")","v":""},null,{"$f":"IFERROR(+K28/$H$14*100,\"\")","v":""},null,{"$f":"IFERROR(O28-M28,\"\")","v":""},null,{"$f":"IFERROR(M28+$U$41,\"\")","v":""},null,{"$f":"IFERROR(O28-S28,\"\")","v":""},null,{"$f":"'Core Data'!A13","v":""},{"$f":"'Core Data'!D13","v":0},{"$f":"'Core Data'!E13","v":0},{"$f":"'Core Data'!F13","v":0},{"$f":"IFERROR(ROUND(+X28/(Y28-Z28),3),\"\")","v":""},null,null,null,null,null,null,null,null,null,null,null,null,null,null,null,null,null,null,null,null,null,null,null,null,null,null,null,null,null,null,null,null,null,null,null,null,null,null,null,null,null,null,null,null,null,null,null,null,null,null,null,null,null,null,null,null,null,{"$f":"IF(CG22=MAX($CG22,$CI22,$CK22),0,B39)","v":0},null,{"$f":"IF(CI22=MAX($CG22,$CI22,$CK22),0,D39)","v":0},null,{"$f":"IF(CK22=MAX($CG22,$CI22,$CK22),0,G39)","v":0},null,{"$f":"AVERAGEIF(CG28:CK28,\">0\",CG28:CK28)","v":{"$error":"#DIV/0!"}}]
[{"$f":"'Core Data'!A14","v":""},{"$f":"'QC-2 Density Worksheet'!E18","v":0},null,{"$f":"'QC-2 Density Worksheet'!H18","v":0},{"$f":"ABS(B29-D29)","v":0},null,{"$f":"'QC-2 Density Worksheet'!K18","v":0},null,{"$f":"IF(B29=0,\"\",(IF(ABS(B29-D29)>1,CM11,AVERAGE(B29,D29))))","v":""},"",{"$f":"IFERROR(AA29,\"\")","v":""},null,{"$f":"IFERROR(+I29/62.24/$H$14*100,\"\")","v":""},null,{"$f":"IFERROR(+K29/$H$14*100,\"\")","v":""},null,{"$f":"IFERROR(O29-M29,\"\")","v":""},null,{"$f":"IFERROR(M29+$U$41,\"\")","v":""},null,{"$f":"IFERROR(O29-S29,\"\")","v":""},null,{"$f":"'Core Data'!A14","v":""},{"$f":"'Core Data'!D14","v":0},{"$f":"'Core Data'!E14","v":0},{"$f":"'Core Data'!F14","v":0},{"$f":"IFERROR(ROUND(+X29/(Y29-Z29),3),\"\")","v":""}]
[]
[null,"ZONE 2"]
[null,"Station (@ center of Zone):",null,null,{"$f":"IF('QC-1 Density Worksheet'!B22=\"\",\"\",'QC-1 Density Worksheet'!B22)","v":0}]
[null,"pcf",null,"pcf",null,null,"pcf",null,"pcf"]
[null,"Reading 1",null,"Reading 2","Difference",null,"Reading 3*            \nif applicable",null,"Ave Nuclear",null,"Core Density",null,"Ave Nuclear",null,"Core Density",null,"Difference",null,"Adjusted Nuc.",null,"Adj. Diff.",null,null,"Dry weight","SSD","Submerged","Core Density"]
[{"$f":"'Core Data'!A18","v":""},{"$f":"'QC-2 Density Worksheet'!E20","v":0},null,{"$f":"'QC-2 Density Worksheet'!H20","v":0},{"$f":"ABS(B35-D35)","v":0},null,{"$f":"'QC-2 Density Worksheet'!K20","v":0},null,{"$f":"IF(B35=0,\"\",(IF(ABS(B35-D35)>1,CM24,AVERAGE(B35,D35))))","v":""},"",{"$f":"IFERROR(AA35,\"\")","v":""},null,{"$f":"IFERROR(+I35/62.24/$H$14*100,\"\")","v":""},null,{"$f":"IFERROR(+K35/$H$14*100,\"\")","v":""},null,{"$f":"IFERROR(O35-M35,\"\")","v":""},null,{"$f":"IFERROR(M35+$U$41,\"\")","v":""},null,{"$f":"IFERROR(O35-S35,\"\")","v":""},null,{"$f":"'Core Data'!A18","v":""},{"$f":"'Core Data'!D18","v":0},{"$f":"'Core Data'!E18","v":0},{"$f":"'Core Data'!F18","v":0},{"$f":"IFERROR(ROUND(+X35/(Y35-Z35),3),\"\")","v":""}]
[{"$f":"'Core Data'!A19","v":""},{"$f":"'QC-2 Density Worksheet'!E21","v":0},null,{"$f":"'QC-2 Density Worksheet'!H21","v":0},{"$f":"ABS(B36-D36)","v":0},null,{"$f":"'QC-2 Density Worksheet'!K21","v":0},null,{"$f":"IF(B36=0,\"\",(IF(ABS(B36-D36)>1,CM25,AVERAGE(B36,D36))))","v":""},"",{"$f":"IFERROR(AA36,\"\")","v":""},null,{"$f":"IFERROR(+I36/62.24/$H$14*100,\"\")","v":""},null,{"$f":"IFERROR(+K36/$H$14*100,\"\")","v":""},null,{"$f":"IFERROR(O36-M36,\"\")","v":""},null,{"$f":"IFERROR(M36+$U$41,\"\")","v":""},null,{"$f":"IFERROR(O36-S36,\"\")","v":""},null,{"$f":"'Core Data'!A19","v":""},{"$f":"'Core Data'!D19","v":0},{"$f":"'Core Data'!E19","v":0},{"$f":"'Core Data'!F19","v":0},{"$f":"IFERROR(ROUND(+X36/(Y36-Z36),3),\"\")","v":""}]
[{"$f":"'Core Data'!A20","v":""},{"$f":"'QC-2 Density Worksheet'!E22","v":0},null,{"$f":"'QC-2 Density Worksheet'!H22","v":0},{"$f":"ABS(B37-D37)","v":0},null,{"$f":"'QC-2 Density Worksheet'!K22","v":0},null,{"$f":"IF(B37=0,\"\",(IF(ABS(B37-D37)>1,CM26,AVERAGE(B37,D37))))","v":""},"",{"$f":"IFERROR(AA37,\"\")","v":""},null,{"$f":"IFERROR(+I37/62.24/$H$14*100,\"\")","v":""},null,{"$f":"IFERROR(+K37/$H$14*100,\"\")","v":""},null,{"$f":"IFERROR(O37-M37,\"\")","v":""},null,{"$f":"IFERROR(M37+$U$41,\"\")","v":""},null,{"$f":"IFERROR(O37-S37,\"\")","v":""},null,{"$f":"'Core Data'!A20","v":""},{"$f":"'Core Data'!D20","v":0},{"$f":"'Core Data'!E20","v":0},{"$f":"'Core Data'!F20","v":0},{"$f":"IFERROR(ROUND(+X37/(Y37-Z37),3),\"\")","v":""}]
[{"$f":"'Core Data'!A21","v":""},{"$f":"'QC-2 Density Worksheet'!E23","v":0},null,{"$f":"'QC-2 Density Worksheet'!H23","v":0},{"$f":"ABS(B38-D38)","v":0},null,{"$f":"'QC-2 Density Worksheet'!K23","v":0},null,{"$f":"IF(B38=0,\"\",(IF(ABS(B38-D38)>1,CM27,AVERAGE(B38,D38))))","v":""},"",{"$f":"IFERROR(AA38,\"\")","v":""},null,{"$f":"IFERROR(+I38/62.24/$H$14*100,\"\")","v":""},null,{"$f":"IFERROR(+K38/$H$14*100,\"\")","v":""},null,{"$f":"IFERROR(O38-M38,\"\")","v":""},null,{"$f":"IFERROR(M38+$U$41,\"\")","v":""},null,{"$f":"IFERROR(O38-S38,\"\")","v":""},null,{"$f":"'Core Data'!A21","v":""},{"$f":"'Core Data'!D21","v":0},{"$f":"'Core Data'!E21","v":0},{"$f":"'Core Data'!F21","v":0},{"$f":"IFERROR(ROUND(+X38/(Y38-Z38),3),\"\")","v":""}]
[{"$f":"'Core Data'!A22","v":""},{"$f":"'QC-2 Density Worksheet'!E24","v":0},null,{"$f":"'QC-2 Density Worksheet'!H24","v":0},{"$f":"ABS(B39-D39)","v":0},null,{"$f":"'QC-2 Density Worksheet'!K24","v":0},null,{"$f":"IF(B39=0,\"\",(IF(ABS(B39-D39)>1,CM28,AVERAGE(B39,D39))))","v":""},"",{"$f":"IFERROR(AA39,\"\")","v":""},null,{"$f":"IFERROR(+I39/62.24/$H$14*100,\"\")","v":""},null,{"$f":"IFERROR(+K39/$H$14*100,\"\")","v":""},null,{"$f":"IFERROR(O39-M39,\"\")","v":""},null,{"$f":"IFERROR(M39+$U$41,\"\")","v":""},null,{"$f":"IFERROR(O39-S39,\"\")","v":""},null,{"$f":"'Core Data'!A22","v":""},{"$f":"'Core Data'!D22","v":0},{"$f":"'Core Data'!E22","v":0},{"$f":"'Core Data'!F22","v":0},{"$f":"IFERROR(ROUND(+X39/(Y39-Z39),3),\"\")","v":""}]
[]
[null,null,null,null,null,null,null,null,null,null,null,null,null,null,null,null,null,null,"OFFSET",null,{"$f":"IFERROR(AVERAGE(Q25:Q29,Q35:Q39),\"\")","v":""}]
[null,null,null,null,null,null,null,null,null,null,null,null,null,null,null,null,null,null,null,null,null,null,null,null,null,null,"Nuclear / Core Correlation Worksheet     "]
[null,null,null,null,null,null,null,null,null,null,null,null,null,null,"Gauge",null,"Cores"]
[null,null,null,null,null,null,null,null,"page 1",null,null,null,"RANGE",null,{"$f":"O46-O47","v":0},"%",{"$f":"Q46-Q47","v":0},"%",null,null,"page 2",null,null,null,null,null,null,"page 3"]
[]
[null,null,null,null,null,null,null,null,null,null,null,null,"Max",null,{"$f":"MAX(M25:M29,M35:M39)","v":0},null,{"$f":"MAX(O25:O29,O35:O39)","v":0}]
[null,null,null,null,null,null,null,null,null,null,null,null,"Min",null,{"$f":"MIN(M25:M29,M35:M39)","v":0},null,{"$f":"MIN(O25:O29,O35:O39)","v":0}]

{"sheet":"QV-1 Correlation","index":12,"n_rows":47,"n_cols":91,"rows_kept":47,"cut":false,"hidden":false,"merged":[[22,89,22,91],[31,4,31,6],[40,1,42,8],[40,18,40,19],[16,84,16,88],[17,2,17,4],[21,4,21,6],[21,18,21,19],[22,84,22,88],[5,23,5,24],[6,3,6,8],[6,23,6,24],[8,7,8,8],[14,2,14,4],[14,7,14,8],[9,2,9,4],[11,7,11,8],[10,2,10,4],[12,7,12,8],[11,2,11,4],[12,2,12,4],[13,2,13,4],[13,7,13,8],[9,7,9,8],[10,7,10,8],[0,3,4,8],[0,12,0,14],[0,19,0,20],[0,23,0,24],[3,23,3,24],[4,23,4,24],[0,84,0,88],[1,23,1,24],[1,30,2,30],[1,32,2,32],[2,23,2,24],[7,23,7,27],[15,2,15,8],[18,2,18,4],[8,23,8,24],[9,23,9,24],[8,2,8,4],[9,26,9,27],[10,26,10,27]]}
[null,null,null,"Wisconsin Department \nof Transportation ",null,null,null,null,null,null,"Date:",null,{"$f":"IF(C9=\"\",\"\",C9)","v":""},null,null,null,null,null,"Gauge No.:",{"$f":"IF(H12=\"\",\"\",H12)","v":""},null,null,"Date:",{"$f":"IF(C9=\"\",\"\",C9)","v":""},null,null,"Layer:",{"$f":"IF('Project Info & Instructions'!G16=\"\",\"\",'Project Info & Instructions'!G16)","v":""},null,null,null,null,null,null,null,null,null,null,null,null,null,null,null,null,null,null,null,null,null,null,null,null,null,null,null,null,null,null,null,null,null,null,null,null,null,null,null,null,null,null,null,null,null,null,null,null,null,null,null,null,null,null,null,"Zone 1","Variation from Avg"]
[null,null,null,null,null,null,null,null,null,null,null,null,null,null,null,null,null,null,"Nuclear / Core Correlation Worksheet     ",null,null,null,"Contract:",{"$f":"IF(C10=\"\",\"\",C10)","v":""},null,null,"Layer Thickness:",{"$f":"H13","v":""},null,null,"Ave Nuclear",null,"Core Density",null,null,null,null,null,null,null,null,null,null,null,null,null,null,null,null,null,null,null,null,null,null,null,null,null,null,null,null,null,null,null,null,null,null,null,null,null,null,null,null,null,null,null,null,null,null,null,null,null,null,"1A)",{"$f":"ABS(AVERAGE('QV-1 Correlation'!$B$25,'QV-1 Correlation'!$D$25,'QV-1 Correlation'!$G$25)-'QV-1 Correlation'!B25)","v":0},"1B)",{"$f":"ABS(AVERAGE('QV-1 Correlation'!$B$25,'QV-1 Correlation'!$D$25,'QV-1 Correlation'!$G$25)-'QV-1 Correlation'!D25)","v":0},"1C)",{"$f":"ABS(AVERAGE('QV-1 Correlation'!$B$25,'QV-1 Correlation'!$D$25,'QV-1 Correlation'!$G$25)-'QV-1 Correlation'!G25)","v":0}]
[null,null,null,null,null,null,null,null,null,null,null,null,null,null,null,null,null,null,null,null,null,null,"Job No.:","",null,null,"Gmm:",{"$f":"H14","v":""},null,null,null,null,null,null,null,null,null,null,null,null,null,null,null,null,null,null,null,null,null,null,null,null,null,null,null,null,null,null,null,null,null,null,null,null,null,null,null,null,null,null,null,null,null,null,null,null,null,null,null,null,null,null,null,"2A)",{"$f":"ABS(AVERAGE('QV-1 Correlation'!$B$26,'QV-1 Correlation'!$D$26,'QV-1 Correlation'!$G$26)-'QV-1 Correlation'!B26)","v":0},"2B)",{"$f":"ABS(AVERAGE('QV-1 Correlation'!$B$26,'QV-1 Correlation'!$D$26,'QV-1 Correlation'!$G$26)-'QV-1 Correlation'!D26)","v":0},"2C)",{"$f":"ABS(AVERAGE('QV-1 Correlation'!$B$26,'QV-1 Correlation'!$D$26,'QV-1 Correlation'!$G$26)-'QV-1 Correlation'!G26)","v":0}]
[null,null,null,null,null,null,null,null,null,null,null,null,null,null,null,null,null,null,null,null,null,null,"Route:","",null,null,null,null,null,null,{"$f":"M25","v":""},null,{"$f":"O25","v":""},null,null,null,null,null,null,null,null,null,null,null,null,null,null,null,null,null,null,null,null,null,null,null,null,null,null,null,null,null,null,null,null,null,null,null,null,null,null,null,null,null,null,null,null,null,null,null,null,null,null,"3A)",{"$f":"ABS(AVERAGE('QV-1 Correlation'!$B$27,'QV-1 Correlation'!$D$27,'QV-1 Correlation'!$G$27)-'QV-1 Correlation'!B27)","v":0},"3B)",{"$f":"ABS(AVERAGE('QV-1 Correlation'!$B$27,'QV-1 Correlation'!$D$27,'QV-1 Correlation'!$G$27)-'QV-1 Correlation'!D27)","v":0},"3C)",{"$f":"ABS(AVERAGE('QV-1 Correlation'!$B$27,'QV-1 Correlation'!$D$27,'QV-1 Correlation'!$G$27)-'QV-1 Correlation'!G27)","v":0}]
[null,null,null,null,null,null,null,null,null,null,null,null,null,null,null,null,null,null,null,null,null,null,"Underlying Material:","",null,null,null,null,null,null,{"$f":"M26","v":""},null,{"$f":"O26","v":""},null,null,null,null,null,null,null,null,null,null,null,null,null,null,null,null,null,null,null,null,null,null,null,null,null,null,null,null,null,null,null,null,null,null,null,null,null,null,null,null,null,null,null,null,null,null,null,null,null,null,"4A)",{"$f":"ABS(AVERAGE('QV-1 Correlation'!$B$28,'QV-1 Correlation'!$D$28,'QV-1 Correlation'!$G$28)-'QV-1 Correlation'!B28)","v":0},"4B)",{"$f":"ABS(AVERAGE('QV-1 Correlation'!$B$28,'QV-1 Correlation'!$D$28,'QV-1 Correlation'!$G$28)-'QV-1 Correlation'!D28)","v":0},"4C)",{"$f":"ABS(AVERAGE('QV-1 Correlation'!$B$28,'QV-1 Correlation'!$D$28,'QV-1 Correlation'!$G$28)-'QV-1 Correlation'!G28)","v":0}]
[null,{"$f":"'Project Info & Instructions'!A6","v":"Revised 04-26-18"},null,null,null,null,null,null,null,null,null,null,null,null,null,null,null,null,null,null,null,null,"WisDOT Mix No.:","",null,null,null,null,null,null,{"$f":"M27","v":""},null,{"$f":"O27","v":""},null,null,null,null,null,null,null,null,null,null,null,null,null,null,null,null,null,null,null,null,null,null,null,null,null,null,null,null,null,null,null,null,null,null,null,null,null,null,null,null,null,null,null,null,null,null,null,null,null,null,"5A)",{"$f":"ABS(AVERAGE('QV-1 Correlation'!$B$29,'QV-1 Correlation'!$D$29,'QV-1 Correlation'!$G$29)-'QV-1 Correlation'!B29)","v":0},"5B)",{"$f":"ABS(AVERAGE('QV-1 Correlation'!$B$29,'QV-1 Correlation'!$D$29,'QV-1 Correlation'!$G$29)-'QV-1 Correlation'!D29)","v":0},"5C)",{"$f":"ABS(AVERAGE('QV-1 Correlation'!$B$29,'QV-1 Correlation'!$D$29,'QV-1 Correlation'!$G$29)-'QV-1 Correlation'!G29)","v":0}]
[null,null,null,"Nuclear / Core Correlation Worksheet",null,null,null,null,null,null,null,null,null,null,null,null,null,null,null,null,null,null,"Mix Type:","--",null,null,"Core Diameter:",{"$f":"H15","v":6},null,null,{"$f":"M28","v":""},null,{"$f":"O28","v":""},null,null,null,null,null,null,null,null,null,null,null,null,null,null,null,null,null,null,null,null,null,null,null,null,null,null,null,null,null,null,null,null,null,null,null,null,null,null,null,null,null,null,null,null,null,null,null,null,null,null,null,{"$f":"IF(CG2=MAX($CG2,$CI2,$CK2),0,'QV-1 Correlation'!B25)","v":0},null,{"$f":"IF(CI2=MAX($CG2,$CI2,$CK2),0,'QV-1 Correlation'!D25)","v":0},null,{"$f":"IF(CK2=MAX($CG2,$CI2,$CK2),0,'QV-1 Correlation'!G25)","v":0},null,{"$f":"AVERAGEIF(CG7:CK7,\">0\",CG7:CK7)","v":{"$error":"#DIV/0!"}}]
[null,null,null,null,null,null,null,null,null,null,null,null,null,null,null,null,null,null,null,null,null,null,"Test Strip Type:",{"$f":"'Project Info & Instructions'!C9","v":"Combined Density and Air Voids Test Strip"},null,null,null,null,null,null,{"$f":"M29","v":""},null,{"$f":"O29","v":""},null,null,null,null,null,null,null,null,null,null,null,null,null,null,null,null,null,null,null,null,null,null,null,null,null,null,null,null,null,null,null,null,null,null,null,null,null,null,null,null,null,null,null,null,null,null,null,null,null,null,null,{"$f":"IF(CG3=MAX($CG3,$CI3,$CK3),0,'QV-1 Correlation'!B26)","v":0},null,{"$f":"IF(CI3=MAX($CG3,$CI3,$CK3),0,'QV-1 Correlation'!D26)","v":0},null,{"$f":"IF(CK3=MAX($CG3,$CI3,$CK3),0,'QV-1 Correlation'!G26)","v":0},null,{"$f":"AVERAGEIF(CG8:CK8,\">0\",CG8:CK8)","v":{"$error":"#DIV/0!"}}]
[null,"Date:",{"$f":"IF('Project Info & Instructions'!C10=\"\",\"\",'Project Info & Instructions'!C10)","v":""},null,null,null,"Test Strip #:",{"$f":"IF('Project Info & Instructions'!C11=\"\",\"\",'Project Info & Instructions'!C11)","v":""},null,null,null,null,null,null,null,null,null,null,null,null,null,null,"NUCDENSITYTEC:",{"$f":"IF('QV-1 Density Worksheet'!I6=\"\",\"\",'QV-1 Density Worksheet'!I6)","v":""},null,null,null,null,null,null,{"$f":"M35","v":""},null,{"$f":"O35","v":""},null,null,null,null,null,null,null,null,null,null,null,null,null,null,null,null,null,null,null,null,null,null,null,null,null,null,null,null,null,null,null,null,null,null,null,null,null,null,null,null,null,null,null,null,null,null,null,null,null,null,null,{"$f":"IF(CG4=MAX($CG4,$CI4,$CK4),0,'QV-1 Correlation'!B27)","v":0},null,{"$f":"IF(CI4=MAX($CG4,$CI4,$CK4),0,'QV-1 Correlation'!D27)","v":0},null,{"$f":"IF(CK4=MAX($CG4,$CI4,$CK4),0,'QV-1 Correlation'!G27)","v":0},null,{"$f":"AVERAGEIF(CG9:CK9,\">0\",CG9:CK9)","v":{"$error":"#DIV/0!"}}]
[null,"Contract:",{"$f":"IF('Project Info & Instructions'!C12=\"\",\"\",'Project Info & Instructions'!C12)","v":""},null,null,null,"Layer:",{"$f":"IF('Project Info & Instructions'!G16=\"\",\"\",'Project Info & Instructions'!G16)","v":""},null,null,null,null,null,null,null,null,null,null,null,null,null,null,"Gauge No.:",{"$f":"IF('QV-1 Density Worksheet'!M4=\"\",\"\",'QV-1 Density Worksheet'!M4)","v":""},null,null,"Spread of Cores (%)",null,null,null,{"$f":"M36","v":""},null,{"$f":"O36","v":""},null,null,null,null,null,null,null,null,null,null,null,null,null,null,null,null,null,null,null,null,null,null,null,null,null,null,null,null,null,null,null,null,null,null,null,null,null,null,null,null,null,null,null,null,null,null,null,null,null,null,null,{"$f":"IF(CG5=MAX($CG5,$CI5,$CK5),0,'QV-1 Correlation'!B28)","v":0},null,{"$f":"IF(CI5=MAX($CG5,$CI5,$CK5),0,'QV-1 Correlation'!D28)","v":0},null,{"$f":"IF(CK5=MAX($CG5,$CI5,$CK5),0,'QV-1 Correlation'!G28)","v":0},null,{"$f":"AVERAGEIF(CG10:CK10,\">0\",CG10:CK10)","v":{"$error":"#DIV/0!"}}]
[null,"Job No.:",{"$f":"IF('Project Info & Instructions'!C13=\"\",\"\",'Project Info & Instructions'!C13)","v":""},null,null,null,"Mixture Type:",{"$f":"IF('Project Info & Instructions'!C21=\"\",\"\",'Project Info & Instructions'!C21)","v":"--"},null,null,null,null,null,null,null,null,null,null,null,null,null,null,null,null,null,null,{"$f":"IF(Q44>0,Q44,\"\")","v":""},null,null,null,{"$f":"M37","v":""},null,{"$f":"O37","v":""},null,null,null,null,null,null,null,null,null,null,null,null,null,null,null,null,null,null,null,null,null,null,null,null,null,null,null,null,null,null,null,null,null,null,null,null,null,null,null,null,null,null,null,null,null,null,null,null,null,null,null,{"$f":"IF(CG6=MAX($CG6,$CI6,$CK6),0,'QV-1 Correlation'!B29)","v":0},null,{"$f":"IF(CI6=MAX($CG6,$CI6,$CK6),0,'QV-1 Correlation'!D29)","v":0},null,{"$f":"IF(CK6=MAX($CG6,$CI6,$CK6),0,'QV-1 Correlation'!G29)","v":0},null,{"$f":"AVERAGEIF(CG11:CK11,\">0\",CG11:CK11)","v":{"$error":"#DIV/0!"}}]
[null,"Route:",{"$f":"IF('Project Info & Instructions'!C14=\"\",\"\",'Project Info & Instructions'!C14)","v":""},null,null,null,null,null,null,null,null,null,null,null,null,null,null,null,null,null,null,null,null,null,null,null,null,null,null,null,{"$f":"M38","v":""},null,{"$f":"O38","v":""}]
[null,"Underlying Matl.:",{"$f":"IF('Project Info & Instructions'!G17=\"\",\"\",'Project Info & Instructions'!G17)","v":""},null,null,null,"Layer Thickness:",{"$f":"IF('Project Info & Instructions'!G12=\"\",\"\",'Project Info & Instructions'!G12)","v":""},null,null,null,null,null,null,null,null,null,null,null,null,null,null,"SN","Gauge ID","Offset","R-squared","Spread (%)",null,null,null,{"$f":"M39","v":""},null,{"$f":"O39","v":""}]
[null,"WisDOT Mix No.:",{"$f":"IF('Project Info & Instructions'!C16=\"\",\"\",'Project Info & Instructions'!C16)","v":""},null,null,null,"Gmm:",{"$f":"IF('Project Info & Instructions'!O9=2,'Project Info & Instructions'!J9,'Air Voids Pay Factor'!D10)","v":""},null,null,null,null,null,null,null,null,null,null,null,null,null,null,{"$f":"IF('QC-1 Correlation'!C19=\"\",\"\",'QC-1 Correlation'!C19)","v":""},"QC-1",{"$f":"IF('QC-1 Correlation'!U41=\"\",\"\",'QC-1 Correlation'!U41)","v":""},{"$f":"IF('QC-1 Correlation'!U22=\"\",\"\",'QC-1 Correlation'!U22)","v":""},{"$f":"IF('QC-1 Correlation'!O44=\"\",\"\",'QC-1 Correlation'!O44)","v":0}]
[null,"Mix Type:",{"$f":"IF('Project Info & Instructions'!C21=\"\",\"\",'Project Info & Instructions'!C21)","v":"--"},null,null,null,"Core Diameter:",6,null,null,null,null,null,null,null,null,null,null,null,null,null,null,{"$f":"IF('QC-2 Correlation'!C19=\"\",\"\",'QC-2 Correlation'!C19)","v":""},"QC-2",{"$f":"IF('QC-2 Correlation'!U41=\"\",\"\",'QC-2 Correlation'!U41)","v":""},{"$f":"IF('QC-2 Correlation'!U22=\"\",\"\",'QC-2 Correlation'!U22)","v":""},{"$f":"IF('QC-2 Correlation'!O44=\"\",\"\",'QC-2 Correlation'!O44)","v":0}]
[null,"Test Strip Type:",{"$f":"'Project Info & Instructions'!C9","v":"Combined Density and Air Voids Test Strip"},null,null,null,null,null,null,null,null,null,null,null,null,null,null,null,null,null,null,null,{"$f":"IF('QV-1 Correlation'!C19=\"\",\"\",'QV-1 Correlation'!C19)","v":""},"QV-1",{"$f":"IF('QV-1 Correlation'!U41=\"\",\"\",'QV-1 Correlation'!U41)","v":""},{"$f":"IF('QV-1 Correlation'!U22=\"\",\"\",'QV-1 Correlation'!U22)","v":""},{"$f":"IF('QV-1 Correlation'!O44=\"\",\"\",'QV-1 Correlation'!O44)","v":0}]
[null,null,null,null,null,null,null,null,null,null,null,null,null,null,null,null,null,null,null,null,null,null,{"$f":"IF('QV-2 Correlation'!C19=\"\",\"\",'QV-2 Correlation'!C19)","v":""},"QV-2",{"$f":"IF('QV-2 Correlation'!U41=\"\",\"\",'QV-2 Correlation'!U41)","v":""},{"$f":"IF('QV-2 Correlation'!U22=\"\",\"\",'QV-2 Correlation'!U22)","v":""},{"$f":"IF('QV-2 Correlation'!O44=\"\",\"\",'QV-2 Correlation'!O44)","v":0},null,null,null,null,null,null,null,null,null,null,null,null,null,null,null,null,null,null,null,null,null,null,null,null,null,null,null,null,null,null,null,null,null,null,null,null,null,null,null,null,null,null,null,null,null,null,null,null,null,null,null,null,null,null,null,null,"Zone 2","Variation from Avg"]
[null,"NUCDENSITYTEC:",{"$f":"IF('QV-1 Density Worksheet'!I6=\"\",\"\",'QV-1 Density Worksheet'!I6)","v":""},null,null,null,null,null,null,null,null,null,null,null,null,null,null,null,null,null,null,null,null,null,null,null,null,null,null,null,null,null,null,null,null,null,null,null,null,null,null,null,null,null,null,null,null,null,null,null,null,null,null,null,null,null,null,null,null,null,null,null,null,null,null,null,null,null,null,null,null,null,null,null,null,null,null,null,null,null,null,null,null,"6A",{"$f":"ABS(AVERAGE('QV-1 Correlation'!$B35,'QV-1 Correlation'!$D35,'QV-1 Correlation'!$G35)-'QV-1 Correlation'!B35)","v":0},"6B",{"$f":"ABS(AVERAGE('QV-1 Correlation'!$B35,'QV-1 Correlation'!$D35,'QV-1 Correlation'!$G35)-'QV-1 Correlation'!D35)","v":0},"6C",{"$f":"ABS(AVERAGE('QV-1 Correlation'!$B35,'QV-1 Correlation'!$D35,'QV-1 Correlation'!$G35)-'QV-1 Correlation'!G35)","v":0}]
[null,"Gauge No.:",{"$f":"IF('QV-1 Density Worksheet'!M4=\"\",\"\",'QV-1 Density Worksheet'!M4)","v":""},null,null,null,null,null,null,null,null,null,null,null,null,null,null,null,null,null,null,null,null,null,null,null,null,null,null,null,null,null,null,null,null,null,null,null,null,null,null,null,null,null,null,null,null,null,null,null,null,null,null,null,null,null,null,null,null,null,null,null,null,null,null,null,null,null,null,null,null,null,null,null,null,null,null,null,null,null,null,null,null,"7A",{"$f":"ABS(AVERAGE('QV-1 Correlation'!$B36,'QV-1 Correlation'!$D36,'QV-1 Correlation'!$G36)-'QV-1 Correlation'!B36)","v":0},"7B",{"$f":"ABS(AVERAGE('QV-1 Correlation'!$B36,'QV-1 Correlation'!$D36,'QV-1 Correlation'!$G36)-'QV-1 Correlation'!D36)","v":0},"7C",{"$f":"ABS(AVERAGE('QV-1 Correlation'!$B36,'QV-1 Correlation'!$D36,'QV-1 Correlation'!$G36)-'QV-1 Correlation'!G36)","v":0}]
[null,null,null,null,null,null,null,null,null,null,null,null,null,null,null,null,null,null,null,null,null,null,null,null,null,null,null,null,null,null,null,null,null,null,null,null,null,null,null,null,null,null,null,null,null,null,null,null,null,null,null,null,null,null,null,null,null,null,null,null,null,null,null,null,null,null,null,null,null,null,null,null,null,null,null,null,null,null,null,null,null,null,null,"8A",{"$f":"ABS(AVERAGE('QV-1 Correlation'!$B37,'QV-1 Correlation'!$D37,'QV-1 Correlation'!$G37)-'QV-1 Correlation'!B37)","v":0},"8B",{"$f":"ABS(AVERAGE('QV-1 Correlation'!$B37,'QV-1 Correlation'!$D37,'QV-1 Correlation'!$G37)-'QV-1 Correlation'!D37)","v":0},"8C",{"$f":"ABS(AVERAGE('QV-1 Correlation'!$B37,'QV-1 Correlation'!$D37,'QV-1 Correlation'!$G37)-'QV-1 Correlation'!G37)","v":0}]
[null,"ZONE 1",null,null,null,null,null,null,null,null,null,null,null,null,null,null,null,null,null,null,null,null,null,null,null,null,null,null,null,null,null,null,null,null,null,null,null,null,null,null,null,null,null,null,null,null,null,null,null,null,null,null,null,null,null,null,null,null,null,null,null,null,null,null,null,null,null,null,null,null,null,null,null,null,null,null,null,null,null,null,null,null,null,"9A",{"$f":"ABS(AVERAGE('QV-1 Correlation'!$B38,'QV-1 Correlation'!$D38,'QV-1 Correlation'!$G38)-'QV-1 Correlation'!B38)","v":0},"9B",{"$f":"ABS(AVERAGE('QV-1 Correlation'!$B38,'QV-1 Correlation'!$D38,'QV-1 Correlation'!$G38)-'QV-1 Correlation'!D38)","v":0},"9C",{"$f":"ABS(AVERAGE('QV-1 Correlation'!$B38,'QV-1 Correlation'!$D38,'QV-1 Correlation'!$G38)-'QV-1 Correlation'!G38)","v":0}]
[null,"Station (@ center of Zone):",null,null,{"$f":"IF('QC-1 Density Worksheet'!B16=\"\",\"\",'QC-1 Density Worksheet'!B16)","v":0},null,null,null,null,null,null,null,"CALCULATIONS",null,null,null,null,null,"R-Squared",null,{"$f":"IFERROR(RSQ(AE4:AE13,AG4:AG13),\"\")","v":""},null,null,null,"Core Density Calculations",null,null,null,null,null,null,null,null,null,null,null,null,null,null,null,null,null,null,null,null,null,null,null,null,null,null,null,null,null,null,null,null,null,null,null,null,null,null,null,null,null,null,null,null,null,null,null,null,null,null,null,null,null,null,null,null,null,null,"10A",{"$f":"ABS(AVERAGE('QV-1 Correlation'!$B39,'QV-1 Correlation'!$D39,'QV-1 Correlation'!$G39)-'QV-1 Correlation'!B39)","v":0},"10B",{"$f":"ABS(AVERAGE('QV-1 Correlation'!$B39,'QV-1 Correlation'!$D39,'QV-1 Correlation'!$G39)-'QV-1 Correlation'!D39)","v":0},"10C",{"$f":"ABS(AVERAGE('QV-1 Correlation'!$B39,'QV-1 Correlation'!$D39,'QV-1 Correlation'!$G39)-'QV-1 Correlation'!G39)","v":0}]
[null,"pcf",null,"pcf",null,null,"pcf",null,"pcf",null,"Gmb",null,"%",null,"%",null,null,null,null,null,null,null,null,null,null,null,null,null,null,null,null,null,null,null,null,null,null,null,null,null,null,null,null,null,null,null,null,null,null,null,null,null,null,null,null,null,null,null,null,null,null,null,null,null,null,null,null,null,null,null,null,null,null,null,null,null,null,null,null,null,null,null,null,null,"Filter Outlier",null,null,null,null,"Nuc Avg Excluding Outlier"]
[null,"Reading 1",null,"Reading 2","Difference",null,"Reading 3*            \nif applicable",null,"Ave Nuclear",null,"Core Density",null,"Ave Nuclear",null,"Core Density",null,"Difference",null,"Adjusted Nuc.",null,"Adj. Diff.",null,null,"Dry weight","SSD","Submerged","Core Density",null,null,null,null,null,null,null,null,null,null,null,null,null,null,null,null,null,null,null,null,null,null,null,null,null,null,null,null,null,null,null,null,null,null,null,null,null,null,null,null,null,null,null,null,null,null,null,null,null,null,null,null,null,null,null,null,null,{"$f":"IF(CG18=MAX($CG18,$CI18,$CK18),0,B35)","v":0},null,{"$f":"IF(CI18=MAX($CG18,$CI18,$CK18),0,D35)","v":0},null,{"$f":"IF(CK18=MAX($CG18,$CI18,$CK18),0,G35)","v":0},null,{"$f":"AVERAGEIF(CG24:CK24,\">0\",CG24:CK24)","v":{"$error":"#DIV/0!"}}]
[{"$f":"'Core Data'!A10","v":""},{"$f":"'QV-1 Density Worksheet'!E14","v":0},null,{"$f":"'QV-1 Density Worksheet'!H14","v":0},{"$f":"ABS(B25-D25)","v":0},null,{"$f":"'QV-1 Density Worksheet'!K14","v":0},null,{"$f":"IF(B25=0,\"\",(IF(ABS(B25-D25)>1,CM7,AVERAGE(B25,D25))))","v":""},{"$f":"A25","v":""},{"$f":"IFERROR(AA25,\"\")","v":""},null,{"$f":"IFERROR(+I25/62.24/$H$14*100,\"\")","v":""},null,{"$f":"IFERROR(+K25/$H$14*100,\"\")","v":""},null,{"$f":"IFERROR(O25-M25,\"\")","v":""},null,{"$f":"IFERROR(M25+$U$41,\"\")","v":""},null,{"$f":"IFERROR(O25-S25,\"\")","v":""},null,{"$f":"'Core Data'!A10","v":""},{"$f":"'Core Data'!D10","v":0},{"$f":"'Core Data'!E10","v":0},{"$f":"'Core Data'!F10","v":0},{"$f":"IFERROR(ROUND(+X25/(Y25-Z25),3),\"\")","v":""},null,null,null,null,null,null,null,null,null,null,null,null,null,null,null,null,null,null,null,null,null,null,null,null,null,null,null,null,null,null,null,null,null,null,null,null,null,null,null,null,null,null,null,null,null,null,null,null,null,null,null,null,null,null,null,null,null,{"$f":"IF(CG19=MAX($CG19,$CI19,$CK19),0,B36)","v":0},null,{"$f":"IF(CI19=MAX($CG19,$CI19,$CK19),0,D36)","v":0},null,{"$f":"IF(CK19=MAX($CG19,$CI19,$CK19),0,G36)","v":0},null,{"$f":"AVERAGEIF(CG25:CK25,\">0\",CG25:CK25)","v":{"$error":"#DIV/0!"}}]
[{"$f":"'Core Data'!A11","v":""},{"$f":"'QV-1 Density Worksheet'!E15","v":0},null,{"$f":"'QV-1 Density Worksheet'!H15","v":0},{"$f":"ABS(B26-D26)","v":0},null,{"$f":"'QV-1 Density Worksheet'!K15","v":0},null,{"$f":"IF(B26=0,\"\",(IF(ABS(B26-D26)>1,CM8,AVERAGE(B26,D26))))","v":""},{"$f":"A26","v":""},{"$f":"IFERROR(AA26,\"\")","v":""},null,{"$f":"IFERROR(+I26/62.24/$H$14*100,\"\")","v":""},null,{"$f":"IFERROR(+K26/$H$14*100,\"\")","v":""},null,{"$f":"IFERROR(O26-M26,\"\")","v":""},null,{"$f":"IFERROR(M26+$U$41,\"\")","v":""},null,{"$f":"IFERROR(O26-S26,\"\")","v":""},null,{"$f":"'Core Data'!A11","v":""},{"$f":"'Core Data'!D11","v":0},{"$f":"'Core Data'!E11","v":0},{"$f":"'Core Data'!F11","v":0},{"$f":"IFERROR(ROUND(+X26/(Y26-Z26),3),\"\")","v":""},null,null,null,null,null,null,null,null,null,null,null,null,null,null,null,null,null,null,null,null,null,null,null,null,null,null,null,null,null,null,null,null,null,null,null,null,null,null,null,null,null,null,null,null,null,null,null,null,null,null,null,null,null,null,null,null,null,{"$f":"IF(CG20=MAX($CG20,$CI20,$CK20),0,B37)","v":0},null,{"$f":"IF(CI20=MAX($CG20,$CI20,$CK20),0,D37)","v":0},null,{"$f":"IF(CK20=MAX($CG20,$CI20,$CK20),0,G37)","v":0},null,{"$f":"AVERAGEIF(CG26:CK26,\">0\",CG26:CK26)","v":{"$error":"#DIV/0!"}}]
[{"$f":"'Core Data'!A12","v":""},{"$f":"'QV-1 Density Worksheet'!E16","v":0},null,{"$f":"'QV-1 Density Worksheet'!H16","v":0},{"$f":"ABS(B27-D27)","v":0},null,{"$f":"'QV-1 Density Worksheet'!K16","v":0},null,{"$f":"IF(B27=0,\"\",(IF(ABS(B27-D27)>1,CM9,AVERAGE(B27,D27))))","v":""},"",{"$f":"IFERROR(AA27,\"\")","v":""},null,{"$f":"IFERROR(+I27/62.24/$H$14*100,\"\")","v":""},null,{"$f":"IFERROR(+K27/$H$14*100,\"\")","v":""},null,{"$f":"IFERROR(O27-M27,\"\")","v":""},null,{"$f":"IFERROR(M27+$U$41,\"\")","v":""},null,{"$f":"IFERROR(O27-S27,\"\")","v":""},null,{"$f":"'Core Data'!A12","v":""},{"$f":"'Core Data'!D12","v":0},{"$f":"'Core Data'!E12","v":0},{"$f":"'Core Data'!F12","v":0},{"$f":"IFERROR(ROUND(+X27/(Y27-Z27),3),\"\")","v":""},null,null,null,null,null,null,null,null,null,null,null,null,null,null,null,null,null,null,null,null,null,null,null,null,null,null,null,null,null,null,null,null,null,null,null,null,null,null,null,null,null,null,null,null,null,null,null,null,null,null,null,null,null,null,null,null,null,{"$f":"IF(CG21=MAX($CG21,$CI21,$CK21),0,B38)","v":0},null,{"$f":"IF(CI21=MAX($CG21,$CI21,$CK21),0,D38)","v":0},null,{"$f":"IF(CK21=MAX($CG21,$CI21,$CK21),0,G38)","v":0},null,{"$f":"AVERAGEIF(CG27:CK27,\">0\",CG27:CK27)","v":{"$error":"#DIV/0!"}}]
[{"$f":"'Core Data'!A13","v":""},{"$f":"'QV-1 Density Worksheet'!E17","v":0},null,{"$f":"'QV-1 Density Worksheet'!H17","v":0},{"$f":"ABS(B28-D28)","v":0},null,{"$f":"'QV-1 Density Worksheet'!K17","v":0},null,{"$f":"IF(B28=0,\"\",(IF(ABS(B28-D28)>1,CM10,AVERAGE(B28,D28))))","v":""},"",{"$f":"IFERROR(AA28,\"\")","v":""},null,{"$f":"IFERROR(+I28/62.24/$H$14*100,\"\")","v":""},null,{"$f":"IFERROR(+K28/$H$14*100,\"\")","v":""},null,{"$f":"IFERROR(O28-M28,\"\")","v":""},null,{"$f":"IFERROR(M28+$U$41,\"\")","v":""},null,{"$f":"IFERROR(O28-S28,\"\")","v":""},null,{"$f":"'Core Data'!A13","v":""},{"$f":"'Core Data'!D13","v":0},{"$f":"'Core Data'!E13","v":0},{"$f":"'Core Data'!F13","v":0},{"$f":"IFERROR(ROUND(+X28/(Y28-Z28),3),\"\")","v":""},null,null,null,null,null,null,null,null,null,null,null,null,null,null,null,null,null,null,null,null,null,null,null,null,null,null,null,null,null,null,null,null,null,null,null,null,null,null,null,null,null,null,null,null,null,null,null,null,null,null,null,null,null,null,null,null,null,{"$f":"IF(CG22=MAX($CG22,$CI22,$CK22),0,B39)","v":0},null,{"$f":"IF(CI22=MAX($CG22,$CI22,$CK22),0,D39)","v":0},null,{"$f":"IF(CK22=MAX($CG22,$CI22,$CK22),0,G39)","v":0},null,{"$f":"AVERAGEIF(CG28:CK28,\">0\",CG28:CK28)","v":{"$error":"#DIV/0!"}}]
[{"$f":"'Core Data'!A14","v":""},{"$f":"'QV-1 Density Worksheet'!E18","v":0},null,{"$f":"'QV-1 Density Worksheet'!H18","v":0},{"$f":"ABS(B29-D29)","v":0},null,{"$f":"'QV-1 Density Worksheet'!K18","v":0},null,{"$f":"IF(B29=0,\"\",(IF(ABS(B29-D29)>1,CM11,AVERAGE(B29,D29))))","v":""},"",{"$f":"IFERROR(AA29,\"\")","v":""},null,{"$f":"IFERROR(+I29/62.24/$H$14*100,\"\")","v":""},null,{"$f":"IFERROR(+K29/$H$14*100,\"\")","v":""},null,{"$f":"IFERROR(O29-M29,\"\")","v":""},null,{"$f":"IFERROR(M29+$U$41,\"\")","v":""},null,{"$f":"IFERROR(O29-S29,\"\")","v":""},null,{"$f":"'Core Data'!A14","v":""},{"$f":"'Core Data'!D14","v":0},{"$f":"'Core Data'!E14","v":0},{"$f":"'Core Data'!F14","v":0},{"$f":"IFERROR(ROUND(+X29/(Y29-Z29),3),\"\")","v":""}]
[]
[null,"ZONE 2"]
[null,"Station (@ center of Zone):",null,null,{"$f":"IF('QC-1 Density Worksheet'!B22=\"\",\"\",'QC-1 Density Worksheet'!B22)","v":0}]
[null,"pcf",null,"pcf",null,null,"pcf",null,"pcf"]
[null,"Reading 1",null,"Reading 2","Difference",null,"Reading 3*            \nif applicable",null,"Ave Nuclear",null,"Core Density",null,"Ave Nuclear",null,"Core Density",null,"Difference",null,"Adjusted Nuc.",null,"Adj. Diff.",null,null,"Dry weight","SSD","Submerged","Core Density"]
[{"$f":"'Core Data'!A18","v":""},{"$f":"'QV-1 Density Worksheet'!E20","v":0},null,{"$f":"'QV-1 Density Worksheet'!H20","v":0},{"$f":"ABS(B35-D35)","v":0},null,{"$f":"'QV-1 Density Worksheet'!K20","v":0},null,{"$f":"IF(B35=0,\"\",(IF(ABS(B35-D35)>1,CM24,AVERAGE(B35,D35))))","v":""},"",{"$f":"IFERROR(AA35,\"\")","v":""},null,{"$f":"IFERROR(+I35/62.24/$H$14*100,\"\")","v":""},null,{"$f":"IFERROR(+K35/$H$14*100,\"\")","v":""},null,{"$f":"IFERROR(O35-M35,\"\")","v":""},null,{"$f":"IFERROR(M35+$U$41,\"\")","v":""},null,{"$f":"IFERROR(O35-S35,\"\")","v":""},null,{"$f":"'Core Data'!A18","v":""},{"$f":"'Core Data'!D18","v":0},{"$f":"'Core Data'!E18","v":0},{"$f":"'Core Data'!F18","v":0},{"$f":"IFERROR(ROUND(+X35/(Y35-Z35),3),\"\")","v":""}]
[{"$f":"'Core Data'!A19","v":""},{"$f":"'QV-1 Density Worksheet'!E21","v":0},null,{"$f":"'QV-1 Density Worksheet'!H21","v":0},{"$f":"ABS(B36-D36)","v":0},null,{"$f":"'QV-1 Density Worksheet'!K21","v":0},null,{"$f":"IF(B36=0,\"\",(IF(ABS(B36-D36)>1,CM25,AVERAGE(B36,D36))))","v":""},"",{"$f":"IFERROR(AA36,\"\")","v":""},null,{"$f":"IFERROR(+I36/62.24/$H$14*100,\"\")","v":""},null,{"$f":"IFERROR(+K36/$H$14*100,\"\")","v":""},null,{"$f":"IFERROR(O36-M36,\"\")","v":""},null,{"$f":"IFERROR(M36+$U$41,\"\")","v":""},null,{"$f":"IFERROR(O36-S36,\"\")","v":""},null,{"$f":"'Core Data'!A19","v":""},{"$f":"'Core Data'!D19","v":0},{"$f":"'Core Data'!E19","v":0},{"$f":"'Core Data'!F19","v":0},{"$f":"IFERROR(ROUND(+X36/(Y36-Z36),3),\"\")","v":""}]
[{"$f":"'Core Data'!A20","v":""},{"$f":"'QV-1 Density Worksheet'!E22","v":0},null,{"$f":"'QV-1 Density Worksheet'!H22","v":0},{"$f":"ABS(B37-D37)","v":0},null,{"$f":"'QV-1 Density Worksheet'!K22","v":0},null,{"$f":"IF(B37=0,\"\",(IF(ABS(B37-D37)>1,CM26,AVERAGE(B37,D37))))","v":""},"",{"$f":"IFERROR(AA37,\"\")","v":""},null,{"$f":"IFERROR(+I37/62.24/$H$14*100,\"\")","v":""},null,{"$f":"IFERROR(+K37/$H$14*100,\"\")","v":""},null,{"$f":"IFERROR(O37-M37,\"\")","v":""},null,{"$f":"IFERROR(M37+$U$41,\"\")","v":""},null,{"$f":"IFERROR(O37-S37,\"\")","v":""},null,{"$f":"'Core Data'!A20","v":""},{"$f":"'Core Data'!D20","v":0},{"$f":"'Core Data'!E20","v":0},{"$f":"'Core Data'!F20","v":0},{"$f":"IFERROR(ROUND(+X37/(Y37-Z37),3),\"\")","v":""}]
[{"$f":"'Core Data'!A21","v":""},{"$f":"'QV-1 Density Worksheet'!E23","v":0},null,{"$f":"'QV-1 Density Worksheet'!H23","v":0},{"$f":"ABS(B38-D38)","v":0},null,{"$f":"'QV-1 Density Worksheet'!K23","v":0},null,{"$f":"IF(B38=0,\"\",(IF(ABS(B38-D38)>1,CM27,AVERAGE(B38,D38))))","v":""},"",{"$f":"IFERROR(AA38,\"\")","v":""},null,{"$f":"IFERROR(+I38/62.24/$H$14*100,\"\")","v":""},null,{"$f":"IFERROR(+K38/$H$14*100,\"\")","v":""},null,{"$f":"IFERROR(O38-M38,\"\")","v":""},null,{"$f":"IFERROR(M38+$U$41,\"\")","v":""},null,{"$f":"IFERROR(O38-S38,\"\")","v":""},null,{"$f":"'Core Data'!A21","v":""},{"$f":"'Core Data'!D21","v":0},{"$f":"'Core Data'!E21","v":0},{"$f":"'Core Data'!F21","v":0},{"$f":"IFERROR(ROUND(+X38/(Y38-Z38),3),\"\")","v":""}]
[{"$f":"'Core Data'!A22","v":""},{"$f":"'QV-1 Density Worksheet'!E24","v":0},null,{"$f":"'QV-1 Density Worksheet'!H24","v":0},{"$f":"ABS(B39-D39)","v":0},null,{"$f":"'QV-1 Density Worksheet'!K24","v":0},null,{"$f":"IF(B39=0,\"\",(IF(ABS(B39-D39)>1,CM28,AVERAGE(B39,D39))))","v":""},"",{"$f":"IFERROR(AA39,\"\")","v":""},null,{"$f":"IFERROR(+I39/62.24/$H$14*100,\"\")","v":""},null,{"$f":"IFERROR(+K39/$H$14*100,\"\")","v":""},null,{"$f":"IFERROR(O39-M39,\"\")","v":""},null,{"$f":"IFERROR(M39+$U$41,\"\")","v":""},null,{"$f":"IFERROR(O39-S39,\"\")","v":""},null,{"$f":"'Core Data'!A22","v":""},{"$f":"'Core Data'!D22","v":0},{"$f":"'Core Data'!E22","v":0},{"$f":"'Core Data'!F22","v":0},{"$f":"IFERROR(ROUND(+X39/(Y39-Z39),3),\"\")","v":""}]
[]
[null,null,null,null,null,null,null,null,null,null,null,null,null,null,null,null,null,null,"OFFSET",null,{"$f":"IFERROR(AVERAGE(Q25:Q29,Q35:Q39),\"\")","v":""}]
[null,null,null,null,null,null,null,null,null,null,null,null,null,null,null,null,null,null,null,null,null,null,null,null,null,null,"Nuclear / Core Correlation Worksheet     "]
[null,null,null,null,null,null,null,null,null,null,null,null,null,null,"Gauge",null,"Cores"]
[null,null,null,null,null,null,null,null,"page 1",null,null,null,"RANGE",null,{"$f":"O46-O47","v":0},"%",{"$f":"Q46-Q47","v":0},"%",null,null,"page 2",null,null,null,null,null,null,"page 3"]
[]
[null,null,null,null,null,null,null,null,null,null,null,null,"Max",null,{"$f":"MAX(M25:M29,M35:M39)","v":0},null,{"$f":"MAX(O25:O29,O35:O39)","v":0}]
[null,null,null,null,null,null,null,null,null,null,null,null,"Min",null,{"$f":"MIN(M25:M29,M35:M39)","v":0},null,{"$f":"MIN(O25:O29,O35:O39)","v":0}]

{"sheet":"QV-2 Correlation","index":13,"n_rows":47,"n_cols":91,"rows_kept":47,"cut":false,"hidden":false,"merged":[[15,2,15,8],[22,89,22,91],[31,4,31,6],[40,1,42,8],[40,18,40,19],[16,84,16,88],[17,2,17,4],[21,4,21,6],[21,18,21,19],[22,84,22,88],[18,2,18,4],[10,26,10,27],[11,2,11,4],[12,2,12,4],[9,7,9,8],[10,7,10,8],[9,23,9,24],[14,2,14,4],[14,7,14,8],[9,2,9,4],[11,7,11,8],[13,2,13,4],[13,7,13,8],[10,2,10,4],[12,7,12,8],[0,84,0,88],[1,23,1,24],[1,30,2,30],[1,32,2,32],[2,23,2,24],[6,23,6,24],[7,23,7,27],[9,26,9,27],[8,2,8,4],[0,3,4,8],[0,12,0,14],[0,19,0,20],[0,23,0,24],[3,23,3,24],[4,23,4,24],[5,23,5,24],[8,23,8,24],[6,3,6,8],[8,7,8,8]]}
[null,null,null,"Wisconsin Department \nof Transportation ",null,null,null,null,null,null,"Date:",null,{"$f":"IF(C9=\"\",\"\",C9)","v":""},null,null,null,null,null,"Gauge No.:",{"$f":"IF(H12=\"\",\"\",H12)","v":""},null,null,"Date:",{"$f":"IF(C9=\"\",\"\",C9)","v":""},null,null,"Layer:",{"$f":"IF('Project Info & Instructions'!G16=\"\",\"\",'Project Info & Instructions'!G16)","v":""},null,null,null,null,null,null,null,null,null,null,null,null,null,null,null,null,null,null,null,null,null,null,null,null,null,null,null,null,null,null,null,null,null,null,null,null,null,null,null,null,null,null,null,null,null,null,null,null,null,null,null,null,null,null,null,"Zone 1","Variation from Avg"]
[null,null,null,null,null,null,null,null,null,null,null,null,null,null,null,null,null,null,"Nuclear / Core Correlation Worksheet     ",null,null,null,"Contract:",{"$f":"IF(C10=\"\",\"\",C10)","v":""},null,null,"Layer Thickness:",{"$f":"H13","v":""},null,null,"Ave Nuclear",null,"Core Density",null,null,null,null,null,null,null,null,null,null,null,null,null,null,null,null,null,null,null,null,null,null,null,null,null,null,null,null,null,null,null,null,null,null,null,null,null,null,null,null,null,null,null,null,null,null,null,null,null,null,"1A)",{"$f":"ABS(AVERAGE('QV-2 Correlation'!$B$25,'QV-2 Correlation'!$D$25,'QV-2 Correlation'!$G$25)-'QV-2 Correlation'!B25)","v":0},"1B)",{"$f":"ABS(AVERAGE('QV-2 Correlation'!$B$25,'QV-2 Correlation'!$D$25,'QV-2 Correlation'!$G$25)-'QV-2 Correlation'!D25)","v":0},"1C)",{"$f":"ABS(AVERAGE('QV-2 Correlation'!$B$25,'QV-2 Correlation'!$D$25,'QV-2 Correlation'!$G$25)-'QV-2 Correlation'!G25)","v":0}]
[null,null,null,null,null,null,null,null,null,null,null,null,null,null,null,null,null,null,null,null,null,null,"Job No.:","",null,null,"Gmm:",{"$f":"H14","v":""},null,null,null,null,null,null,null,null,null,null,null,null,null,null,null,null,null,null,null,null,null,null,null,null,null,null,null,null,null,null,null,null,null,null,null,null,null,null,null,null,null,null,null,null,null,null,null,null,null,null,null,null,null,null,null,"2A)",{"$f":"ABS(AVERAGE('QV-2 Correlation'!$B$26,'QV-2 Correlation'!$D$26,'QV-2 Correlation'!$G$26)-'QV-2 Correlation'!B26)","v":0},"2B)",{"$f":"ABS(AVERAGE('QV-2 Correlation'!$B$26,'QV-2 Correlation'!$D$26,'QV-2 Correlation'!$G$26)-'QV-2 Correlation'!D26)","v":0},"2C)",{"$f":"ABS(AVERAGE('QV-2 Correlation'!$B$26,'QV-2 Correlation'!$D$26,'QV-2 Correlation'!$G$26)-'QV-2 Correlation'!G26)","v":0}]
[null,null,null,null,null,null,null,null,null,null,null,null,null,null,null,null,null,null,null,null,null,null,"Route:","",null,null,null,null,null,null,{"$f":"M25","v":""},null,{"$f":"O25","v":""},null,null,null,null,null,null,null,null,null,null,null,null,null,null,null,null,null,null,null,null,null,null,null,null,null,null,null,null,null,null,null,null,null,null,null,null,null,null,null,null,null,null,null,null,null,null,null,null,null,null,"3A)",{"$f":"ABS(AVERAGE('QV-2 Correlation'!$B$27,'QV-2 Correlation'!$D$27,'QV-2 Correlation'!$G$27)-'QV-2 Correlation'!B27)","v":0},"3B)",{"$f":"ABS(AVERAGE('QV-2 Correlation'!$B$27,'QV-2 Correlation'!$D$27,'QV-2 Correlation'!$G$27)-'QV-2 Correlation'!D27)","v":0},"3C)",{"$f":"ABS(AVERAGE('QV-2 Correlation'!$B$27,'QV-2 Correlation'!$D$27,'QV-2 Correlation'!$G$27)-'QV-2 Correlation'!G27)","v":0}]
[null,null,null,null,null,null,null,null,null,null,null,null,null,null,null,null,null,null,null,null,null,null,"Underlying Material:","",null,null,null,null,null,null,{"$f":"M26","v":""},null,{"$f":"O26","v":""},null,null,null,null,null,null,null,null,null,null,null,null,null,null,null,null,null,null,null,null,null,null,null,null,null,null,null,null,null,null,null,null,null,null,null,null,null,null,null,null,null,null,null,null,null,null,null,null,null,null,"4A)",{"$f":"ABS(AVERAGE('QV-2 Correlation'!$B$28,'QV-2 Correlation'!$D$28,'QV-2 Correlation'!$G$28)-'QV-2 Correlation'!B28)","v":0},"4B)",{"$f":"ABS(AVERAGE('QV-2 Correlation'!$B$28,'QV-2 Correlation'!$D$28,'QV-2 Correlation'!$G$28)-'QV-2 Correlation'!D28)","v":0},"4C)",{"$f":"ABS(AVERAGE('QV-2 Correlation'!$B$28,'QV-2 Correlation'!$D$28,'QV-2 Correlation'!$G$28)-'QV-2 Correlation'!G28)","v":0}]
[null,{"$f":"'Project Info & Instructions'!A6","v":"Revised 04-26-18"},null,null,null,null,null,null,null,null,null,null,null,null,null,null,null,null,null,null,null,null,"WisDOT Mix No.:","",null,null,null,null,null,null,{"$f":"M27","v":""},null,{"$f":"O27","v":""},null,null,null,null,null,null,null,null,null,null,null,null,null,null,null,null,null,null,null,null,null,null,null,null,null,null,null,null,null,null,null,null,null,null,null,null,null,null,null,null,null,null,null,null,null,null,null,null,null,null,"5A)",{"$f":"ABS(AVERAGE('QV-2 Correlation'!$B$29,'QV-2 Correlation'!$D$29,'QV-2 Correlation'!$G$29)-'QV-2 Correlation'!B29)","v":0},"5B)",{"$f":"ABS(AVERAGE('QV-2 Correlation'!$B$29,'QV-2 Correlation'!$D$29,'QV-2 Correlation'!$G$29)-'QV-2 Correlation'!D29)","v":0},"5C)",{"$f":"ABS(AVERAGE('QV-2 Correlation'!$B$29,'QV-2 Correlation'!$D$29,'QV-2 Correlation'!$G$29)-'QV-2 Correlation'!G29)","v":0}]
[null,null,null,"Nuclear / Core Correlation Worksheet",null,null,null,null,null,null,null,null,null,null,null,null,null,null,null,null,null,null,"Mix Type:","--",null,null,"Core Diameter:",{"$f":"H15","v":6},null,null,{"$f":"M28","v":""},null,{"$f":"O28","v":""},null,null,null,null,null,null,null,null,null,null,null,null,null,null,null,null,null,null,null,null,null,null,null,null,null,null,null,null,null,null,null,null,null,null,null,null,null,null,null,null,null,null,null,null,null,null,null,null,null,null,null,{"$f":"IF(CG2=MAX($CG2,$CI2,$CK2),0,'QV-2 Correlation'!B25)","v":0},null,{"$f":"IF(CI2=MAX($CG2,$CI2,$CK2),0,'QV-2 Correlation'!D25)","v":0},null,{"$f":"IF(CK2=MAX($CG2,$CI2,$CK2),0,'QV-2 Correlation'!G25)","v":0},null,{"$f":"AVERAGEIF(CG7:CK7,\">0\",CG7:CK7)","v":{"$error":"#DIV/0!"}}]
[null,null,null,null,null,null,null,null,null,null,null,null,null,null,null,null,null,null,null,null,null,null,"Test Strip Type:",{"$f":"'Project Info & Instructions'!C9","v":"Combined Density and Air Voids Test Strip"},null,null,null,null,null,null,{"$f":"M29","v":""},null,{"$f":"O29","v":""},null,null,null,null,null,null,null,null,null,null,null,null,null,null,null,null,null,null,null,null,null,null,null,null,null,null,null,null,null,null,null,null,null,null,null,null,null,null,null,null,null,null,null,null,null,null,null,null,null,null,null,{"$f":"IF(CG3=MAX($CG3,$CI3,$CK3),0,'QV-2 Correlation'!B26)","v":0},null,{"$f":"IF(CI3=MAX($CG3,$CI3,$CK3),0,'QV-2 Correlation'!D26)","v":0},null,{"$f":"IF(CK3=MAX($CG3,$CI3,$CK3),0,'QV-2 Correlation'!G26)","v":0},null,{"$f":"AVERAGEIF(CG8:CK8,\">0\",CG8:CK8)","v":{"$error":"#DIV/0!"}}]
[null,"Date:",{"$f":"IF('Project Info & Instructions'!C10=\"\",\"\",'Project Info & Instructions'!C10)","v":""},null,null,null,"Test Strip #:",{"$f":"IF('Project Info & Instructions'!C11=\"\",\"\",'Project Info & Instructions'!C11)","v":""},null,null,null,null,null,null,null,null,null,null,null,null,null,null,"NUCDENSITYTEC:",{"$f":"IF('QV-2 Density Worksheet'!I6=\"\",\"\",'QV-2 Density Worksheet'!I6)","v":""},null,null,null,null,null,null,{"$f":"M35","v":""},null,{"$f":"O35","v":""},null,null,null,null,null,null,null,null,null,null,null,null,null,null,null,null,null,null,null,null,null,null,null,null,null,null,null,null,null,null,null,null,null,null,null,null,null,null,null,null,null,null,null,null,null,null,null,null,null,null,null,{"$f":"IF(CG4=MAX($CG4,$CI4,$CK4),0,'QV-2 Correlation'!B27)","v":0},null,{"$f":"IF(CI4=MAX($CG4,$CI4,$CK4),0,'QV-2 Correlation'!D27)","v":0},null,{"$f":"IF(CK4=MAX($CG4,$CI4,$CK4),0,'QV-2 Correlation'!G27)","v":0},null,{"$f":"AVERAGEIF(CG9:CK9,\">0\",CG9:CK9)","v":{"$error":"#DIV/0!"}}]
[null,"Contract:",{"$f":"IF('Project Info & Instructions'!C12=\"\",\"\",'Project Info & Instructions'!C12)","v":""},null,null,null,"Layer:",{"$f":"IF('Project Info & Instructions'!G16=\"\",\"\",'Project Info & Instructions'!G16)","v":""},null,null,null,null,null,null,null,null,null,null,null,null,null,null,"Gauge No.:",{"$f":"IF('QV-2 Density Worksheet'!M4=\"\",\"\",'QV-2 Density Worksheet'!M4)","v":""},null,null,"Spread of Cores (%)",null,null,null,{"$f":"M36","v":""},null,{"$f":"O36","v":""},null,null,null,null,null,null,null,null,null,null,null,null,null,null,null,null,null,null,null,null,null,null,null,null,null,null,null,null,null,null,null,null,null,null,null,null,null,null,null,null,null,null,null,null,null,null,null,null,null,null,null,{"$f":"IF(CG5=MAX($CG5,$CI5,$CK5),0,'QV-2 Correlation'!B28)","v":0},null,{"$f":"IF(CI5=MAX($CG5,$CI5,$CK5),0,'QV-2 Correlation'!D28)","v":0},null,{"$f":"IF(CK5=MAX($CG5,$CI5,$CK5),0,'QV-2 Correlation'!G28)","v":0},null,{"$f":"AVERAGEIF(CG10:CK10,\">0\",CG10:CK10)","v":{"$error":"#DIV/0!"}}]
[null,"Job No.:",{"$f":"IF('Project Info & Instructions'!C13=\"\",\"\",'Project Info & Instructions'!C13)","v":""},null,null,null,"Mixture Type:",{"$f":"IF('Project Info & Instructions'!C21=\"\",\"\",'Project Info & Instructions'!C21)","v":"--"},null,null,null,null,null,null,null,null,null,null,null,null,null,null,null,null,null,null,{"$f":"IF(Q44>0,Q44,\"\")","v":""},null,null,null,{"$f":"M37","v":""},null,{"$f":"O37","v":""},null,null,null,null,null,null,null,null,null,null,null,null,null,null,null,null,null,null,null,null,null,null,null,null,null,null,null,null,null,null,null,null,null,null,null,null,null,null,null,null,null,null,null,null,null,null,null,null,null,null,null,{"$f":"IF(CG6=MAX($CG6,$CI6,$CK6),0,'QV-2 Correlation'!B29)","v":0},null,{"$f":"IF(CI6=MAX($CG6,$CI6,$CK6),0,'QV-2 Correlation'!D29)","v":0},null,{"$f":"IF(CK6=MAX($CG6,$CI6,$CK6),0,'QV-2 Correlation'!G29)","v":0},null,{"$f":"AVERAGEIF(CG11:CK11,\">0\",CG11:CK11)","v":{"$error":"#DIV/0!"}}]
[null,"Route:",{"$f":"IF('Project Info & Instructions'!C14=\"\",\"\",'Project Info & Instructions'!C14)","v":""},null,null,null,null,null,null,null,null,null,null,null,null,null,null,null,null,null,null,null,null,null,null,null,null,null,null,null,{"$f":"M38","v":""},null,{"$f":"O38","v":""}]
[null,"Underlying Matl.:",{"$f":"IF('Project Info & Instructions'!G17=\"\",\"\",'Project Info & Instructions'!G17)","v":""},null,null,null,"Layer Thickness:",{"$f":"IF('Project Info & Instructions'!G12=\"\",\"\",'Project Info & Instructions'!G12)","v":""},null,null,null,null,null,null,null,null,null,null,null,null,null,null,"SN","Gauge ID","Offset","R-squared","Spread (%)",null,null,null,{"$f":"M39","v":""},null,{"$f":"O39","v":""}]
[null,"WisDOT Mix No.:",{"$f":"IF('Project Info & Instructions'!C16=\"\",\"\",'Project Info & Instructions'!C16)","v":""},null,null,null,"Gmm:",{"$f":"IF('Project Info & Instructions'!O9=2,'Project Info & Instructions'!J9,'Air Voids Pay Factor'!D10)","v":""},null,null,null,null,null,null,null,null,null,null,null,null,null,null,{"$f":"IF('QC-1 Correlation'!C19=\"\",\"\",'QC-1 Correlation'!C19)","v":""},"QC-1",{"$f":"IF('QC-1 Correlation'!U41=\"\",\"\",'QC-1 Correlation'!U41)","v":""},{"$f":"IF('QC-1 Correlation'!U22=\"\",\"\",'QC-1 Correlation'!U22)","v":""},{"$f":"IF('QC-1 Correlation'!O44=\"\",\"\",'QC-1 Correlation'!O44)","v":0}]
[null,"Mix Type:",{"$f":"IF('Project Info & Instructions'!C21=\"\",\"\",'Project Info & Instructions'!C21)","v":"--"},null,null,null,"Core Diameter:",6,null,null,null,null,null,null,null,null,null,null,null,null,null,null,{"$f":"IF('QC-2 Correlation'!C19=\"\",\"\",'QC-2 Correlation'!C19)","v":""},"QC-2",{"$f":"IF('QC-2 Correlation'!U41=\"\",\"\",'QC-2 Correlation'!U41)","v":""},{"$f":"IF('QC-2 Correlation'!U22=\"\",\"\",'QC-2 Correlation'!U22)","v":""},{"$f":"IF('QC-2 Correlation'!O44=\"\",\"\",'QC-2 Correlation'!O44)","v":0}]
[null,"Test Strip Type:",{"$f":"'Project Info & Instructions'!C9","v":"Combined Density and Air Voids Test Strip"},null,null,null,null,null,null,null,null,null,null,null,null,null,null,null,null,null,null,null,{"$f":"IF('QV-1 Correlation'!C19=\"\",\"\",'QV-1 Correlation'!C19)","v":""},"QV-1",{"$f":"IF('QV-1 Correlation'!U41=\"\",\"\",'QV-1 Correlation'!U41)","v":""},{"$f":"IF('QV-1 Correlation'!U22=\"\",\"\",'QV-1 Correlation'!U22)","v":""},{"$f":"IF('QV-1 Correlation'!O44=\"\",\"\",'QV-1 Correlation'!O44)","v":0}]
[null,null,null,null,null,null,null,null,null,null,null,null,null,null,null,null,null,null,null,null,null,null,{"$f":"IF('QV-2 Correlation'!C19=\"\",\"\",'QV-2 Correlation'!C19)","v":""},"QV-2",{"$f":"IF('QV-2 Correlation'!U41=\"\",\"\",'QV-2 Correlation'!U41)","v":""},{"$f":"IF('QV-2 Correlation'!U22=\"\",\"\",'QV-2 Correlation'!U22)","v":""},{"$f":"IF('QV-2 Correlation'!O44=\"\",\"\",'QV-2 Correlation'!O44)","v":0},null,null,null,null,null,null,null,null,null,null,null,null,null,null,null,null,null,null,null,null,null,null,null,null,null,null,null,null,null,null,null,null,null,null,null,null,null,null,null,null,null,null,null,null,null,null,null,null,null,null,null,null,null,null,null,null,"Zone 2","Variation from Avg"]
[null,"NUCDENSITYTEC:",{"$f":"IF('QV-2 Density Worksheet'!I6=\"\",\"\",'QV-2 Density Worksheet'!I6)","v":""},null,null,null,null,null,null,null,null,null,null,null,null,null,null,null,null,null,null,null,null,null,null,null,null,null,null,null,null,null,null,null,null,null,null,null,null,null,null,null,null,null,null,null,null,null,null,null,null,null,null,null,null,null,null,null,null,null,null,null,null,null,null,null,null,null,null,null,null,null,null,null,null,null,null,null,null,null,null,null,null,"6A",{"$f":"ABS(AVERAGE('QV-2 Correlation'!$B35,'QV-2 Correlation'!$D35,'QV-2 Correlation'!$G35)-'QV-2 Correlation'!B35)","v":0},"6B",{"$f":"ABS(AVERAGE('QV-2 Correlation'!$B35,'QV-2 Correlation'!$D35,'QV-2 Correlation'!$G35)-'QV-2 Correlation'!D35)","v":0},"6C",{"$f":"ABS(AVERAGE('QV-2 Correlation'!$B35,'QV-2 Correlation'!$D35,'QV-2 Correlation'!$G35)-'QV-2 Correlation'!G35)","v":0}]
[null,"Gauge No.:",{"$f":"IF('QV-2 Density Worksheet'!M4=\"\",\"\",'QV-2 Density Worksheet'!M4)","v":""},null,null,null,null,null,null,null,null,null,null,null,null,null,null,null,null,null,null,null,null,null,null,null,null,null,null,null,null,null,null,null,null,null,null,null,null,null,null,null,null,null,null,null,null,null,null,null,null,null,null,null,null,null,null,null,null,null,null,null,null,null,null,null,null,null,null,null,null,null,null,null,null,null,null,null,null,null,null,null,null,"7A",{"$f":"ABS(AVERAGE('QV-2 Correlation'!$B36,'QV-2 Correlation'!$D36,'QV-2 Correlation'!$G36)-'QV-2 Correlation'!B36)","v":0},"7B",{"$f":"ABS(AVERAGE('QV-2 Correlation'!$B36,'QV-2 Correlation'!$D36,'QV-2 Correlation'!$G36)-'QV-2 Correlation'!D36)","v":0},"7C",{"$f":"ABS(AVERAGE('QV-2 Correlation'!$B36,'QV-2 Correlation'!$D36,'QV-2 Correlation'!$G36)-'QV-2 Correlation'!G36)","v":0}]
[null,null,null,null,null,null,null,null,null,null,null,null,null,null,null,null,null,null,null,null,null,null,null,null,null,null,null,null,null,null,null,null,null,null,null,null,null,null,null,null,null,null,null,null,null,null,null,null,null,null,null,null,null,null,null,null,null,null,null,null,null,null,null,null,null,null,null,null,null,null,null,null,null,null,null,null,null,null,null,null,null,null,null,"8A",{"$f":"ABS(AVERAGE('QV-2 Correlation'!$B37,'QV-2 Correlation'!$D37,'QV-2 Correlation'!$G37)-'QV-2 Correlation'!B37)","v":0},"8B",{"$f":"ABS(AVERAGE('QV-2 Correlation'!$B37,'QV-2 Correlation'!$D37,'QV-2 Correlation'!$G37)-'QV-2 Correlation'!D37)","v":0},"8C",{"$f":"ABS(AVERAGE('QV-2 Correlation'!$B37,'QV-2 Correlation'!$D37,'QV-2 Correlation'!$G37)-'QV-2 Correlation'!G37)","v":0}]
[null,"ZONE 1",null,null,null,null,null,null,null,null,null,null,null,null,null,null,null,null,null,null,null,null,null,null,null,null,null,null,null,null,null,null,null,null,null,null,null,null,null,null,null,null,null,null,null,null,null,null,null,null,null,null,null,null,null,null,null,null,null,null,null,null,null,null,null,null,null,null,null,null,null,null,null,null,null,null,null,null,null,null,null,null,null,"9A",{"$f":"ABS(AVERAGE('QV-2 Correlation'!$B38,'QV-2 Correlation'!$D38,'QV-2 Correlation'!$G38)-'QV-2 Correlation'!B38)","v":0},"9B",{"$f":"ABS(AVERAGE('QV-2 Correlation'!$B38,'QV-2 Correlation'!$D38,'QV-2 Correlation'!$G38)-'QV-2 Correlation'!D38)","v":0},"9C",{"$f":"ABS(AVERAGE('QV-2 Correlation'!$B38,'QV-2 Correlation'!$D38,'QV-2 Correlation'!$G38)-'QV-2 Correlation'!G38)","v":0}]
[null,"Station (@ center of Zone):",null,null,{"$f":"IF('QC-1 Density Worksheet'!B16=\"\",\"\",'QC-1 Density Worksheet'!B16)","v":0},null,null,null,null,null,null,null,"CALCULATIONS",null,null,null,null,null,"R-Squared",null,{"$f":"IFERROR(RSQ(AE4:AE13,AG4:AG13),\"\")","v":""},null,null,null,"Core Density Calculations",null,null,null,null,null,null,null,null,null,null,null,null,null,null,null,null,null,null,null,null,null,null,null,null,null,null,null,null,null,null,null,null,null,null,null,null,null,null,null,null,null,null,null,null,null,null,null,null,null,null,null,null,null,null,null,null,null,null,"10A",{"$f":"ABS(AVERAGE('QV-2 Correlation'!$B39,'QV-2 Correlation'!$D39,'QV-2 Correlation'!$G39)-'QV-2 Correlation'!B39)","v":0},"10B",{"$f":"ABS(AVERAGE('QV-2 Correlation'!$B39,'QV-2 Correlation'!$D39,'QV-2 Correlation'!$G39)-'QV-2 Correlation'!D39)","v":0},"10C",{"$f":"ABS(AVERAGE('QV-2 Correlation'!$B39,'QV-2 Correlation'!$D39,'QV-2 Correlation'!$G39)-'QV-2 Correlation'!G39)","v":0}]
[null,"pcf",null,"pcf",null,null,"pcf",null,"pcf",null,"Gmb",null,"%",null,"%",null,null,null,null,null,null,null,null,null,null,null,null,null,null,null,null,null,null,null,null,null,null,null,null,null,null,null,null,null,null,null,null,null,null,null,null,null,null,null,null,null,null,null,null,null,null,null,null,null,null,null,null,null,null,null,null,null,null,null,null,null,null,null,null,null,null,null,null,null,"Filter Outlier",null,null,null,null,"Nuc Avg Excluding Outlier"]
[null,"Reading 1",null,"Reading 2","Difference",null,"Reading 3*            \nif applicable",null,"Ave Nuclear",null,"Core Density",null,"Ave Nuclear",null,"Core Density",null,"Difference",null,"Adjusted Nuc.",null,"Adj. Diff.",null,null,"Dry weight","SSD","Submerged","Core Density",null,null,null,null,null,null,null,null,null,null,null,null,null,null,null,null,null,null,null,null,null,null,null,null,null,null,null,null,null,null,null,null,null,null,null,null,null,null,null,null,null,null,null,null,null,null,null,null,null,null,null,null,null,null,null,null,null,{"$f":"IF(CG18=MAX($CG18,$CI18,$CK18),0,B35)","v":0},null,{"$f":"IF(CI18=MAX($CG18,$CI18,$CK18),0,D35)","v":0},null,{"$f":"IF(CK18=MAX($CG18,$CI18,$CK18),0,G35)","v":0},null,{"$f":"AVERAGEIF(CG24:CK24,\">0\",CG24:CK24)","v":{"$error":"#DIV/0!"}}]
[{"$f":"'Core Data'!A10","v":""},{"$f":"'QV-2 Density Worksheet'!E14","v":0},null,{"$f":"'QV-2 Density Worksheet'!H14","v":0},{"$f":"ABS(B25-D25)","v":0},null,{"$f":"'QV-2 Density Worksheet'!K14","v":0},null,{"$f":"IF(B25=0,\"\",(IF(ABS(B25-D25)>1,CM7,AVERAGE(B25,D25))))","v":""},{"$f":"A25","v":""},{"$f":"IFERROR(AA25,\"\")","v":""},null,{"$f":"IFERROR(+I25/62.24/$H$14*100,\"\")","v":""},null,{"$f":"IFERROR(+K25/$H$14*100,\"\")","v":""},null,{"$f":"IFERROR(O25-M25,\"\")","v":""},null,{"$f":"IFERROR(M25+$U$41,\"\")","v":""},null,{"$f":"IFERROR(O25-S25,\"\")","v":""},null,{"$f":"'Core Data'!A10","v":""},{"$f":"'Core Data'!D10","v":0},{"$f":"'Core Data'!E10","v":0},{"$f":"'Core Data'!F10","v":0},{"$f":"IFERROR(ROUND(+X25/(Y25-Z25),3),\"\")","v":""},null,null,null,null,null,null,null,null,null,null,null,null,null,null,null,null,null,null,null,null,null,null,null,null,null,null,null,null,null,null,null,null,null,null,null,null,null,null,null,null,null,null,null,null,null,null,null,null,null,null,null,null,null,null,null,null,null,{"$f":"IF(CG19=MAX($CG19,$CI19,$CK19),0,B36)","v":0},null,{"$f":"IF(CI19=MAX($CG19,$CI19,$CK19),0,D36)","v":0},null,{"$f":"IF(CK19=MAX($CG19,$CI19,$CK19),0,G36)","v":0},null,{"$f":"AVERAGEIF(CG25:CK25,\">0\",CG25:CK25)","v":{"$error":"#DIV/0!"}}]
[{"$f":"'Core Data'!A11","v":""},{"$f":"'QV-2 Density Worksheet'!E15","v":0},null,{"$f":"'QV-2 Density Worksheet'!H15","v":0},{"$f":"ABS(B26-D26)","v":0},null,{"$f":"'QV-2 Density Worksheet'!K15","v":0},null,{"$f":"IF(B26=0,\"\",(IF(ABS(B26-D26)>1,CM8,AVERAGE(B26,D26))))","v":""},{"$f":"A26","v":""},{"$f":"IFERROR(AA26,\"\")","v":""},null,{"$f":"IFERROR(+I26/62.24/$H$14*100,\"\")","v":""},null,{"$f":"IFERROR(+K26/$H$14*100,\"\")","v":""},null,{"$f":"IFERROR(O26-M26,\"\")","v":""},null,{"$f":"IFERROR(M26+$U$41,\"\")","v":""},null,{"$f":"IFERROR(O26-S26,\"\")","v":""},null,{"$f":"'Core Data'!A11","v":""},{"$f":"'Core Data'!D11","v":0},{"$f":"'Core Data'!E11","v":0},{"$f":"'Core Data'!F11","v":0},{"$f":"IFERROR(ROUND(+X26/(Y26-Z26),3),\"\")","v":""},null,null,null,null,null,null,null,null,null,null,null,null,null,null,null,null,null,null,null,null,null,null,null,null,null,null,null,null,null,null,null,null,null,null,null,null,null,null,null,null,null,null,null,null,null,null,null,null,null,null,null,null,null,null,null,null,null,{"$f":"IF(CG20=MAX($CG20,$CI20,$CK20),0,B37)","v":0},null,{"$f":"IF(CI20=MAX($CG20,$CI20,$CK20),0,D37)","v":0},null,{"$f":"IF(CK20=MAX($CG20,$CI20,$CK20),0,G37)","v":0},null,{"$f":"AVERAGEIF(CG26:CK26,\">0\",CG26:CK26)","v":{"$error":"#DIV/0!"}}]
[{"$f":"'Core Data'!A12","v":""},{"$f":"'QV-2 Density Worksheet'!E16","v":0},null,{"$f":"'QV-2 Density Worksheet'!H16","v":0},{"$f":"ABS(B27-D27)","v":0},null,{"$f":"'QV-2 Density Worksheet'!K16","v":0},null,{"$f":"IF(B27=0,\"\",(IF(ABS(B27-D27)>1,CM9,AVERAGE(B27,D27))))","v":""},"",{"$f":"IFERROR(AA27,\"\")","v":""},null,{"$f":"IFERROR(+I27/62.24/$H$14*100,\"\")","v":""},null,{"$f":"IFERROR(+K27/$H$14*100,\"\")","v":""},null,{"$f":"IFERROR(O27-M27,\"\")","v":""},null,{"$f":"IFERROR(M27+$U$41,\"\")","v":""},null,{"$f":"IFERROR(O27-S27,\"\")","v":""},null,{"$f":"'Core Data'!A12","v":""},{"$f":"'Core Data'!D12","v":0},{"$f":"'Core Data'!E12","v":0},{"$f":"'Core Data'!F12","v":0},{"$f":"IFERROR(ROUND(+X27/(Y27-Z27),3),\"\")","v":""},null,null,null,null,null,null,null,null,null,null,null,null,null,null,null,null,null,null,null,null,null,null,null,null,null,null,null,null,null,null,null,null,null,null,null,null,null,null,null,null,null,null,null,null,null,null,null,null,null,null,null,null,null,null,null,null,null,{"$f":"IF(CG21=MAX($CG21,$CI21,$CK21),0,B38)","v":0},null,{"$f":"IF(CI21=MAX($CG21,$CI21,$CK21),0,D38)","v":0},null,{"$f":"IF(CK21=MAX($CG21,$CI21,$CK21),0,G38)","v":0},null,{"$f":"AVERAGEIF(CG27:CK27,\">0\",CG27:CK27)","v":{"$error":"#DIV/0!"}}]
[{"$f":"'Core Data'!A13","v":""},{"$f":"'QV-2 Density Worksheet'!E17","v":0},null,{"$f":"'QV-2 Density Worksheet'!H17","v":0},{"$f":"ABS(B28-D28)","v":0},null,{"$f":"'QV-2 Density Worksheet'!K17","v":0},null,{"$f":"IF(B28=0,\"\",(IF(ABS(B28-D28)>1,CM10,AVERAGE(B28,D28))))","v":""},"",{"$f":"IFERROR(AA28,\"\")","v":""},null,{"$f":"IFERROR(+I28/62.24/$H$14*100,\"\")","v":""},null,{"$f":"IFERROR(+K28/$H$14*100,\"\")","v":""},null,{"$f":"IFERROR(O28-M28,\"\")","v":""},null,{"$f":"IFERROR(M28+$U$41,\"\")","v":""},null,{"$f":"IFERROR(O28-S28,\"\")","v":""},null,{"$f":"'Core Data'!A13","v":""},{"$f":"'Core Data'!D13","v":0},{"$f":"'Core Data'!E13","v":0},{"$f":"'Core Data'!F13","v":0},{"$f":"IFERROR(ROUND(+X28/(Y28-Z28),3),\"\")","v":""},null,null,null,null,null,null,null,null,null,null,null,null,null,null,null,null,null,null,null,null,null,null,null,null,null,null,null,null,null,null,null,null,null,null,null,null,null,null,null,null,null,null,null,null,null,null,null,null,null,null,null,null,null,null,null,null,null,{"$f":"IF(CG22=MAX($CG22,$CI22,$CK22),0,B39)","v":0},null,{"$f":"IF(CI22=MAX($CG22,$CI22,$CK22),0,D39)","v":0},null,{"$f":"IF(CK22=MAX($CG22,$CI22,$CK22),0,G39)","v":0},null,{"$f":"AVERAGEIF(CG28:CK28,\">0\",CG28:CK28)","v":{"$error":"#DIV/0!"}}]
[{"$f":"'Core Data'!A14","v":""},{"$f":"'QV-2 Density Worksheet'!E18","v":0},null,{"$f":"'QV-2 Density Worksheet'!H18","v":0},{"$f":"ABS(B29-D29)","v":0},null,{"$f":"'QV-2 Density Worksheet'!K18","v":0},null,{"$f":"IF(B29=0,\"\",(IF(ABS(B29-D29)>1,CM11,AVERAGE(B29,D29))))","v":""},"",{"$f":"IFERROR(AA29,\"\")","v":""},null,{"$f":"IFERROR(+I29/62.24/$H$14*100,\"\")","v":""},null,{"$f":"IFERROR(+K29/$H$14*100,\"\")","v":""},null,{"$f":"IFERROR(O29-M29,\"\")","v":""},null,{"$f":"IFERROR(M29+$U$41,\"\")","v":""},null,{"$f":"IFERROR(O29-S29,\"\")","v":""},null,{"$f":"'Core Data'!A14","v":""},{"$f":"'Core Data'!D14","v":0},{"$f":"'Core Data'!E14","v":0},{"$f":"'Core Data'!F14","v":0},{"$f":"IFERROR(ROUND(+X29/(Y29-Z29),3),\"\")","v":""}]
[]
[null,"ZONE 2"]
[null,"Station (@ center of Zone):",null,null,{"$f":"IF('QC-1 Density Worksheet'!B22=\"\",\"\",'QC-1 Density Worksheet'!B22)","v":0}]
[null,"pcf",null,"pcf",null,null,"pcf",null,"pcf"]
[null,"Reading 1",null,"Reading 2","Difference",null,"Reading 3*            \nif applicable",null,"Ave Nuclear",null,"Core Density",null,"Ave Nuclear",null,"Core Density",null,"Difference",null,"Adjusted Nuc.",null,"Adj. Diff.",null,null,"Dry weight","SSD","Submerged","Core Density"]
[{"$f":"'Core Data'!A18","v":""},{"$f":"'QV-2 Density Worksheet'!E20","v":0},null,{"$f":"'QV-2 Density Worksheet'!H20","v":0},{"$f":"ABS(B35-D35)","v":0},null,{"$f":"'QV-2 Density Worksheet'!K20","v":0},null,{"$f":"IF(B35=0,\"\",(IF(ABS(B35-D35)>1,CM24,AVERAGE(B35,D35))))","v":""},"",{"$f":"IFERROR(AA35,\"\")","v":""},null,{"$f":"IFERROR(+I35/62.24/$H$14*100,\"\")","v":""},null,{"$f":"IFERROR(+K35/$H$14*100,\"\")","v":""},null,{"$f":"IFERROR(O35-M35,\"\")","v":""},null,{"$f":"IFERROR(M35+$U$41,\"\")","v":""},null,{"$f":"IFERROR(O35-S35,\"\")","v":""},null,{"$f":"'Core Data'!A18","v":""},{"$f":"'Core Data'!D18","v":0},{"$f":"'Core Data'!E18","v":0},{"$f":"'Core Data'!F18","v":0},{"$f":"IFERROR(ROUND(+X35/(Y35-Z35),3),\"\")","v":""}]
[{"$f":"'Core Data'!A19","v":""},{"$f":"'QV-2 Density Worksheet'!E21","v":0},null,{"$f":"'QV-2 Density Worksheet'!H21","v":0},{"$f":"ABS(B36-D36)","v":0},null,{"$f":"'QV-2 Density Worksheet'!K21","v":0},null,{"$f":"IF(B36=0,\"\",(IF(ABS(B36-D36)>1,CM25,AVERAGE(B36,D36))))","v":""},"",{"$f":"IFERROR(AA36,\"\")","v":""},null,{"$f":"IFERROR(+I36/62.24/$H$14*100,\"\")","v":""},null,{"$f":"IFERROR(+K36/$H$14*100,\"\")","v":""},null,{"$f":"IFERROR(O36-M36,\"\")","v":""},null,{"$f":"IFERROR(M36+$U$41,\"\")","v":""},null,{"$f":"IFERROR(O36-S36,\"\")","v":""},null,{"$f":"'Core Data'!A19","v":""},{"$f":"'Core Data'!D19","v":0},{"$f":"'Core Data'!E19","v":0},{"$f":"'Core Data'!F19","v":0},{"$f":"IFERROR(ROUND(+X36/(Y36-Z36),3),\"\")","v":""}]
[{"$f":"'Core Data'!A20","v":""},{"$f":"'QV-2 Density Worksheet'!E22","v":0},null,{"$f":"'QV-2 Density Worksheet'!H22","v":0},{"$f":"ABS(B37-D37)","v":0},null,{"$f":"'QV-2 Density Worksheet'!K22","v":0},null,{"$f":"IF(B37=0,\"\",(IF(ABS(B37-D37)>1,CM26,AVERAGE(B37,D37))))","v":""},"",{"$f":"IFERROR(AA37,\"\")","v":""},null,{"$f":"IFERROR(+I37/62.24/$H$14*100,\"\")","v":""},null,{"$f":"IFERROR(+K37/$H$14*100,\"\")","v":""},null,{"$f":"IFERROR(O37-M37,\"\")","v":""},null,{"$f":"IFERROR(M37+$U$41,\"\")","v":""},null,{"$f":"IFERROR(O37-S37,\"\")","v":""},null,{"$f":"'Core Data'!A20","v":""},{"$f":"'Core Data'!D20","v":0},{"$f":"'Core Data'!E20","v":0},{"$f":"'Core Data'!F20","v":0},{"$f":"IFERROR(ROUND(+X37/(Y37-Z37),3),\"\")","v":""}]
[{"$f":"'Core Data'!A21","v":""},{"$f":"'QV-2 Density Worksheet'!E23","v":0},null,{"$f":"'QV-2 Density Worksheet'!H23","v":0},{"$f":"ABS(B38-D38)","v":0},null,{"$f":"'QV-2 Density Worksheet'!K23","v":0},null,{"$f":"IF(B38=0,\"\",(IF(ABS(B38-D38)>1,CM27,AVERAGE(B38,D38))))","v":""},"",{"$f":"IFERROR(AA38,\"\")","v":""},null,{"$f":"IFERROR(+I38/62.24/$H$14*100,\"\")","v":""},null,{"$f":"IFERROR(+K38/$H$14*100,\"\")","v":""},null,{"$f":"IFERROR(O38-M38,\"\")","v":""},null,{"$f":"IFERROR(M38+$U$41,\"\")","v":""},null,{"$f":"IFERROR(O38-S38,\"\")","v":""},null,{"$f":"'Core Data'!A21","v":""},{"$f":"'Core Data'!D21","v":0},{"$f":"'Core Data'!E21","v":0},{"$f":"'Core Data'!F21","v":0},{"$f":"IFERROR(ROUND(+X38/(Y38-Z38),3),\"\")","v":""}]
[{"$f":"'Core Data'!A22","v":""},{"$f":"'QV-2 Density Worksheet'!E24","v":0},null,{"$f":"'QV-2 Density Worksheet'!H24","v":0},{"$f":"ABS(B39-D39)","v":0},null,{"$f":"'QV-2 Density Worksheet'!K24","v":0},null,{"$f":"IF(B39=0,\"\",(IF(ABS(B39-D39)>1,CM28,AVERAGE(B39,D39))))","v":""},"",{"$f":"IFERROR(AA39,\"\")","v":""},null,{"$f":"IFERROR(+I39/62.24/$H$14*100,\"\")","v":""},null,{"$f":"IFERROR(+K39/$H$14*100,\"\")","v":""},null,{"$f":"IFERROR(O39-M39,\"\")","v":""},null,{"$f":"IFERROR(M39+$U$41,\"\")","v":""},null,{"$f":"IFERROR(O39-S39,\"\")","v":""},null,{"$f":"'Core Data'!A22","v":""},{"$f":"'Core Data'!D22","v":0},{"$f":"'Core Data'!E22","v":0},{"$f":"'Core Data'!F22","v":0},{"$f":"IFERROR(ROUND(+X39/(Y39-Z39),3),\"\")","v":""}]
[]
[null,null,null,null,null,null,null,null,null,null,null,null,null,null,null,null,null,null,"OFFSET",null,{"$f":"IFERROR(AVERAGE(Q25:Q29,Q35:Q39),\"\")","v":""}]
[null,null,null,null,null,null,null,null,null,null,null,null,null,null,null,null,null,null,null,null,null,null,null,null,null,null,"Nuclear / Core Correlation Worksheet     "]
[null,null,null,null,null,null,null,null,null,null,null,null,null,null,"Gauge",null,"Cores"]
[null,null,null,null,null,null,null,null,"page 1",null,null,null,"RANGE",null,{"$f":"O46-O47","v":0},"%",{"$f":"Q46-Q47","v":0},"%",null,null,"page 2",null,null,null,null,null,null,"page 3"]
[]
[null,null,null,null,null,null,null,null,null,null,null,null,"Max",null,{"$f":"MAX(M25:M29,M35:M39)","v":0},null,{"$f":"MAX(O25:O29,O35:O39)","v":0}]
[null,null,null,null,null,null,null,null,null,null,null,null,"Min",null,{"$f":"MIN(M25:M29,M35:M39)","v":0},null,{"$f":"MIN(O25:O29,O35:O39)","v":0}]

{"sheet":"Gauge Variability","index":14,"n_rows":35,"n_cols":14,"rows_kept":35,"cut":false,"hidden":true,"merged":[[6,2,6,5],[7,8,7,9],[21,2,21,5],[3,10,3,11],[3,2,3,6],[2,2,2,6],[1,2,1,6],[0,10,0,11],[1,10,1,11],[2,10,2,11],[0,2,0,6]]}
[null,"Contract:",{"$f":"IF('Project Info & Instructions'!C12=\"\",\"\",'Project Info & Instructions'!C12)","v":""},null,null,null,null,null,null,"Test Strip #:",{"$f":"IF('Project Info & Instructions'!C11=\"\",\"\",'Project Info & Instructions'!C11)","v":""},null,"Paving Width(ft):",{"$f":"IF('Project Info & Instructions'!G10=\"\",\"\",'Project Info & Instructions'!G10)","v":""}]
[null,"Job No./Project ID:",{"$f":"IF('Project Info & Instructions'!C13=\"\",\"\",'Project Info & Instructions'!C13)","v":""},null,null,null,null,null,null,"Route/Road:",{"$f":"IF('Project Info & Instructions'!C14=\"\",\"\",'Project Info & Instructions'!C14)","v":""},null,"Lane Width(ft):",{"$f":"IF('Project Info & Instructions'!G11=\"\",\"\",'Project Info & Instructions'!G11)","v":""}]
[null,"WisDOT Mix No.:",{"$f":"IF('Project Info & Instructions'!C16=\"\",\"\",'Project Info & Instructions'!C16)","v":""},null,null,null,null,null,null,"Test Strip Layer:",{"$f":"IF('Project Info & Instructions'!G16=\"\",\"\",'Project Info & Instructions'!G16)","v":""},null,"Nominal Thickness(in):",{"$f":"IF('Project Info & Instructions'!G12=\"\",\"\",'Project Info & Instructions'!G12)","v":""}]
[null,"Mix Type:",{"$f":"IF('Project Info & Instructions'!C21=\"\",\"\",'Project Info & Instructions'!C21)","v":"--"},null,null,null,null,null,null,"Underlying Layer:",{"$f":"IF('Project Info & Instructions'!G17=\"\",\"\",'Project Info & Instructions'!G17)","v":""},null,"Contract Unit Price:",{"$f":"IF('Project Info & Instructions'!C22=\"\",\"\",'Project Info & Instructions'!C22)","v":""}]
[null,"File Name:",{"$f":"'Project Info & Instructions'!C33","v":"__--__PWL-TS--Combined"}]
[]
[null,null,"Gauge"]
[null,null,"QC-1","QC-2","QV-1","QV-2","ID",null,"Location Comparison"]
[null,"Core",{"$f":"'Test Strip Summary'!D39","v":"Enter Serial #"},{"$f":"'Test Strip Summary'!D40","v":"Enter Serial #"},{"$f":"'Test Strip Summary'!D41","v":"Enter Serial #"},{"$f":"'Test Strip Summary'!D42","v":"Enter Serial #"},"SS",null,"Avg.","Std."]
[null,{"$f":"'QC-1 Correlation'!A25","v":""},{"$f":"'QC-1 Correlation'!U25","v":""},{"$f":"'QC-2 Correlation'!U25","v":""},{"$f":"'QV-1 Correlation'!U25","v":""},{"$f":"'QV-2 Correlation'!U25","v":""},null,null,{"$f":"AVERAGE(C10:F10)","v":{"$error":"#DIV/0!"}},{"$f":"STDEV(C10:F10)","v":{"$error":"#DIV/0!"}}]
[null,{"$f":"'QC-1 Correlation'!A26","v":""},{"$f":"'QC-1 Correlation'!U26","v":""},{"$f":"'QC-2 Correlation'!U26","v":""},{"$f":"'QV-1 Correlation'!U26","v":""},{"$f":"'QV-2 Correlation'!U26","v":""},null,null,{"$f":"AVERAGE(C11:F11)","v":{"$error":"#DIV/0!"}},{"$f":"STDEV(C11:F11)","v":{"$error":"#DIV/0!"}}]
[null,{"$f":"'QC-1 Correlation'!A27","v":""},{"$f":"'QC-1 Correlation'!U27","v":""},{"$f":"'QC-2 Correlation'!U27","v":""},{"$f":"'QV-1 Correlation'!U27","v":""},{"$f":"'QV-2 Correlation'!U27","v":""},null,null,{"$error":"#DIV/0!"},{"$error":"#DIV/0!"}]
[null,{"$f":"'QC-1 Correlation'!A28","v":""},{"$f":"'QC-1 Correlation'!U28","v":""},{"$f":"'QC-2 Correlation'!U28","v":""},{"$f":"'QV-1 Correlation'!U28","v":""},{"$f":"'QV-2 Correlation'!U28","v":""},null,null,{"$error":"#DIV/0!"},{"$error":"#DIV/0!"}]
[null,{"$f":"'QC-1 Correlation'!A29","v":""},{"$f":"'QC-1 Correlation'!U29","v":""},{"$f":"'QC-2 Correlation'!U29","v":""},{"$f":"'QV-1 Correlation'!U29","v":""},{"$f":"'QV-2 Correlation'!U29","v":""},null,null,{"$error":"#DIV/0!"},{"$error":"#DIV/0!"}]
[null,{"$f":"'QC-1 Correlation'!A35","v":""},{"$f":"'QC-1 Correlation'!U35","v":""},{"$f":"'QC-2 Correlation'!U35","v":""},{"$f":"'QV-1 Correlation'!U35","v":""},{"$f":"'QV-2 Correlation'!U35","v":""},null,null,{"$error":"#DIV/0!"},{"$error":"#DIV/0!"}]
[null,{"$f":"'QC-1 Correlation'!A36","v":""},{"$f":"'QC-1 Correlation'!U36","v":""},{"$f":"'QC-2 Correlation'!U36","v":""},{"$f":"'QV-1 Correlation'!U36","v":""},{"$f":"'QV-2 Correlation'!U36","v":""},null,null,{"$error":"#DIV/0!"},{"$error":"#DIV/0!"}]
[null,{"$f":"'QC-1 Correlation'!A37","v":""},{"$f":"'QC-1 Correlation'!U37","v":""},{"$f":"'QC-2 Correlation'!U37","v":""},{"$f":"'QV-1 Correlation'!U37","v":""},{"$f":"'QV-2 Correlation'!U37","v":""},null,null,{"$error":"#DIV/0!"},{"$error":"#DIV/0!"}]
[null,{"$f":"'QC-1 Correlation'!A38","v":""},{"$f":"'QC-1 Correlation'!U38","v":""},{"$f":"'QC-2 Correlation'!U38","v":""},{"$f":"'QV-1 Correlation'!U38","v":""},{"$f":"'QV-2 Correlation'!U38","v":""},null,null,{"$error":"#DIV/0!"},{"$error":"#DIV/0!"}]
[null,{"$f":"'QC-1 Correlation'!A39","v":""},{"$f":"'QC-1 Correlation'!U39","v":""},{"$f":"'QC-2 Correlation'!U39","v":""},{"$f":"'QV-1 Correlation'!U39","v":""},{"$f":"'QV-2 Correlation'!U39","v":""},null,null,{"$error":"#DIV/0!"},{"$error":"#DIV/0!"}]
[]
[]
[null,"Core","Absolute Value"]
[null,{"$f":"B10","v":""},{"$f":"ABS(C10)","v":{"$error":"#VALUE!"}},{"$f":"ABS(D10)","v":{"$error":"#VALUE!"}},{"$error":"#VALUE!"},{"$error":"#VALUE!"}]
[null,{"$f":"B11","v":""},{"$f":"ABS(C11)","v":{"$error":"#VALUE!"}},{"$error":"#VALUE!"},{"$error":"#VALUE!"},{"$error":"#VALUE!"}]
[null,"",{"$f":"ABS(C12)","v":{"$error":"#VALUE!"}},{"$error":"#VALUE!"},{"$error":"#VALUE!"},{"$error":"#VALUE!"}]
[null,"",{"$f":"ABS(C13)","v":{"$error":"#VALUE!"}},{"$error":"#VALUE!"},{"$error":"#VALUE!"},{"$error":"#VALUE!"}]
[null,"",{"$f":"ABS(C14)","v":{"$error":"#VALUE!"}},{"$error":"#VALUE!"},{"$error":"#VALUE!"},{"$error":"#VALUE!"}]
[null,"",{"$f":"ABS(C15)","v":{"$error":"#VALUE!"}},{"$error":"#VALUE!"},{"$error":"#VALUE!"},{"$error":"#VALUE!"}]
[null,"",{"$f":"ABS(C16)","v":{"$error":"#VALUE!"}},{"$error":"#VALUE!"},{"$error":"#VALUE!"},{"$error":"#VALUE!"}]
[null,"",{"$f":"ABS(C17)","v":{"$error":"#VALUE!"}},{"$error":"#VALUE!"},{"$error":"#VALUE!"},{"$error":"#VALUE!"}]
[null,"",{"$f":"ABS(C18)","v":{"$error":"#VALUE!"}},{"$error":"#VALUE!"},{"$error":"#VALUE!"},{"$error":"#VALUE!"}]
[null,"",{"$f":"ABS(C19)","v":{"$error":"#VALUE!"}},{"$f":"ABS(D19)","v":{"$error":"#VALUE!"}},{"$error":"#VALUE!"},{"$error":"#VALUE!"}]
[]
["Gauge ","Avg.",{"$f":"AVERAGE(C23:C32)","v":{"$error":"#VALUE!"}},{"$f":"AVERAGE(D23:D32)","v":{"$error":"#VALUE!"}},{"$error":"#VALUE!"},{"$error":"#VALUE!"}]
["Comparison","Std.",{"$f":"STDEV(C23:C32)","v":{"$error":"#VALUE!"}},{"$f":"STDEV(D23:D32)","v":{"$error":"#VALUE!"}},{"$error":"#VALUE!"},{"$error":"#VALUE!"}]